Workbook

Sheet Índice
B1: ABA | C1: CONTEÚDO | D1: DESTAQUE | E1: REFERÊNCIA
B4: Resultado | C4: Resultado de Nível Tarifária da EMG agrupada | E4: Aba "Distribuidoras"
B6: Resumo Efeito Médio | C6: Efeito médio por grupo tarifário por empresa | D6: Efeito médio para consumidores das empresas originais | E6: Planilhas PCAT
B8: Distribuidoras | C8: Cômputo de Nível Tarifário: agregação de dados de Parcela A e Parcela B das distribudoras originais | E8: REN nº 1.003/2022, Capítulo VIII; Art. 17;P.1º
B10: Resumo RTA | C10: Composição de Valores agregados da EMG agrupada em DRA e DRP | E10: Planilhas Sparta
B12: RB e Conexão | C12: Valores agregados de RB e Conexão da EMG agrupada | E12: Planihas Sparta, abas "RB e Conexão"
B14: CUSD | C14: Valores agregados de CUSD da EMG agrupada | E14: Planilhas Sparta, abas "CUSD"
B16: Mercado | C16: Valores agregados de Mercado do período de referência da EMG agrupada | E16: Planilhas Sparta, abas "Mercado"
B18: RI - Receitas Irrecuperáveis | C18: Valores percentuais de Receitas Irrecuparáveis da EMG agrupada | D18: Percentuais de RI para a EMG agrupada | E18: REN nº 1.003/2022, Capítulo VIII; Art. 17;P.1º, II
B20: FINANCEIROSAT | C20: Valores agregados de Componentes Financeiros da EMG agrupada | E20: Planilhas Sparta
B22: Energia e Perdas Regulatórias | C22: Valores agregados de Energia e Perdas Regulatórias da EMG agrupada | D22: Pmix (Tarifa Média); Trajetória de Perdas para Reajustes tarifários de 2024 a 2025 | E22: REN nº 1.003/2022, Capítulo VIII; Art. 17;P.1º, VIII Planilhas Sparta
B24: Parcela B - Dados Complementares | C24: Dados relacionados ao cômputo da parcela B da EMG agrupada | D24: Valores dos componentes do Fator X da EMG nos reajustes tarifários anuais de 2024 a 2025 | E24: REN nº 1.003/2022, Capítulo VIII; Art. 17;P.1º, III a VII Planilhas Sparta
B26: Subsídios | C26: Cômputo de Subsídios para o período de junho/2023 a maio/2024 da EMG agrupada | E26: Planilhas Sparta e PCAT
B28: CVA | C28: Valores agregados de CVA em processamento da EMG agrupada | E28: Planilhas Sparta
A30: EM CONSTRUÇÃO | B30: NT | C30: Tabelas e Gráficos para Nota Técnica da STR
A32: EM CONSTRUÇÃO | B32: Tarifa B1 | C32: Evolução da Tarifa B1 comparativamente com IPCA e IGPM (para NT)
A34: EM CONSTRUÇÃO | B34: Tab Compra Energia | C34: Avaliação de Variação de Compra de Energia (para NT)
B36: Energia | C36: Verificação de Consistência da Aba Energia e Perdas Regulatórias

Sheet Resultado
B2: Resultado | F2: Parâmetros a serem considerados para os Reajustes subsequentes
B4: RA1 | D4: =Distribuidoras!D4 -> 1257388690 | F4: FATOR X | K4: Última versão enviada:
B5: RA0 | D5: =Distribuidoras!D5 -> 1211259988 | F5: Componente T do Fator X | G5: =#REF! ->  | K5: Data de envio
B6: Índice de Reposição/Reajuste (Anexo II) | D6: =D4/LnkTxtRA-1 -> 0.03808323705 | F6: Componente Pd do Fator X | G6: =#REF! -> 
B7: Componentes Financeiros | D7: =FINANCEIROSAT!J8 -> 19251134.18 | K7: Efeito Consumidor
B8: Índice de Reposição/Reajuste com Financeiros (Anexo I) | D8: =(D4+LnkTxtIndiceFinanceiro)/LnkTxtRA-1 -> 0.05397671522 | F8: PERDAS | K8: Efeito Grupo A - Alta tensão
F9: Perdas Não Técnicas | G9: =#REF! ->  | K9: Efeito Grupo B - Baixa tensão
C10: DRA | D10: DRP | F10: Perdas Técnicas | G10: =#REF! ->  | K10: Efeito tarifário médio AT+BT
B11: TOTAL (Parcela A + Parcela B) | D11: =D40+D45 -> 1257388690 | G11: =G5+G6 ->  | K11: Tarifa B1 - Residencial (R$)
D12: =D11+LnkTxtIndiceFinanceiro -> 1276639824
K13: Subvenção da CDE para descontos tarifários (Valores anuais)
K14: Subsídio Carga Fonte Incentivada
K15: Subsídio Geração Fonte Incentivada
B16: Parcela A | F16: Formação da Parcela B e Reposicionamento (Resumo) | K16: Subsídio Distribuição
K17: Subsídio Água, Esgoto e Saneamento
D18: DRP | K18: Subsídio Rural
B19: ENCARGOS | D19: =SUM(D20:D28) -> 227205781.7 | F19: Custo de Administração, Operação e Manutenção (CAOM) | G19: =SUM(G20:G20) ->  | K19: Subsídio Irrigante/Aquicultor
B20: Reserva Global de Reversão – RGR | D20: =Distribuidoras!D17 -> 0 | F20: Custos Operacionais (CO) | G20: =#REF!+#REF! -> 
B21: Conta de Consumo de Combustíveis – CCC | D21: =Distribuidoras!D18 -> 0 | F21: Custo Anual dos Ativos (CAA) | G21: =SUM(G22:G24) ->  | K21: Versão de Mercado
B22: Taxa de Fisc. de Serviços de E.E. – TFSEE | D22: =Distribuidoras!D19 -> 1844490.826 | F22: Remuneração do Capital (RC) | G22: =#REF! ->  | K22: Status de Sincronização de BDL | L22: Trabalha na pasta de rede
B23: Conta de Desenvolvimento Energético – CDE | D23: =Distribuidoras!D20 -> 169939686.4 | F23: Quota de Reintegração Regulatória (QRR) | G23: =#REF! ->  | K23: Última Sincronização
B24: Compensação financeira - CFURH | D24: =Distribuidoras!D21 -> 0 | F24: Custo anual das instalações móveis e imóveis (CAIMI) | G24: =#REF! -> 
B25: Encargos Serv. Sist. - ESS e Energ. Reserv. - EER | D25: =Distribuidoras!D22 -> 23777686.37 | F25: Parcela B (VPB) | G25: =SUM(G21,G19) -> 
B26: PROINFA | D26: =Distribuidoras!D23 -> 20619804.13 | F26: Índice de Produtividade da Parcela B | G26: =#REF! -> 
B27: P&D e Eficiência Energética | D27: =Distribuidoras!D24 -> 11024113.96 | F27: Mecanismo de Incentivo à Qualidade | G27: =#REF! -> 
B28: Contribuição ONS. | D28: =Distribuidoras!D25 -> 0 | F28: Parcela B com ajustes | G28: =(1-G26-G27)*G25 ->  | K28: Encargos | L28: =SUM(L29:L33) -> 227205781.7
B29: TRANSPORTE | D29: =SUM(D30:D37) -> 172224057.6 | F29: Outras Receitas (OR) | G29: =#REF! ->  | K29: EMG | L29: =Distribuidoras!J16 -> 191002307.1
B30: Rede Básica | D30: =Distribuidoras!D27 -> 20616672 | F30: Excedente de Reativos (ER) | G30: =#REF! ->  | K30: ENF | L30: =Distribuidoras!K16 -> 36203474.52
B31: Rede Básica Fronteira | D31: =Distribuidoras!D28 -> 3566160 | F31: Ultrapassagem de Demanda (UD) | G31: =#REF! -> 
B32: Rede Básica ONS (A2) | D32: =Distribuidoras!D29 -> 582734.96 | F32: Parcela B deduzidas as outras receitas | G32: =G28-SUM(G29:G31) -> 
B33: Rede Básica Export. (A2) | D33: =Distribuidoras!D30 -> 0
B34: MUST Itaipu | D34: =Distribuidoras!D31 -> 5532006.447 | F34: 1. Receita Requerida (RR) | G34: =G28+D40 -> 
B35: Transporte de Itaipu | D35: =Distribuidoras!D32 -> 7165695.606 | F35: 2. Outras Receitas (OR) | G35: =G29 ->  | K35: Transporte | L35: =SUM(L36:L40) -> 172224057.6
B36: Conexão | D36: =Distribuidoras!D33 -> 1305928.853 | F36: 3. Receita Verificada (RV) | G36: =#REF! ->  | K36: EMG | L36: =Distribuidoras!J26 -> 126269214.7
B37: Uso do sistema de distribuição e CCD | D37: =Distribuidoras!D34 -> 133454859.7 | K37: ENF | L37: =Distribuidoras!K26 -> 45954842.91
B38: ENERGIA | D38: =Distribuidoras!D35 -> 472350380.1
B39: RECEITA IRRECUPERÁVEL | D39: =Distribuidoras!D36 -> 5803407.443
B40: VPA (ENCARGO + TRANSPORTE + ENERGIA+RI) | D40: =D19+D29+D38+D39 -> 877583626.7
B42: Parcela B | K42: Energia | L42: =SUM(L43:L47) -> 472350380.1
K43: EMG | L43: =Distribuidoras!J35 -> 388450578.1
D44: VPB1 | K44: ENF | L44: =Distribuidoras!K35 -> 83899801.98
B45: Parcela B | D45: =Distribuidoras!D42 -> 379805062.8
K49: Receita Irrecuperável | L49: =SUM(L50:L54) -> 5803407.443
K50: EMG | L50: =Distribuidoras!J36 -> 5687599.736
K51: ENF | L51: =Distribuidoras!K36 -> 115807.7071
K56: Parcela B | L56: =SUM(L57:L61) -> 379805062.8
K57: EMG | L57: =Distribuidoras!J42 -> 321723642.8
K58: ENF | L58: =Distribuidoras!K42 -> 58081419.97
K64: Total (Parcela A + Parcela B) | L64: =SUM(L65:L69) -> 1257388690
K65: EMG | L65: =Distribuidoras!J8 -> 1033133342
K66: ENF | L66: =Distribuidoras!K8 -> 224255347.1

Sheet Resumo Efeito Médio
B2: Efeitos médios a serem percebidos pelos consumidores das empresas componentes do agrupamento
B4: EMG | G4: ENF
B5: SUBGRUPO | C5: RA0 ou RV | D5: RA1 ou RRD | E5: VARIAÇÃO | G5: SUBGRUPO | H5: RA0 ou RV | I5: RA1 ou RRD | J5: VARIAÇÃO
B7: A2 | C7: 13249873.12 | D7: 13714327.6 | E7: 0.0350535039
B8: A3 | C8: 24275522.04 | D8: 22260435.53 | E8: -0.08300898745 | G8: A3 | H8: 1129340.08 | J8: 1
B10: A4 | C10: 175015793 | D10: 170158467.7 | E10: -0.02775363978 | G10: A4 | H10: 39939769.8 | I10: 39715006.92 | J10: 0.0056
B12: B1 | C12: 397871915.8 | D12: 419634814.9 | E12: 0.05469825407 | G12: B1 | H12: 132152030.3 | I12: 129248034 | J12: 0.022
B13: B2 | C13: 102249669.6 | D13: 113912905.8 | E13: 0.1140662483 | G13: B2 | H13: 2931906.44 | I13: 3045698.78 | J13: 0.0388
B14: B3 | C14: 172874593.3 | D14: 181479063.2 | E14: 0.04977290043 | G14: B3 | H14: 45408302.56 | I14: 44439007.87 | J14: 0.0213
B15: B4 | C15: 33716814.16 | D15: 35308846.82 | E15: 0.04721776636 | G15: B4 | H15: 8444038.23 | I15: 8245549.22 | J15: 0.0235
B16: A | C16: 212541188.2 | D16: 206133230.9 | E16: -0.03014924945 | G16: A | H16: 41069109.89 | I16: 39715006.92 | J16: 0.033
B17: B | C17: 706712992.8 | D17: 750335630.7 | E17: 0.06172610147 | G17: B | H17: 188936277.5 | I17: 184978289.9 | J17: 0.0209
B18: A+B | C18: 919254181 | D18: 956468861.6 | E18: 0.04048355871 | G18: A+B | H18: 230005387.4 | I18: 224693296.4 | J18: 0.0231

Sheet Distribuidoras
B1: EMG Agrupada (EMR) | D1: =TODAY() -> 2023-06-23 | J1: EMG | K1: ENF
B2: Resultado | F2: Parâmetros a serem considerados para os Reajustes subsequentes
B4: RA1 | D4: =D37+D42 -> 1257388690 | F4: FATOR X | J4: =J8 -> 1033133342 | K4: =K8 -> 224255347.1 | P4: =SUM(J4:N4) -> 1257388690 | S4: =J5/P5 -> 0.8041139757
B5: RA0 | D5: =SUM(J5:N5) -> 1211259988 | F5: Componente T do Fator X | J5: 973991084.7 | K5: 237268903.5 | P5: =SUM(J5:N5) -> 1211259988 | S5: =K5/P5 -> 0.1958860243
F6: Perdas Não Técnicas
C7: DRA | D7: DRP | F7: Perdas Técnicas
B8: TOTAL (Parcela A + Parcela B) | D8: =D42+D37 -> 1257388690 | J8: =J42+J37 -> 1033133342 | K8: =K42+K37 -> 224255347.1 | P8: =SUM(J8:N8) -> 1257388690
B10: Índice de Reposição/Reajuste | D10: =D4/D5-1 -> 0.03808323705 | J10: 0.0607215596 | K10: -0.05484729032
B11: Componentes Financeiros | D11: =D46/D5 -> 0.01589347817 | J11: 0.05627399178 | K11: -0.1498689107
B12: Índice de Reposição/Reajuste com Financeiros | D12: =D10+D11 -> 0.05397671522 | J12: 0.1169955514 | K12: -0.204716201
B13: Parcela A | F13: Formação da Parcela B e Reposicionamento (Resumo)
D15: DRP
B16: ENCARGOS | D16: =SUM(D17:D25) -> 227205781.7 | F16: Custo de Administração, Operação e Manutenção (CAOM) | G16: =SUM(G17:G19) -> 0 | J16: =SUM(J17:J25) -> 191002307.1 | K16: =SUM(K17:K25) -> 36203474.52 | P16: =SUM(J16:N16) -> 227205781.7
B17: Reserva Global de Reversão – RGR | D17: =SUM(J17:N17) -> 0 | F17: Custos Operacionais (CO) | J17: 0 | K17: 0 | P17: =SUM(J17:N17) -> 0
B18: Conta de Consumo de Combustíveis – CCC | D18: =SUM(J18:N18) -> 0 | F18: Receitas Irrecuperáveis - Encargos Setoriais (Vi) | J18: 0 | K18: 0 | P18: 0
B19: Taxa de Fisc. de Serviços de E.E. – TFSEE | D19: 1844490.826 | F19: Demais Receitas Irrecuperáveis (Vse) | J19: 1511058.662 | K19: 333432.1636 | P19: 1844490.826
B20: Conta de Desenvolvimento Energético – CDE | D20: 169939686.4 | F20: Custo Anual dos Ativos (CAA) | G20: =SUM(G21:G23) -> 0 | J20: 139281950.9 | K20: 30657735.52 | P20: 169939686.4
B21: Compensação financeira - CFURH | D21: 0 | F21: Remuneração do Capital (RC) | J21: 0 | K21: 0 | P21: 0
B22: Encargos Serv. Sist. - ESS e Energ. Reserv. - EER | D22: 23777686.37 | F22: Quota de Reintegração Regulatória (QRR) | J22: 23777686.37 | K22: 0 | P22: 23777686.37
B23: PROINFA | D23: 20619804.13 | F23: Custo anual das instalações móveis e imóveis (CAIMI) | J23: 16974480.36 | K23: 3645323.773 | P23: 20619804.13
B24: P&D e Eficiência Energética | D24: 11024113.96 | F24: Parcela B (VPB) | G24: =SUM(G20,G16) -> 0 | J24: 9457130.895 | K24: 1566983.066 | P24: 11024113.96
B25: Contribuição ONS. | D25: 0 | F25: Índice de Produtividade da Parcela B | J25: 0 | K25: 0
B26: TRANSPORTE | D26: =SUM(D27:D34) -> 172224057.6 | F26: Mecanismo de Incentivo à Qualidade | J26: =SUM(J27:J34) -> 126269214.7 | K26: =SUM(K27:K34) -> 45954842.91 | P26: =SUM(J26:N26) -> 172224057.6
B27: Rede Básica | D27: =SUM(J27:N27) -> 20616672 | F27: Parcela B com ajustes | G27: =(1-G25-G26)*G24 -> 0 | J27: 20616672 | K27: 0 | P27: =SUM(J27:N27) -> 20616672
B28: Rede Básica Fronteira | D28: =SUM(J28:N28) -> 3566160 | F28: Outras Receitas (OR) | J28: 3566160 | K28: 0 | P28: 3566160
B29: Rede Básica ONS (A2) | D29: 582734.96 | F29: Excedente de Reativos (ER) | J29: 582734.96 | K29: 0 | P29: 582734.96
B30: Rede Básica Export. (A2) | D30: 0 | F30: Ultrapassagem de Demanda (UD) | J30: 0 | K30: 0 | P30: 0
B31: MUST Itaipu | D31: 5532006.447 | F31: Parcela B deduzidas as outras receitas | G31: =G27-SUM(G28:G30) -> 0 | J31: 4377292.187 | K31: 1154714.26 | P31: 5532006.447
B32: Transporte de Itaipu | D32: 7165695.606 | J32: 7165695.606 | K32: 0 | P32: 7165695.606
B33: Conexão | D33: 1305928.853 | F33: 1. Receita Requerida (RR) | G33: =G27+D37 -> 877583626.7 | J33: 1305928.853 | K33: 0 | P33: 1305928.853
B34: Uso do sistema de distribuição e CCD | D34: 133454859.7 | J34: 88654731.07 | K34: 44800128.65 | P34: 133454859.7
B35: ENERGIA | D35: =SUM(J35:N35) -> 472350380.1 | J35: 388450578.1 | K35: 83899801.98 | P35: =SUM(J35:N35) -> 472350380.1
B36: RECEITA IRRECUPERÁVEL - RI | D36: 5803407.443 | J36: 5687599.736 | K36: 115807.7071 | P36: =SUM(J36:N36) -> 5803407.443
B37: VPA (ENCARGO + TRANSPORTE + ENERGIA) | D37: =D16+D26+D35+D36 -> 877583626.7 | J37: 711409699.6 | K37: 166173927.1 | P37: =SUM(J37:N37) -> 877583626.7
B39: Parcela B
D41: VPB1
B42: Parcela B | D42: =SUM(J42:N42) -> 379805062.8 | J42: 321723642.8 | K42: 58081419.97 | P42: =SUM(J42:N42) -> 379805062.8
B44: Financeiros
B46: FINANCEIROS | D46: =SUM(J46:N46) -> 19251134.18 | J46: 54810366.29 | K46: -35559232.11 | P46: =SUM(J46:N46) -> 19251134.18
B48: Total com financeiros | D48: =SUM(J48:N48) -> 1276639824 | J48: 1087943709 | K48: 188696115 | P48: =SUM(J48:N48) -> 1276639824

Sheet RB e Conexão
B1: REDE BÁSICA | D1: REDE BÁSICA FRONTEIRA | F1: MUST ITAIPU | H1: CONEXÃO | J1: TOTAL | M1: VERIFICAÇÃO
B2: DRA (R$) | C2: DRP(R$) | D2: DRA (R$) | E2: DRP(R$) | F2: DRA (R$) | G2: DRP(R$) | H2: DRA (R$) | I2: DRP(R$) | J2: DRA (R$) | K2: DRP(R$)
A3: EMG | B3: 18047208 | C3: 20616672 | D3: 4300728 | E3: 3566160 | F3: 4398956.45 | G3: 4377292.187 | H3: 0 | I3: 1305928.853 | J3: =B3+D3+F3+H3 -> 26746892.45 | K3: =C3+E3+G3+I3 -> 29866053.04
A4: ENF | B4: 0 | C4: 0 | D4: 0 | E4: 0 | F4: 1160429.216 | G4: 1154714.26 | H4: 0 | I4: 0 | J4: =B4+D4+F4+H4 -> 1160429.216 | K4: =C4+E4+G4+I4 -> 1154714.26
A8: EMG agrupada | B8: =SUM(B3:B7) -> 18047208 | C8: 20616672 | D8: 4300728 | E8: 3566160 | F8: 5559385.667 | G8: 5532006.447 | H8: 0 | I8: 1305928.853 | J8: 27907321.67 | K8: 31020767.3
A10: VERIFICAÇÃO | C10: =C8-Resultado!D30 -> 0 | E10: =E8-Resultado!D31 -> 0 | G10: =G8-Resultado!D34 -> 0 | I10: =I8-Resultado!D36 -> 0

Sheet CUSD
B1: A2 | D1: A3 | F1: A4 | H1: TOTAL | K1: Quadro ReSOMAo - Abertura | L1: EMG
B2: DRA (R$) | C2: DRP(R$) | D2: DRA (R$) | E2: DRP(R$) | F2: DRA (R$) | G2: DRP(R$) | H2: DRA (R$) | I2: DRP(R$) | K2: Nível | L2: Posto | M2: Montante | N2: CUSD (R$) | O2: id_SUBGRUPO | P2: id_POSTO | Q2: id_unidade
A3: EMG | B3: 76275947.02 | C3: 88654731.07 | D3: 968041.3073 | E3: 0 | F3: 809736.0149 | G3: 0 | H3: =B3+D3+F3 -> 78053724.34 | I3: =C3+E3+G3 -> 88654731.07 | K3: A2 | L3: DP | M3: 1954800 | N3: 51085416 | O3: 2 | P3: 1 | Q3: 1
A4: ENF | B4: 10447000.05 | C4: 9070440.761 | D4: 38098618.67 | E4: 35729687.89 | F4: 0 | G4: 0 | H4: =B4+D4+F4 -> 48545618.71 | I4: =C4+E4+G4 -> 44800128.65 | K4: A3 | L4: DP | M4: 16800 | N4: 0 | O4: 3 | P4: 1 | Q4: 1
K5: A3a | L5: DP | M5: 0 | N5: 0 | O5: 4 | P5: 1 | Q5: 1
K6: A4 | L6: DP | M6: 12000 | N6: 0 | O6: 5 | P6: 1 | Q6: 1
K7: AS | L7: DP | M7: 0 | N7: 0 | O7: 6 | P7: 1 | Q7: 1
A8: EMG agrupada | B8: =SUM(B3:B7) -> 86722947.07 | C8: 97725171.83 | D8: 39066659.97 | E8: 35729687.89 | F8: 809736.0149 | G8: 0 | H8: =B8+D8+F8 -> 126599343.1 | I8: =C8+E8+G8 -> 133454859.7 | K8: A2 | L8: DFP | M8: 2194030 | N8: 36350152 | O8: 2 | P8: 3 | Q8: 1
K9: A3 | L9: DFP | M9: 18000 | N9: 0 | O9: 3 | P9: 3 | Q9: 1
K10: A3a | L10: DFP | M10: 0 | N10: 0 | O10: 4 | P10: 3 | Q10: 1
A11: VERIFICAÇÃO | I11: =I8-Resultado!D37 -> 0 | K11: A4 | L11: DFP | M11: 12000 | N11: 0 | O11: 5 | P11: 3 | Q11: 1
K12: AS | L12: DFP | M12: 0 | N12: 0 | O12: 6 | P12: 3 | Q12: 1
H13: Valor Considerado | I13: =I8 -> 133454859.7 | K13: A2 | L13: E | M13: 326872.754 | N13: 1219163.069 | O13: 2 | P13: 9 | Q13: 2
K14: A3 | L14: E | M14: 6060.32004 | N14: 0 | O14: 3 | P14: 9 | Q14: 2
K15: A3a | L15: E | M15: 0 | N15: 0 | O15: 4 | P15: 9 | Q15: 2
K16: A4 | L16: E | M16: 2710.38848 | N16: 0 | O16: 5 | P16: 9 | Q16: 2
K17: AS | L17: E | M17: 0 | N17: 0 | O17: 6 | P17: 9 | Q17: 2
K20: Quadro ReSOMAo - Abertura | L20: ENF
K21: Nível | L21: Posto | M21: Montante | N21: CUSD (R$) | O21: id_SUBGRUPO | P21: id_POSTO | Q21: id_unidade
K22: A2 | L22: DP | M22: 210000 | N22: 5957700 | O22: 2 | P22: 1 | Q22: 1
K23: A3 | L23: DP | M23: 711360 | N23: 22528771.2 | O23: 3 | P23: 1 | Q23: 1
K24: A3a | L24: DP | M24: 0 | N24: 0 | O24: 4 | P24: 1 | Q24: 1
K25: A4 | L25: DP | M25: 0 | N25: 0 | O25: 5 | P25: 1 | Q25: 1
K26: AS | L26: DP | M26: 0 | N26: 0 | O26: 6 | P26: 1 | Q26: 1
K27: A2 | L27: DFP | M27: 199200 | N27: 2978040 | O27: 2 | P27: 3 | Q27: 1
K28: A3 | L28: DFP | M28: 712920 | N28: 10807867.2 | O28: 3 | P28: 3 | Q28: 1
K29: A3a | L29: DFP | M29: 0 | N29: 0 | O29: 4 | P29: 3 | Q29: 1
K30: A4 | L30: DFP | M30: 0 | N30: 0 | O30: 5 | P30: 3 | Q30: 1
K31: AS | L31: DFP | M31: 0 | N31: 0 | O31: 6 | P31: 3 | Q31: 1
K32: A2 | L32: E | M32: 48453.511 | N32: 134700.7606 | O32: 2 | P32: 9 | Q32: 2
K33: A3 | L33: E | M33: 324701.423 | N33: 2393049.488 | O33: 3 | P33: 9 | Q33: 2
K34: A3a | L34: E | M34: 0 | N34: 0 | O34: 4 | P34: 9 | Q34: 2
K35: A4 | L35: E | M35: 0 | N35: 0 | O35: 5 | P35: 9 | Q35: 2
K36: AS | L36: E | M36: 0 | N36: 0 | O36: 6 | P36: 9 | Q36: 2
K39: Quadro ReSOMAo - Abertura | L39: EMG agrupada
K40: Nível | L40: Posto | M40: Montante | N40: CUSD (R$) | O40: id_SUBGRUPO | P40: id_POSTO | Q40: id_unidade
K41: A2 | L41: DP | M41: =M3+M22 -> 2164800 | N41: =N3+N22 -> 57043116 | O41: 2 | P41: 1 | Q41: 1
K42: A3 | L42: DP | M42: =M4+M23 -> 728160 | N42: 22528771.2 | O42: 3 | P42: 1 | Q42: 1
K43: A3a | L43: DP | M43: =M5+M24 -> 0 | N43: 0 | O43: 4 | P43: 1 | Q43: 1
K44: A4 | L44: DP | M44: =M6+M25 -> 12000 | N44: 0 | O44: 5 | P44: 1 | Q44: 1
K45: AS | L45: DP | M45: =M7+M26 -> 0 | N45: 0 | O45: 6 | P45: 1 | Q45: 1
K46: A2 | L46: DFP | M46: =M8+M27 -> 2393230 | N46: 39328192 | O46: 2 | P46: 3 | Q46: 1
K47: A3 | L47: DFP | M47: =M9+M28 -> 730920 | N47: 10807867.2 | O47: 3 | P47: 3 | Q47: 1
K48: A3a | L48: DFP | M48: =M10+M29 -> 0 | N48: 0 | O48: 4 | P48: 3 | Q48: 1
K49: A4 | L49: DFP | M49: =M11+M30 -> 12000 | N49: 0 | O49: 5 | P49: 3 | Q49: 1
K50: AS | L50: DFP | M50: =M12+M31 -> 0 | N50: 0 | O50: 6 | P50: 3 | Q50: 1
K51: A2 | L51: E | M51: =M13+M32 -> 375326.265 | N51: 1353863.829 | O51: 2 | P51: 9 | Q51: 2
K52: A3 | L52: E | M52: =M14+M33 -> 330761.743 | N52: 2393049.488 | O52: 3 | P52: 9 | Q52: 2
K53: A3a | L53: E | M53: =M15+M34 -> 0 | N53: 0 | O53: 4 | P53: 9 | Q53: 2
K54: A4 | L54: E | M54: =M16+M35 -> 2710.38848 | N54: 0 | O54: 5 | P54: 9 | Q54: 2
K55: AS | L55: E | M55: =M17+M36 -> 0 | N55: 0 | O55: 6 | P55: 9 | Q55: 2

Sheet Mercado
B2: DADOS DE MERCADO DE ENERGIA E RECEITA VERIFICADA | J2: DADOS DE MERCADO DE ENERGIA E RECEITA VERIFICADA | S2: DADOS DE MERCADO DE ENERGIA E RECEITA VERIFICADA | AB2: DADOS DE MERCADO DE ENERGIA E RECEITA VERIFICADA | AK2: DADOS DE MERCADO DE ENERGIA E RECEITA VERIFICADA | AT2: DADOS DE MERCADO DE ENERGIA E RECEITA VERIFICADA
B4: EMG AGRUPADA | J4: EMG | AT4: ENF
B6: Dados de Mercado | J6: Dados de Mercado | S6: Dados de Mercado | AB6: Dados de Mercado | AK6: Dados de Mercado | AT6: Dados de Mercado
B8: Descrição | C8: MERCADO (MWh) | D8: RECEITA (R$) | F8: DESCRIÇÃO | G8: POR DENTRO | J8: Descrição | K8: MERCADO (MWh) | L8: RECEITA (R$) | N8: DESCRIÇÃO | O8: POR DENTRO | S8: Descrição | T8: MERCADO (MWh) | U8: RECEITA (R$) | W8: DESCRIÇÃO | X8: POR DENTRO | AB8: Descrição | AC8: MERCADO (MWh) | AD8: RECEITA (R$) | AF8: DESCRIÇÃO | AG8: POR DENTRO | AK8: Descrição | AL8: MERCADO (MWh) | AM8: RECEITA (R$) | AO8: DESCRIÇÃO | AP8: POR DENTRO | AT8: Descrição | AU8: MERCADO (MWh) | AV8: RECEITA (R$) | AX8: DESCRIÇÃO | AY8: POR DENTRO
B9: FORNECIMENTO | C9: =SUM(C10:C16) -> 1443361.796 | D9: =SUM(D10:D16) -> 1027885522 | F9: ICMS | G9: 0.144700846 | J9: FORNECIMENTO | K9: =SUM(K10:K16) -> 1161405.123 | L9: =SUM(L10:L16) -> 811504971.8 | N9: ICMS | O9: 0.1338549396 | AT9: FORNECIMENTO | AU9: =SUM(AU10:AU16) -> 281956.673 | AV9: =SUM(AV10:AV16) -> 216380550.6 | AX9: ICMS | AY9: 0.1855780937
B10: A1 | C10: =K10++AU10 -> 0 | D10: =L10+AV10 -> 0 | F10: PIS/COFINS | G10: 0.03851477713 | J10: A1 | K10: 0 | L10: 0 | N10: PIS/COFINS | O10: 0.0394824337 | AT10: A1 | AU10: 0 | AV10: 0 | AX10: PIS/COFINS | AY10: 0.03486776637
B11: A2 | C11: =K11+AU11 -> 0 | D11: 0 | J11: A2 | K11: 0 | L11: 0 | AT11: A2 | AU11: 0 | AV11: 0
B12: A3 | C12: =K12+T12+AC12+AL12+AU12 -> 177.853 | D12: 96342.33979 | F12: MWh Ano Anterior | G12: =O12+X12+AG12+AP12+AY12 -> 1920391.533 | J12: A3 | K12: 177.853 | L12: 96342.33979 | N12: MWh Ano Anterior | O12: 1559526.586 | AT12: A3 | AU12: 0 | AV12: 0 | AX12: MWh Ano Anterior | AY12: 360864.947
B13: A3a | C13: =K13+AU13 -> 0 | D13: 0 | F13: Variação | G13: =(C24-G26)/G12-1 -> 0.01752320994 | J13: A3a | K13: 0 | L13: 0 | N13: Variação | O13: 0.02815359314 | P13: =K24/O12-1 -> 0.02815359314 | AT13: A3a | AU13: 0 | AV13: 0 | AX13: Variação | AY13: -0.0284174262
B14: A4 | C14: 154705.416 | D14: 112158131.7 | F14: R$ Ano Anterior | G14: =O14+X14+AG14+AP14+AY14 -> 1207660757 | J14: A4 | K14: 120149.279 | L14: 88110298.49 | N14: R$ Ano Anterior | O14: 967718916.8 | AT14: A4 | AU14: 34556.137 | AV14: 24047833.21 | AX14: R$ Ano Anterior | AY14: 239941839.9
B15: As | C15: 0 | D15: 0 | F15: Variação | G15: =D24/G14-1 -> 0.002980333271 | J15: As | K15: 0 | L15: 0 | N15: Variação | O15: 0.00648139436 | AT15: As | AU15: 0 | AV15: 0 | AX15: Variação | AY15: -0.01113993457
B16: BT | C16: 1288478.527 | D16: 915631048.4 | J16: BT | K16: 1041077.991 | L16: 723298331 | AT16: BT | AU16: 247400.536 | AV16: 192332717.4
B17: SUPRIMENTO (Merc. TUSD + Sup. RB) | C17: 0 | D17: 0 | F17: Parâmetros de cálculo de RI | J17: SUPRIMENTO (Merc. TUSD + Sup. RB) | K17: 0 | L17: 0 | N17: Parâmetros de cálculo de RI | AT17: SUPRIMENTO (Merc. TUSD + Sup. RB) | AU17: 0 | AV17: 0 | AX17: Parâmetros de cálculo de RI | AY17: 0
B18: LIVRES A1 | C18: 0 | D18: 0 | F18: RR sem RI | G18: =O18+X18+AG18+AP18+AY18 -> 1251585282 | J18: LIVRES A1 | K18: 0 | L18: 0 | N18: RR sem RI | O18: 1027445743 | AT18: LIVRES A1 | AU18: 0 | AV18: 0 | AX18: RR sem RI | AY18: 224139539.4
B19: DEMAIS LIVRES | C19: 471925.189 | D19: 135432352.7 | F19: Financeiros | G19: =O19+X19+AG19+AP19+AY19 -> 19251134.18 | J19: DEMAIS LIVRES | K19: 431701.813 | L19: 122282523 | N19: Financeiros | O19: 54810366.29 | AT19: DEMAIS LIVRES | AU19: 40223.376 | AV19: 13149829.64 | AX19: Financeiros | AY19: -35559232.11
B20: DISTRIBUIÇÃO | C20: 38755.972 | D20: 9905741.54 | F20: Receita Bandeiras | G20: =O20+X20+AG20+AP20+AY20 -> 51704.45 | J20: DISTRIBUIÇÃO | K20: 10325.927 | L20: 2206182.759 | N20: Receita Bandeiras | O20: 41685.62 | AT20: DISTRIBUIÇÃO | AU20: 28430.045 | AV20: 7699558.781 | AX20: Receita Bandeiras | AY20: 10018.83
B21: GERADOR | C21: =K21+T21+AC21+AL21+AU21 -> 0 | D21: 38036371.6 | J21: GERADOR | K21: 0 | L21: 37997407.12 | AT21: GERADOR | AU21: 0 | AV21: 38964.48
B22: CDE Baixa Renda | C22: =K22+AU22 -> 0 | D22: 0 | J22: CDE Baixa Renda | K22: 0 | L22: 0 | AT22: CDE Baixa Renda | AU22: 0 | AV22: 0
B23: AJUSTE ECONÔMICO - BOLHA | C23: =K23+TAU23 -> 0 | D23: =L23+U23+AD23+AM23+AV23 -> 0 | J23: AJUSTE ECONÔMICO - BOLHA | K23: 0 | L23: 0 | AT23: AJUSTE ECONÔMICO - BOLHA | AU23: 0 | AV23: 0
B24: TOTAL | C24: =K24+AU24 -> 1954042.957 | D24: 1211259988 | J24: TOTAL | K24: 1603432.863 | L24: 973991084.7 | AT24: TOTAL | AU24: 350610.094 | AV24: 237268903.5
B25: ENERGIA DESTINADA APE/PIE | C25: 0 | D25: 0 | J25: ENERGIA DESTINADA APE/PIE | K25: 0 | L25: 0 | AT25: ENERGIA DESTINADA APE/PIE | AU25: 0
B26: MERCADO TOTAL BAIXA RENDA | C26: 182539.93 | D26: 0 | J26: MERCADO TOTAL BAIXA RENDA | K26: 162151.307 | L26: 0 | AT26: MERCADO TOTAL BAIXA RENDA | AU26: 20388.623 | AV26: 0
J28: Fonte: SAMP - março/23 | AT28: Fonte: SAMP - março/23
B29: DESCRIÇÃO - Tipo | C29: RECEITA (R$) | D29: % Total | E29: nº de consumidores | F29: MWh mensal | G29: Percentual RI | H29: Reais RI (c/tributos) | J29: DESCRIÇÃO - Tipo | K29: RECEITA (R$) | L29: % Total | M29: nº de consumidores | N29: MWh mensal | O29: Percentual RI | P29: Reais RI (c/tributos) | S29: DESCRIÇÃO - Tipo | T29: RECEITA (R$) | U29: % Total | V29: nº de consumidores | W29: MWh mensal | X29: Percentual RI | Y29: Reais RI | AB29: DESCRIÇÃO - Tipo | AC29: RECEITA (R$) | AD29: % Total | AE29: nº de consumidores | AF29: MWh mensal | AG29: Percentual RI | AH29: Reais RI | AK29: DESCRIÇÃO - Tipo | AL29: RECEITA (R$) | AM29: % Total | AN29: nº de consumidores | AO29: MWh mensal | AP29: Percentual RI | AQ29: Reais RI | AT29: DESCRIÇÃO - Tipo | AU29: RECEITA (R$) | AV29: % Total | AW29: nº de consumidores | AX29: MWh mensal | AY29: Percentual RI | AZ29: Reais RI (c/tributos)
B30: Residencial | C30: =K30+T30+AC30+AL30+AU30 -> 554497173.1 | D30: =C30/$C$38 -> 0.4577854288 | E30: =M30+V30+AE30+AN30+AW30 -> 482193 | F30: =N30+W30+AF30+AO30+AX30 -> 66965.476 | H30: =P30+Y30+AH30+AQ30+AZ30 -> 3699777.586 | J30: Residencial | K30: 418805633.8 | L30: 0.4299891861 | M30: 382275 | N30: 53025.129 | O30: 0.0064 | P30: 3602931.268 | S30: Residencial | AT30: Residencial | AU30: 135691539.4 | AV30: 0.5718892672 | AW30: 99918 | AX30: 13940.347 | AY30: 0.0007 | AZ30: 96846.31831
B31: Industrial | C31: =K31+T31+AC31+AL31+AU31 -> 204639483.6 | D31: =C31/$C$38 -> 0.1689476129 | E31: =M31+V31+AE31+AN31+AW31 -> 4145 | F31: =N31+W31+AF31+AO31+AX31 -> 51513.779 | H31: =P31+Y31+AH31+AQ31+AZ31 -> 842881.5203 | J31: Industrial | K31: 179157502.6 | L31: 0.1839416247 | M31: 3408 | N31: 46431.113 | O31: 0.0035 | P31: 842881.5203 | S31: Industrial | AT31: Industrial | AU31: 25481981.04 | AV31: 0.1073970531 | AW31: 737 | AX31: 5082.666 | AY31: 0 | AZ31: 0
B32: Comercial | C32: 182106128.4 | D32: 0.1503443771 | E32: 46125 | F32: 22536.379 | H32: 821047.9374 | J32: Comercial | K32: 135614169.4 | L32: 0.1392355346 | M32: 35761 | N32: 17332.676 | O32: 0.0044 | P32: 802086.5486 | S32: Comercial | AT32: Comercial | AU32: 46491959 | AV32: 0.19594628 | AW32: 10364 | AX32: 5203.703 | AY32: 0.0004 | AZ32: 18961.3888
B33: Rural | C33: 110330396.6 | D33: 0.09108729562 | E33: 59091 | F33: 11800.748 | H33: 432048.2721 | J33: Rural | K33: 107138985.5 | L33: 0.1099999653 | M33: 57957 | N33: 11482.686 | O33: 0.003 | P33: 432048.2721 | S33: Rural | AT33: Rural | AU33: 3191411.134 | AV33: 0.01345060852 | AW33: 1134 | AX33: 318.062 | AY33: 0 | AZ33: 0
B34: Iluminação Pública | C34: 40837407.15 | D34: 0.0337148156 | E34: 201 | F34: 7929.702 | H34: 0 | J34: Iluminação Pública | K34: 32469018.96 | L34: 0.03333605355 | M34: 198 | N34: 6395.09 | O34: 0 | P34: 0 | S34: Iluminação Pública | AT34: Iluminação Pública | AU34: 8368388.198 | AV34: 0.03526963742 | AW34: 3 | AX34: 1534.612 | AY34: 0 | AZ34: 0
B35: Poder Público | C35: 34149814.42 | D35: 0.02819362874 | E35: 4647 | F35: 4479.252 | H35: 7652.126911 | J35: Poder Público | K35: 28463524.81 | L35: 0.02922359892 | M35: 4234 | N35: 3848.25 | O35: 0.0002 | P35: 7652.126911 | S35: Poder Público | AT35: Poder Público | AU35: 5686289.607 | AV35: 0.02396559146 | AW35: 413 | AX35: 631.002 | AY35: 0 | AZ35: 0
B36: Serviço Público | C36: 34608945.98 | D36: 0.0285726816 | E36: 906 | F36: 4204.886 | H36: 0 | J36: Serviço Público | K36: 30175939.1 | L36: 0.03098174056 | M36: 751 | N36: 3732.064 | O36: 0 | P36: 0 | S36: Serviço Público | AT36: Serviço Público | AU36: 4433006.886 | AV36: 0.01868347188 | AW36: 155 | AX36: 472.822 | AY36: 0 | AZ36: 0
B37: Demais Classes | C37: 50090638.94 | D37: 0.04135415966 | E37: 168 | F37: 3251.82 | H37: 0 | J37: Demais | K37: 42166310.63 | L37: 0.0432922963 | M37: 145 | N37: 1247.531 | O37: 0 | P37: 0 | S37: Demais | AT37: Demais | AU37: 7924328.307 | AV37: 0.03339809048 | AW37: 23 | AX37: 2004.289 | AY37: 0 | AZ37: 0
B38: TOTAL | C38: 1211259988 | D38: =SUM(D30:D37) -> 1 | E38: =SUM(E30:E37) -> 597476 | F38: =SUM(F30:F37) -> 172682.042 | H38: =SUM(H30:H37) -> 5803407.443 | J38: TOTAL | K38: =SUM(K30:K37) -> 973991084.7 | L38: =SUM(L30:L37) -> 1 | M38: =SUM(M30:M37) -> 484729 | N38: =SUM(N30:N37) -> 143494.539 | P38: =SUM(P30:P37) -> 5687599.736 | S38: TOTAL | AT38: TOTAL | AU38: =SUM(AU30:AU37) -> 237268903.5 | AV38: =SUM(AV30:AV37) -> 1 | AW38: =SUM(AW30:AW37) -> 112747 | AX38: =SUM(AX30:AX37) -> 29187.503 | AZ38: =SUM(AZ30:AZ37) -> 115807.7071
C39: =K38+T38+AC38+AL38+AU38 -> 1211259988
B40: nº de consumidores | J40: nº de consumidores | S40: nº de consumidores | AB40: nº de consumidores | AK40: nº de consumidores | AT40: nº de consumidores
B41: A1 | C41: =K41+T41+AC41+AL41+AU41 -> 0 | J41: A1 | K41: 0 | S41: A1 | AT41: A1 | AU41: 0
B42: A2 | C42: =K42+T42+AC42+AL42+AU42 -> 2 | J42: A2 | K42: 2 | S42: A2 | AT42: A2 | AU42: 0
B43: A3 | C43: 3 | J43: A3 | K43: 3 | S43: A3 | AT43: A3 | AU43: 0
B44: A3a | C44: 0 | J44: A3a | K44: 0 | S44: A3a | AT44: A3a | AU44: 0
B45: A4 | C45: 747 | J45: A4 | K45: 572 | S45: A4 | AT45: A4 | AU45: 175
B46: As | C46: 0 | J46: As | K46: 0 | S46: As | AT46: As | AU46: 0
B47: BT | C47: 596724 | J47: BT | K47: 484152 | S47: BT | AT47: BT | AU47: 112572

Sheet RI
C1: Percentual Regulatório de Receitas Irrecuperáveis da EMG agrupada (ref: RTP 2021)
A2: Distribuidora | B2: RA0 2023 | C2: Residencial | D2: Industrial | E2: Comercial | F2: Rural | G2: Iluminação Pública | H2: Poder Público | I2: Serviço Público | J2: Demais
C3: (RTP 2021)
A4: EMG | B4: =Distribuidoras!J5 -> 973991084.7 | C4: 0.00494 | D4: 0.003695 | E4: 0.003745 | F4: 0.00163 | G4: 1e-05 | H4: 0.00072 | I4: 0 | J4: 0
A5: ENF | B5: =Distribuidoras!K5 -> 237268903.5 | C5: 0.00077 | D5: 1e-05 | E5: 0.00052 | F5: 0.00014 | G5: 0 | H5: 0 | I5: 0 | J5: 0
G6: 0
A9: EMG agrupada | B9: =SUM(B4:B8) -> 1211259988 | C9: =(C4*$B$4+C5*$B$5)/$B$9 -> 0.004123155279 | D9: 0.00297316 | E9: 0.003113267572 | F9: 0.001338129824 | G9: 8.041139757e-06 | H9: 0.0005789620625 | I9: 0 | J9: 0
C10: =C9 -> 0.004123155279 | D10: =D9 -> 0.00297316 | E10: 0.003113267572 | F10: 0.001338129824 | G10: 8.041139757e-06 | H10: 0.0005789620625 | I10: 0 | J10: 0
B14: Ponderação de Percentuais RI - RTP 2021
A15: DESCRIÇÃO - Tipo | B15: RECEITA (R$) | C15: Percentual RI | D15: Reais RI (c/tributos)
A16: Residencial | B16: =Mercado!C30 -> 554497173.1 | C16: =C9 -> 0.004123155279 | D16: =C16*B16/Mercado!$D$24*SUM(Mercado!$G$18:$G$20)/(1-SUM(Mercado!$G$9:$G$10)) -> 2936916.194
A17: Industrial | B17: =Mercado!C31 -> 204639483.6 | C17: =D9 -> 0.00297316 | D17: =C17*B17/Mercado!$D$24*SUM(Mercado!$G$18:$G$20)/(1-SUM(Mercado!$G$9:$G$10)) -> 781574.2442
A18: Comercial | B18: =Mercado!C32 -> 182106128.4 | C18: =E9 -> 0.003113267572 | D18: =C18*B18/Mercado!$D$24*SUM(Mercado!$G$18:$G$20)/(1-SUM(Mercado!$G$9:$G$10)) -> 728288.6405
A19: Rural | B19: =Mercado!C33 -> 110330396.6 | C19: =F9 -> 0.001338129824 | D19: =C19*B19/Mercado!$D$24*SUM(Mercado!$G$18:$G$20)/(1-SUM(Mercado!$G$9:$G$10)) -> 189651.3578
A20: Iluminação Pública | B20: =Mercado!C34 -> 40837407.15 | C20: =G9 -> 8.041139757e-06 | D20: =C20*B20/Mercado!$D$24*SUM(Mercado!$G$18:$G$20)/(1-SUM(Mercado!$G$9:$G$10)) -> 421.8308103
A21: Poder Público | B21: =Mercado!C35 -> 34149814.42 | C21: =H9 -> 0.0005789620625 | D21: =C21*B21/Mercado!$D$24*SUM(Mercado!$G$18:$G$20)/(1-SUM(Mercado!$G$9:$G$10)) -> 25398.08553
A22: Serviço Público | B22: =Mercado!C36 -> 34608945.98 | C22: =I9 -> 0 | D22: =C22*B22/Mercado!$D$24*SUM(Mercado!$G$18:$G$20)/(1-SUM(Mercado!$G$9:$G$10)) -> 0
A23: Demais | B23: =Mercado!C37 -> 50090638.94 | C23: =J9 -> 0 | D23: =C23*B23/Mercado!$D$24*SUM(Mercado!$G$18:$G$20)/(1-SUM(Mercado!$G$9:$G$10)) -> 0
A24: TOTAL | B24: =Mercado!C38 -> 1211259988 | D24: =SUM(D16:D23) -> 4662250.352
C28: Percentual Regulatório de Receitas Irrecuperáveis da EMG agrupada (ref: RTA 2022)
B29: RA02023 | C29: Residencial | D29: Industrial | E29: Comercial | F29: Rural | G29: Iluminação Pública | H29: Poder Público | I29: Serviço Público | J29: Demais
A30: EMG | B30: =Distribuidoras!J5 -> 973991084.7 | C30: 0.0064 | D30: 0.0035 | E30: 0.0044 | F30: 0.003 | G30: 0 | H30: 0.0002 | I30: 0 | J30: 0
A31: ENF | B31: =Distribuidoras!K5 -> 237268903.5 | C31: 0.0007 | D31: 0 | E31: 0.0004 | F31: 0 | G31: 0 | H31: 0 | I31: 0 | J31: 0
A35: EMG agrupada | B35: =SUM(B30:B34) -> 1211259988 | C35: =(C30*$B$30+C31*$B$31)/$B$35 -> 0.005283449661 | D35: =(D30*$B$30+D31*$B$31)/$B$35 -> 0.002814398915 | E35: 0.003616455903 | F35: 0.002412341927 | G35: 0 | H35: 0.0001608227951 | I35: 0 | J35: 0
C36: =C35 -> 0.005283449661 | D36: =D35 -> 0.002814398915 | E36: 0.003616455903 | F36: 0.002412341927 | G36: 0 | H36: 0.0001608227951 | I36: 0 | J36: 0
B38: Ponderação de Percentuais RI - RTA 2022
A39: DESCRIÇÃO - Tipo | B39: RECEITA (R$) | C39: Percentual RI | D39: Reais RI (c/tributos)
A40: Residencial | B40: =Mercado!C30 -> 554497173.1 | C40: =C35 -> 0.005283449661 | D40: =C40*B40/Mercado!$D$24*SUM(Mercado!$G$18:$G$20)/(1-SUM(Mercado!$G$9:$G$10)) -> 3763391.825
A41: Industrial | B41: =Mercado!C31 -> 204639483.6 | C41: =D35 -> 0.002814398915 | D41: =C41*B41/Mercado!$D$24*SUM(Mercado!$G$18:$G$20)/(1-SUM(Mercado!$G$9:$G$10)) -> 739839.667
A42: Comercial | B42: =Mercado!C32 -> 182106128.4 | C42: =E35 -> 0.003616455903 | D42: =C42*B42/Mercado!$D$24*SUM(Mercado!$G$18:$G$20)/(1-SUM(Mercado!$G$9:$G$10)) -> 845999.8032
A43: Rural | B43: =Mercado!C33 -> 110330396.6 | C43: =F35 -> 0.002412341927 | D43: =C43*B43/Mercado!$D$24*SUM(Mercado!$G$18:$G$20)/(1-SUM(Mercado!$G$9:$G$10)) -> 341898.0086
A44: Iluminação Pública | B44: =Mercado!C34 -> 40837407.15 | C44: =G33 -> 0 | D44: =C44*B44/Mercado!$D$24*SUM(Mercado!$G$18:$G$20)/(1-SUM(Mercado!$G$9:$G$10)) -> 0
A45: Poder Público | B45: =Mercado!C35 -> 34149814.42 | C45: =H35 -> 0.0001608227951 | D45: =C45*B45/Mercado!$D$24*SUM(Mercado!$G$18:$G$20)/(1-SUM(Mercado!$G$9:$G$10)) -> 7055.023759
A46: Serviço Público | B46: =Mercado!C36 -> 34608945.98 | C46: =I35 -> 0 | D46: =C46*B46/Mercado!$D$24*SUM(Mercado!$G$18:$G$20)/(1-SUM(Mercado!$G$9:$G$10)) -> 0
A47: Demais | B47: =Mercado!C37 -> 50090638.94 | C47: =J35 -> 0 | D47: =C47*B47/Mercado!$D$24*SUM(Mercado!$G$18:$G$20)/(1-SUM(Mercado!$G$9:$G$10)) -> 0
A48: TOTAL | B48: =Mercado!C38 -> 1211259988 | D48: =SUM(D40:D47) -> 5698184.328

Sheet FINANCEIROSAT
D4: EMG | E4: ENF | J4: EMG agrupada
C5: Receita Verificada | D5: 973991084.7 | E5: 237268903.5 | J5: =D5+E5 -> 1211259988
C6: Base de divisão p/Financeiros | D6: =D5 -> 973991084.7 | E6: =E5 -> 237268903.5 | J6: =D6+E6 -> 1211259988 | L6: =J5*(1+Mercado!G13) -> 1232485151 | M6: =J6/L6-1 -> -0.01722143512
D7: 0.05627399178 | E7: -0.1498689107 | J7: =J8/J6 -> 0.01589347817 | K7: =SUM(K10:K215) -> 0.01589347817 | L7: =D8/D6 -> 0.05627399178
C8: Total dos financeiros | D8: =Distribuidoras!J46 -> 54810366.29 | E8: =Distribuidoras!K46 -> -35559232.11 | J8: =D8+E8 -> 19251134.18
C9: Nome do Financeiro | D9: =SUM(D10:D215) -> 54810366.29 | E9: =SUM(E10:E215) -> -35559232.11 | F9: =SUM(F10:F106) -> 0 | G9: 0 | H9: 0 | I9: 0 | J9: =SUM(J10:J215) -> 19251134.18 | L9: Tipo | M9: Grupo Tarifário | N9: idDet1 | O9: idDet2 | P9: idDet3 | Q9: id_Grupo_TARIFA | R9: id_Detalhe_Grupo_TARIFA | S9: id_Tipo_Tarifa
C10: CVA ccc | D10: 0 | E10: 0 | J10: =D10+E10 -> 0 | K10: =J10/$J$6 -> 0 | L10: CVA | M10: Encargo - CCC | N10: 19 | O10: 60 | P10: 999 | Q10: 3 | R10: 13 | S10: 9
C11: CVA cde | D11: -1445429.979 | E11: -642547.5221 | J11: =D11+E11 -> -2087977.501 | K11: =J11/$J$6 -> -0.00172380622 | L11: CVA | M11: Encargo - CDE - TUSD | N11: 19 | O11: 60 | P11: 999 | Q11: 3 | R11: 15 | S11: 9
C12: CVA cde energia | D12: 0 | E12: 0 | J12: =D12+E12 -> 0 | K12: 0 | L12: CVA | M12: Encargo - CDE - TE | N12: 19 | O12: 60 | P12: 999 | Q12: 3 | R12: 25 | S12: 9
C13: CVA RB - Nodal | D13: 2111594.621 | E13: 0 | J13: 2111594.621 | K13: 0.001743304197 | L13: CVA | M13: Rede Básica - Genérico | N13: 19 | O13: 60 | P13: 999 | Q13: 1 | R13: 1 | S13: 9
C14: CVA RB - Fronteira | D14: 365252.1742 | E14: 0 | J14: 365252.1742 | K14: 0.000301547296 | L14: CVA | M14: Rede Básica - Genérico | N14: 19 | O14: 60 | P14: 999 | Q14: 1 | R14: 1 | S14: 9
C15: CVA RB - TUSDg EXP | D15: 0 | E15: 0 | J15: 0 | K15: 0 | L15: CVA | M15: Rede Básica - Genérico | N15: 19 | O15: 60 | P15: 999 | Q15: 1 | R15: 1 | S15: 9
C16: CVA RB - TUSDg ONS | D16: 59684.70599 | E16: 0 | J16: 59684.70599 | K16: 4.927489273e-05 | L16: CVA | M16: Rede Básica - Genérico | N16: 19 | O16: 60 | P16: 999 | Q16: 1 | R16: 1 | S16: 9
C17: CVA RB - EUST Itaipu | D17: 448329.7127 | E17: 0 | J17: 448329.7127 | K17: 0.0003701349975 | L17: CVA | M17: Rede Básica - Genérico | N17: 19 | O17: 60 | P17: 999 | Q17: 1 | R17: 1 | S17: 9
C18: CVA - Transporte Itaipu | D18: 1426915.198 | E18: 0 | J18: 1426915.198 | K18: 0.001178042049 | L18: CVA | M18: Transporte - Tranporte Itaipu | N18: m | O18: 60 | P18: 999 | Q18: 1 | R18: 21 | S18: 9
C19: CVA - Energia - Energia de Revenda | D19: 2027155.196 | E19: 4179634.287 | J19: 6206789.483 | K19: 0.005124242147 | L19: CVA | M19: Energia - Energia de Revenda | N19: 47 | O19: 60 | P19: 999 | Q19: 2 | R19: 11 | S19: 9
C20: CVA - Energia - Perda Não Técnica | D20: 6796.074469 | E20: 693.1358252 | J20: 7489.210294 | K20: 6.182991568e-06 | L20: CVA | M20: Energia - Perda Não Técnica | N20: 19 | O20: 60 | P20: 999 | Q20: 2 | R20: 9 | S20: 9
C21: CVA - Energia - Perda Técnica | D21: 384052.6549 | E21: 288864.7334 | J21: 672917.3884 | K21: 0.0005555515702 | L21: CVA | M21: Energia - Perda Técnica | N21: 19 | O21: 60 | P21: 999 | Q21: 2 | R21: 8 | S21: 9
C22: CVA - Energia - Perda de RB sobre a distribuição | D22: 2975.945139 | E22: 0 | J22: 2975.945139 | K22: 2.456900391e-06 | L22: CVA | M22: Energia - Perda Rede Básica sobre Dist. | N22: 19 | O22: 60 | P22: 999 | Q22: 2 | R22: 10 | S22: 9
C23: CVA - Energia - Perda de RB sobre o mercado cativo | D23: 15434.8785 | E23: 0 | J23: 15434.8785 | K23: 1.274282867e-05 | L23: CVA | M23: Energia - Perda Rede Básica sobre mercado Cat. | N23: 19 | O23: 60 | P23: 999 | Q23: 2 | R23: 24 | S23: 9
C24: CVA - Encargos - PROINFA | D24: -1786434.338 | E24: -454796.362 | J24: -2241230.7 | K24: -0.001850330005 | L24: CVA | M24: Encargo - PROINFA | N24: 19 | O24: 60 | P24: 999 | Q24: 3 | R24: 18 | S24: 9
C25: CVA - Encargos - CFURH | D25: 0 | E25: 0 | J25: 0 | K25: 0 | L25: CVA | M25: Encargo - CFURH | N25: 19 | O25: 60 | P25: 999 | Q25: 3 | R25: 16 | S25: 9
C26: CVA - Encargos - ESS/EER | D26: 901646.5528 | E26: 0 | J26: 901646.5528 | K26: 0.0007443873004 | L26: CVA | M26: Encargo - ESS/EER | N26: 19 | O26: 60 | P26: 999 | Q26: 3 | R26: 17 | S26: 9
C27: Saldo a Compensar CVAccc | D27: 0 | E27: 0 | J27: 0 | K27: 0 | L27: CVA Saldo a compensar | M27: Encargo - CCC | N27: 19 | O27: 64 | P27: 999 | Q27: 3 | R27: 13 | S27: 9
C28: Saldo a Compensar CVAcde | D28: -86201.76248 | E28: 72324.68336 | J28: -13877.07912 | K28: -1.145673039e-05 | L28: CVA Saldo a compensar | M28: Encargo - CDE - TUSD | N28: 19 | O28: 64 | P28: 999 | Q28: 3 | R28: 15 | S28: 9
C29: Saldo a Compensar CVA cde energia | D29: 0 | E29: 0 | J29: 0 | K29: 0 | L29: CVA Saldo a compensar | M29: Encargo - CDE - TE | N29: 19 | O29: 64 | P29: 999 | Q29: 3 | R29: 25 | S29: 9
C30: Saldo a Compensar CVA RB - Nodal | D30: -12483.73585 | E30: 0 | J30: -12483.73585 | K30: -1.030640488e-05 | L30: CVA Saldo a compensar | M30: Rede Básica - Genérico | N30: 19 | O30: 64 | P30: 999 | Q30: 1 | R30: 1 | S30: 9
C31: Saldo a Compensar CVA RB - Fronteira | D31: -2159.368856 | E31: 0 | J31: -2159.368856 | K31: -1.782745965e-06 | L31: CVA Saldo a compensar | M31: Rede Básica - Genérico | N31: 19 | O31: 64 | P31: 999 | Q31: 1 | R31: 1 | S31: 9
C32: Saldo a Compensar CVA RB - TUSDg EXP | D32: 0 | E32: 0 | J32: 0 | K32: 0 | L32: CVA Saldo a compensar | M32: Rede Básica - Genérico | N32: 19 | O32: 64 | P32: 999 | Q32: 1 | R32: 1 | S32: 9
C33: Saldo a Compensar CVA RB - TUSDg ONS | D33: -352.8556554 | E33: 0 | J33: -352.8556554 | K33: -2.913128963e-07 | L33: CVA Saldo a compensar | M33: Rede Básica - Genérico | N33: 19 | O33: 64 | P33: 999 | Q33: 1 | R33: 1 | S33: 9
C34: Saldo a Compensar CVA RB - EUST Itaipu | D34: -2650.52281 | E34: 0 | J34: -2650.52281 | K34: -2.188236081e-06 | L34: CVA Saldo a compensar | M34: Transporte - EUST Itaipu | N34: 19 | O34: 64 | P34: 999 | Q34: 1 | R34: 23 | S34: 9
C35: Saldo a Compensar CVA - Transporte Itaipu | D35: -7340.433396 | E35: 0 | J35: -7340.433396 | K35: -6.060163356e-06 | L35: CVA Saldo a compensar | M35: Transporte - Tranporte Itaipu | N35: 19 | O35: 64 | P35: 999 | Q35: 1 | R35: 21 | S35: 9
C36: Saldo a Compensar CVA - Energia - Energia de Revenda | D36: 307710.346 | E36: 116967.4971 | J36: 424677.8431 | K36: 0.0003506083312 | L36: CVA Saldo a compensar | M36: Energia - Energia de Revenda | N36: 19 | O36: 64 | P36: 999 | Q36: 2 | R36: 11 | S36: 9
C37: Saldo a Compensar CVA - Energia - Perda Não Técnica | D37: 1031.604502 | E37: 19.39747764 | J37: 1051.00198 | K37: 8.676931376e-07 | L37: CVA Saldo a compensar | M37: Energia - Perda Não Técnica | N37: 19 | O37: 64 | P37: 999 | Q37: 2 | R37: 9 | S37: 9
C38: Saldo a Compensar CVA - Energia - Perda Técnica | D38: 58296.95505 | E38: 8083.909393 | J38: 66380.86444 | K38: 5.480315134e-05 | L38: CVA Saldo a compensar | M38: Energia - Perda Técnica | N38: 19 | O38: 64 | P38: 999 | Q38: 2 | R38: 8 | S38: 9
C39: Saldo a Compensar CVA - Energia - Perda de RB sobre a distribuição | D39: 451.7311306 | E39: 0 | J39: 451.7311306 | K39: 3.729431625e-07 | L39: CVA Saldo a compensar | M39: Energia - Perda Rede Básica sobre Dist. | N39: 19 | O39: 64 | P39: 999 | Q39: 2 | R39: 10 | S39: 9
C40: Saldo a Compensar CVA - Energia - Perda de RB sobre o mercado cativo | D40: 2342.924614 | E40: 0 | J40: 2342.924614 | K40: 1.934287137e-06 | L40: CVA Saldo a compensar | M40: Energia - Perda Rede Básica sobre mercado Cat. | N40: 19 | O40: 64 | P40: 999 | Q40: 2 | R40: 24 | S40: 9
C41: Saldo a Compensar CVA - Encargos - PROINFA | D41: -48830.96306 | E41: 16543.15177 | J41: -32287.81128 | K41: -2.665638393e-05 | L41: CVA Saldo a compensar | M41: Encargo - PROINFA | N41: 19 | O41: 64 | P41: 999 | Q41: 3 | R41: 18 | S41: 9
C42: Saldo a Compensar CVA - Encargos - CFURH | D42: 0 | E42: 0 | J42: 0 | K42: 0 | L42: CVA Saldo a compensar | M42: Encargo - CFURH | N42: 19 | O42: 64 | P42: 999 | Q42: 3 | R42: 16 | S42: 9
C43: Saldo a Compensar CVA - Encargos - ESS/EER | D43: 302623.8598 | E43: 0 | J43: 302623.8598 | K43: 0.0002498421996 | L43: CVA Saldo a compensar | M43: Encargo - ESS/EER | N43: 19 | O43: 64 | P43: 999 | Q43: 3 | R43: 17 | S43: 9
C44: Neutralidade da Parcela A - Energia Requerida sem perdas | D44: -888579.5256 | E44: -22657.89009 | J44: -911237.4157 | K44: -0.0007523053882 | L44: Neutralidade | M44: Energia - Energia de Revenda | N44: 20 | O44: 60 | P44: 999 | Q44: 2 | R44: 11 | S44: 9
C45: Neutralidade da Parcela A - Perdas na RB (sobre as perdas na D) | D45: 178984.5888 | E45: 0 | J45: 178984.5888 | K45: 0.0001477672758 | L45: Neutralidade | M45: Energia - Perda Rede Básica sobre Dist. | N45: 20 | O45: 60 | P45: 999 | Q45: 2 | R45: 10 | S45: 9
C46: Neutralidade da Parcela A - Perdas na RB (sobre o mercado cativo) | D46: 1013605.251 | E46: 0 | J46: 1013605.251 | K46: 0.0008368189003 | L46: Neutralidade | M46: Energia - Perda Rede Básica sobre mercado Cat. | N46: 20 | O46: 60 | P46: 999 | Q46: 2 | R46: 24 | S46: 9
C47: Neutralidade da Parcela A - Perdas não Técnicas | D47: -23588.23528 | E47: -78.54206956 | J47: -23666.77735 | K47: -1.953897394e-05 | L47: Neutralidade | M47: Energia - Perda Não Técnica | N47: 20 | O47: 60 | P47: 999 | Q47: 2 | R47: 9 | S47: 9
C48: Neutralidade da Parcela A - Perdas Técnicas | D48: 734944.8259 | E48: -104090.5485 | J48: 630854.2774 | K48: 0.0005208248299 | L48: Neutralidade | M48: Energia - Perda Técnica | N48: 20 | O48: 60 | P48: 999 | Q48: 2 | R48: 8 | S48: 9
C49: Neutralidade da Parcela A - CCC | D49: 0 | E49: 0 | J49: 0 | K49: 0 | L49: Neutralidade | M49: Encargo - CCC | N49: 20 | O49: 60 | P49: 999 | Q49: 3 | R49: 13 | S49: 9
C50: Neutralidade da Parcela A - CDE | D50: -1367466.637 | E50: 457396.3327 | J50: -910070.3043 | K50: -0.0007513418367 | L50: Neutralidade | M50: Encargo - CDE - TUSD | N50: 20 | O50: 60 | P50: 999 | Q50: 3 | R50: 15 | S50: 9
C51: Neutralidade da Parcela A - CDE Energia | D51: 0 | E51: 0 | J51: 0 | K51: 0 | L51: Neutralidade | M51: Encargo - CDE - TE | N51: 10 | O51: 60 | P51: 999 | Q51: 3 | R51: 25 | S51: 9
C52: Neutralidade da Parcela A - CFURH | D52: 0 | E52: 0 | J52: 0 | K52: 0 | L52: Neutralidade | M52: Encargo - CFURH | N52: 20 | O52: 60 | P52: 999 | Q52: 3 | R52: 16 | S52: 9
C53: Neutralidade da Parcela A - ESS/ERR | D53: 157809.4176 | E53: 0 | J53: 157809.4176 | K53: 0.0001302853385 | L53: Neutralidade | M53: Encargo - ESS/EER | N53: 20 | O53: 60 | P53: 999 | Q53: 3 | R53: 17 | S53: 9
C54: Neutralidade da Parcela A - ONS | D54: 0 | E54: 0 | J54: 0 | K54: 0 | L54: Neutralidade | M54: Encargo - ONS | N54: 20 | O54: 60 | P54: 999 | Q54: 3 | R54: 20 | S54: 9
C55: Neutralidade da Parcela A - P&D | D55: 0.02193787217 | E55: 0.0002159320854 | J55: 0.02215380426 | K55: 1.828988365e-11 | L55: Neutralidade | M55: Encargo - P&D | N55: 20 | O55: 60 | P55: 999 | Q55: 3 | R55: 19 | S55: 9
C56: Neutralidade da Parcela A - PROINFA | D56: -367837.8764 | E56: 69271.60385 | J56: -298566.2725 | K56: -0.00024649231 | L56: Neutralidade | M56: Encargo - PROINFA | N56: 20 | O56: 60 | P56: 999 | Q56: 3 | R56: 18 | S56: 9
C57: Neutralidade da Parcela A - TFSEE | D57: -26519.5465 | E57: 1357.900071 | J57: -25161.64643 | K57: -2.07731178e-05 | L57: Neutralidade | M57: Encargo - TFSEE | N57: 20 | O57: 60 | P57: 999 | Q57: 3 | R57: 14 | S57: 9
C58: Neutralidade da Parcela A - Liminar | D58: 0 | E58: 0 | J58: 0 | K58: 0 | L58: Liminar ABRACE | M58: Encargo - CDE - TUSD | N58: 22 | O58: 85 | P58: 85 | Q58: 3 | R58: 15 | S58: 9
C59: Neutralidade da Parcela A - CONEXÃO D | D59: 0 | E59: 0 | J59: 0 | K59: 0 | L59: Neutralidade | M59: Transporte - Conexão D | N59: 20 | O59: 60 | P59: 999 | Q59: 1 | R59: 4 | S59: 9
C60: Neutralidade da Parcela A - CONEXÃO T | D60: 0 | E60: 0 | J60: 0 | K60: 0 | L60: Neutralidade | M60: Transporte - Conexão T | N60: 20 | O60: 60 | P60: 999 | Q60: 1 | R60: 3 | S60: 9
C61: Neutralidade da Parcela A - EUSD | D61: -1543948.671 | E61: 252216.8316 | J61: -1291731.839 | K61: -0.001066436481 | L61: Neutralidade | M61: Transporte - EUSD | N61: 20 | O61: 60 | P61: 999 | Q61: 1 | R61: 7 | S61: 9
C62: Neutralidade da Parcela A - EUST - CI | D62: 0 | E62: 0 | J62: 0 | K62: 0 | L62: Neutralidade | M62: Transporte - CI | N62: 20 | O62: 60 | P62: 999 | Q62: 1 | R62: 22 | S62: 9
C63: Neutralidade da Parcela A - EUST - RB | D63: -607972.1979 | E63: 0 | J63: -607972.1979 | K63: -0.0005019336921 | L63: Neutralidade | M63: Transporte - Rede Básica | N63: 20 | O63: 60 | P63: 999 | Q63: 1 | R63: 1 | S63: 9
C64: Neutralidade da Parcela A - EUST - FR | D64: 8463.846153 | E64: 0 | J64: 8463.846153 | K64: 6.987637861e-06 | L64: Neutralidade | M64: Transporte - Fronteira | N64: 20 | O64: 60 | P64: 999 | Q64: 1 | R64: 2 | S64: 9
C65: Neutralidade da Parcela A - EUST - ITAIPU | D65: 87685.60907 | E65: 0 | J65: 87685.60907 | K65: 7.239206274e-05 | L65: Neutralidade | M65: Transporte - EUST Itaipu | N65: 20 | O65: 60 | P65: 999 | Q65: 1 | R65: 23 | S65: 9
C66: Neutralidade da Parcela A - TRANSPORTE ITAIPU | D66: 199846.3045 | E66: 0 | J66: 199846.3045 | K66: 0.0001649904285 | L66: Neutralidade | M66: Transporte - Tranporte Itaipu | N66: 20 | O66: 60 | P66: 999 | Q66: 1 | R66: 21 | S66: 9
C67: Neutralidade da Parcela A - TUSDg ONS (A2) | D67: 2195.378663 | E67: 0 | J67: 2195.378663 | K67: 1.812475178e-06 | L67: Neutralidade | M67: Transporte - TUSDg ONS | N67: 20 | O67: 60 | P67: 999 | Q67: 1 | R67: 5 | S67: 9
C68: Neutralidade da Parcela A - TUSDg T (A2) | D68: 0 | E68: 0 | J68: 0 | K68: 0 | L68: Neutralidade | M68: Transporte - TUSDg T | N68: 20 | O68: 60 | P68: 999 | Q68: 1 | R68: 6 | S68: 9
C69: Neutralidade da Parcela A - RECEITA IRRECUPERÁVEL | D69: -1641942.853 | E69: -36566.32209 | J69: -1678509.175 | K69: -0.001385754661 | L69: Neutralidade | M69: Receita Irrecuperável | N69: 20 | O69: 60 | P69: 999 | Q69: 5 | R69: 999 | S69: 9
C70: Neutralidade da Parcela A - CDE COVID TE | D70: 80802.81161 | E70: 24558.81647 | J70: 105361.6281 | K70: 8.698514696e-05 | L70: Neutralidade | M70: Encargo - CDE Covid - TE | N70: 20 | O70: 60 | P70: 999 | Q70: 3 | R70: 25 | S70: 9
C71: Neutralidade da Parcela A - CDE Covid TUSD | D71: 61296.09448 | E71: -17975.46515 | J71: 43320.62933 | K71: 3.576493052e-05 | L71: Neutralidade | M71: Encargo - CDE Covid - TUSD | N71: 20 | O71: 60 | P71: 999 | Q71: 3 | R71: 12 | S71: 9
C72: Neutralidade da Parcela A - CDE Elet | D72: 0 | E72: 0 | J72: 0 | K72: 0 | L72: Neutralidade | M72: Encargo - CDE Elet | N72: 20 | O72: 60 | P72: 999 | Q72: 3 | R72: 28 | S72: 9
C73: Sobrecontratação/Reversão de Energia - Energia de Revenda | D73: 40210597.54 | E73: 0 | J73: 40210597.54 | K73: 0.03319733 | L73: SOBRECONTRATAÇÃO | M73: Energia - Energia de Revenda | N73: 22 | O73: 60 | P73: 106 | Q73: 2 | R73: 11 | S73: 9
C74: Sobrecontratação/Reversão de Energia - Perda Não Técnica | D74: 134806.7557 | E74: 0 | J74: 134806.7557 | K74: 0.0001112946494 | L74: SOBRECONTRATAÇÃO | M74: Energia - Perda Não Técnica | N74: 22 | O74: 60 | P74: 106 | Q74: 2 | R74: 9 | S74: 9
C75: Sobrecontratação/Reversão de Energia - Perda Técnica | D75: 7618058.436 | E75: 0 | J75: 7618058.436 | K75: =J75/$J$6 -> 0.006289366866 | L75: SOBRECONTRATAÇÃO | M75: Energia - Perda Técnica | N75: 22 | O75: 60 | P75: 106 | Q75: 2 | R75: 8 | S75: 9
C76: Sobrecontratação/Reversão de Energia - Perda Rede Básica sobre Dist. | D76: 59030.77009 | E76: 0 | J76: =D76+E76 -> 59030.77009 | K76: 4.873501202e-05 | L76: SOBRECONTRATAÇÃO | M76: Energia - Perda Rede Básica sobre Dist. | N76: 22 | O76: 60 | P76: 106 | Q76: 2 | R76: 10 | S76: 9
C77: Sobrecontratação/Reversão de Energia - Perda Rede Básica sobre mercado Cat. | D77: 306165.8471 | E77: 0 | J77: 306165.8471 | K77: 0.0002527664168 | L77: SOBRECONTRATAÇÃO | M77: Energia - Perda Rede Básica sobre mercado Cat. | N77: 22 | O77: 60 | P77: 106 | Q77: 2 | R77: 24 | S77: 9
C78: Garantias financeiras na contratação regulada de energia (CCEAR) de Energia - Energia de Revenda | D78: 347918.0469 | E78: 0 | J78: 347918.0469 | K78: 0.000287236473 | L78: Garantias financeiras na contratação regulada de energia (CCEAR) | M78: Energia - Energia de Revenda | N78: 22 | O78: 60 | P78: 102 | Q78: 2 | R78: 11 | S78: 9
C79: Garantias financeiras na contratação regulada de energia (CCEAR) de Energia - Perda Não Técnica | D79: 1166.401547 | E79: 0 | J79: 1166.401547 | K79: 9.629654722e-07 | L79: Garantias financeiras na contratação regulada de energia (CCEAR) | M79: Energia - Perda Não Técnica | N79: 22 | O79: 60 | P79: 102 | Q79: 2 | R79: 9 | S79: 9
C80: Garantias financeiras na contratação regulada de energia (CCEAR) de Energia - Perda Técnica | D80: 65914.4647 | E80: 0 | J80: 65914.4647 | K80: 5.441809796e-05 | L80: Garantias financeiras na contratação regulada de energia (CCEAR) | M80: Energia - Perda Técnica | N80: 22 | O80: 60 | P80: 102 | Q80: 2 | R80: 8 | S80: 9
C81: Garantias financeiras na contratação regulada de energia (CCEAR) de Energia - Perda Rede Básica sobre Dist. | D81: 510.7576483 | E81: 0 | J81: 510.7576483 | K81: 4.216746637e-07 | L81: Garantias financeiras na contratação regulada de energia (CCEAR) | M81: Energia - Perda Rede Básica sobre Dist. | N81: 22 | O81: 60 | P81: 102 | Q81: 2 | R81: 10 | S81: 9
C82: Garantias financeiras na contratação regulada de energia (CCEAR) de Energia - Perda Rede Básica sobre mercado Cat. | D82: 2649.068406 | E82: 0 | J82: 2649.068406 | K82: 2.187035345e-06 | L82: Garantias financeiras na contratação regulada de energia (CCEAR) | M82: Energia - Perda Rede Básica sobre mercado Cat. | N82: 22 | O82: 60 | P82: 102 | Q82: 2 | R82: 24 | S82: 9
C83: Repasse de ultrapassagem de Supridas/Permissionárias de Energia - Energia de Revenda | D83: 0 | E83: 0 | J83: 0 | K83: 0 | L83: Repasse de ultrapassagem de Supridas/Permissionárias | M83: Energia - Energia de Revenda | N83: 22 | O83: 60 | P83: 187 | Q83: 2 | R83: 11 | S83: 9
C84: Repasse de ultrapassagem de Supridas/Permissionárias de Energia - Perda Não Técnica | D84: 0 | E84: 0 | J84: 0 | K84: 0 | L84: Repasse de ultrapassagem de Supridas/Permissionárias | M84: Energia - Perda Não Técnica | N84: 22 | O84: 60 | P84: 187 | Q84: 2 | R84: 9 | S84: 9
C85: Repasse de ultrapassagem de Supridas/Permissionárias de Energia - Perda Técnica | D85: 0 | E85: 0 | J85: 0 | K85: 0 | L85: Repasse de ultrapassagem de Supridas/Permissionárias | M85: Energia - Perda Técnica | N85: 22 | O85: 60 | P85: 187 | Q85: 2 | R85: 8 | S85: 9
C86: Repasse de ultrapassagem de Supridas/Permissionárias de Energia - Perda Rede Básica sobre Dist. | D86: 0 | E86: 0 | J86: 0 | K86: 0 | L86: Repasse de ultrapassagem de Supridas/Permissionárias | M86: Energia - Perda Rede Básica sobre Dist. | N86: 22 | O86: 60 | P86: 187 | Q86: 2 | R86: 10 | S86: 9
C87: Repasse de ultrapassagem de Supridas/Permissionárias de Energia - Perda Rede Básica sobre mercado Cat. | D87: 0 | E87: 0 | J87: 0 | K87: 0 | L87: Repasse de ultrapassagem de Supridas/Permissionárias | M87: Energia - Perda Rede Básica sobre mercado Cat. | N87: 22 | O87: 60 | P87: 187 | Q87: 2 | R87: 24 | S87: 9
C88: Conselho de Consumidores | D88: 0 | E88: 0 | J88: 0 | K88: 0 | L88: ReN 451/2011 - Reversão de orçamento do Conselho de Consumidor | M88: Parcela B | N88: 22 | O88: 60 | P88: 188 | Q88: 4 | R88: 999 | S88: 9
C89: Ajuste CUSD | D89: 2684642.667 | E89: -829687.1677 | J89: 1854955.499 | K89: 0.00153142638 | L89: Concatenação dos CUSDs | M89: Transporte - EUSD | N89: 22 | O89: 60 | P89: 119 | Q89: 1 | R89: 7 | S89: 9
C90: Financeiros residuais do encargo de ONS | D90: 8300.036521 | E90: 0 | J90: 8300.036521 | K90: 6.852398826e-06 | L90: Genérico | M90: Parcela B | N90: 22 | O90: 60 | P90: 999 | Q90: 4 | R90: 999 | S90: 9
C91: Previsão de Risco Hidrológico | D91: 24960849.09 | E91: 5458860.076 | J91: 30419709.17 | K91: 0.02511410388 | L91: Previsão de Risco Hidrológico | M91: Energia - Energia de Revenda | N91: 22 | O91: 60 | P91: 220 | Q91: 2 | R91: 11 | S91: 9
C92: Previsão de Risco Hidrológico | D92: 83681.69815 | E92: 905.2781232 | J92: 84586.97627 | K92: 6.983387307e-05 | L92: Previsão de Risco Hidrológico | M92: Energia - Perda Não Técnica | N92: 22 | O92: 60 | P92: 220 | Q92: 2 | R92: 9 | S92: 9
C93: Previsão de Risco Hidrológico | D93: 4728932.635 | E93: 377275.1519 | J93: 5106207.787 | K93: 0.00421561666 | L93: Previsão de Risco Hidrológico | M93: Energia - Perda Técnica | N93: 22 | O93: 60 | P93: 220 | Q93: 2 | R93: 8 | S93: 9
C94: Previsão de Risco Hidrológico | D94: 36643.52767 | E94: 0 | J94: 36643.52767 | K94: 3.025240495e-05 | L94: Previsão de Risco Hidrológico | M94: Energia - Perda Rede Básica sobre Dist. | N94: 22 | O94: 60 | P94: 220 | Q94: 2 | R94: 10 | S94: 9
C95: Previsão de Risco Hidrológico | D95: 190053.3683 | E95: 0 | J95: 190053.3683 | K95: 0.0001569055117 | L95: Previsão de Risco Hidrológico | M95: Energia - Perda Rede Básica sobre mercado Cat. | N95: 22 | O95: 60 | P95: 220 | Q95: 2 | R95: 24 | S95: 9
D96: 0 | E96: 0 | J96: 0 | K96: 0 | N96: 0 | O96: 0 | P96: 0 | Q96: 0 | R96: 0 | S96: 0
C97: Crédito de PIS/COFINS | D97: 0 | E97: -44360432.77 | J97: -44360432.77 | K97: -0.0366233783 | L97: Créditos Pis/Cofins (Redução tarifária equilibrada) | M97: Créditos de Pis/Cofins | N97: 22 | O97: 60 | P97: 179 | Q97: 99 | R97: 999 | S97: 3
C98: Neutralidade Crédito de PIS/COFINS | D98: 0 | E98: -85422.85524 | J98: -85422.85524 | K98: -7.052396353e-05 | L98: Neutralidade Créditos Pis/Cofins (Redução tarifária equilibrada) | M98: Créditos de Pis/Cofins | N98: 20 | O98: 60 | P98: 179 | Q98: 99 | R98: 999 | S98: 3
D99: 0 | E99: 0 | J99: 0 | K99: 0 | N99: 0 | O99: 0 | P99: 0 | Q99: 0 | R99: 0 | S99: 0
C100: Reversão de Créditos de Rescisão Contratual e Migração de Consumidores (REN 376 e 414) | D100: -909184.72 | E100: -194600.18 | J100: -1103784.9 | K100: -0.0009112700087 | L100: Genérico | M100: Parcela B | N100: 22 | O100: 60 | P100: 999 | Q100: 4 | R100: 999 | S100: 9
C101: Custo Distribuidora - Conta Covid - Art 4º - REN 952/2021 - Tusd | D101: -69295.40076 | E101: -34586.02371 | J101: -103881.4245 | K101: -8.57631107e-05 | L101: Genérico | M101: Encargo - CDE Covid - TUSD | N101: 22 | O101: 60 | P101: 999 | Q101: 3 | R101: 12 | S101: 9
C102: Custo Distribuidora - Conta Covid - Art 4º - REN 952/2021 - TE | D102: -108528.0804 | E102: -86901.10621 | J102: -195429.1866 | K102: -0.0001613437152 | L102: Genérico | M102: Encargo - CDE Covid - TE | N102: 22 | O102: 60 | P102: 999 | Q102: 3 | R102: 25 | S102: 9
C103: Arrecadação de encargo CDE Covid dos consumidores migrantes (Ofício Circular 20/2021) | D103: -1127849.342 | E103: -62740.78942 | J103: -1190590.131 | K103: -0.0009829352434 | L103: Genérico | M103: Encargo - CDE Covid - TE | N103: 22 | O103: 60 | P103: 999 | Q103: 3 | R103: 25 | S103: 9
C104: Empr. Escassez Hídrica - Importação julho- agosto/2021 - Energia de Revenda | D104: 0 | E104: 0 | J104: 0 | K104: 0 | L104: Escassez Hidrica | M104: Energia - Energia de Revenda | N104: 22 | O104: 60 | P104: 240 | Q104: 2 | R104: 11 | S104: 9
C105: Empr. Escassez Hídrica- Importação julho- agosto/2021 - Perda Não Técnica | D105: 0 | E105: 0 | J105: 0 | K105: 0 | L105: Escassez Hidrica | M105: Energia - Perda Não Técnica | N105: 22 | O105: 60 | P105: 240 | Q105: 2 | R105: 9 | S105: 9
C106: Empr. Escassez Hídrica- Importação julho- agosto/2021 - Perda Técnica | D106: 0 | E106: 0 | J106: 0 | K106: 0 | L106: Escassez Hidrica | M106: Energia - Perda Técnica | N106: 22 | O106: 60 | P106: 240 | Q106: 2 | R106: 8 | S106: 9
C107: Empr. Escassez Hídrica- Importação julho- agosto/2021 - Perda RB Perda RB sobre Dist. | D107: 0 | E107: 0 | J107: 0 | K107: 0 | L107: Escassez Hidrica | M107: Energia - Perda Rede Básica sobre Dist. | N107: 22 | O107: 60 | P107: 240 | Q107: 2 | R107: 10 | S107: 9
C108: Empr. Escassez Hídrica- Importação julho- agosto/2021 - Perda RB sobre Merc. Cat. | D108: 0 | E108: 0 | J108: 0 | K108: 0 | L108: Escassez Hidrica | M108: Energia - Perda Rede Básica sobre mercado Cat. | N108: 22 | O108: 60 | P108: 240 | Q108: 2 | R108: 24 | S108: 9
C109: Empr. Escassez Hídrica- Bônus Redução Voluntária | D109: 0 | E109: 0 | J109: 0 | K109: 0 | L109: Escassez Hidrica | M109: Encargo - ESS/EER | N109: 22 | O109: 60 | P109: 240 | Q109: 3 | R109: 17 | S109: 9
C110: Empr. Escassez Hídrica- Diferimento de energia - Energia de Revenda | D110: 0 | E110: 0 | J110: 0 | K110: 0 | L110: Escassez Hidrica | M110: Energia - Energia de Revenda | N110: 22 | O110: 60 | P110: 240 | Q110: 2 | R110: 11 | S110: 9
C111: Empr. Escassez Hídrica- Diferimento de energia - Perda Não Técnica | D111: 0 | E111: 0 | J111: 0 | K111: 0 | L111: Escassez Hidrica | M111: Energia - Perda Não Técnica | N111: 22 | O111: 60 | P111: 240 | Q111: 2 | R111: 9 | S111: 9
C112: Empr. Escassez Hídrica- Diferimento de energia - Perda Técnica | D112: 0 | E112: 0 | J112: 0 | K112: 0 | L112: Escassez Hidrica | M112: Energia - Perda Técnica | N112: 22 | O112: 60 | P112: 240 | Q112: 2 | R112: 8 | S112: 9
C113: Empr. Escassez Hídrica- Diferimento de energia - Perda RB Perda RB sobre Dist. | D113: 0 | E113: 0 | J113: 0 | K113: 0 | L113: Escassez Hidrica | M113: Energia - Perda Rede Básica sobre Dist. | N113: 22 | O113: 60 | P113: 240 | Q113: 2 | R113: 10 | S113: 9
C114: Empr. Escassez Hídrica- Diferimento de energia - Perda RB sobre Merc. Cat. | D114: 0 | E114: 0 | J114: 0 | K114: 0 | L114: Escassez Hidrica | M114: Energia - Perda Rede Básica sobre mercado Cat. | N114: 22 | O114: 60 | P114: 240 | Q114: 2 | R114: 24 | S114: 9
C115: Diferimento do RTA de 2022 - Parcela B | D115: 0 | E115: 0 | J115: 0 | K115: 0 | L115: Genérico | M115: Parcela B | N115: 22 | O115: 60 | P115: 999 | Q115: 4 | R115: 999 | S115: 9
D116: 0 | E116: 0 | J116: 0 | K116: 0 | N116: 0 | O116: 0 | P116: 0 | Q116: 0 | R116: 0 | S116: 0
C117: Neutralidade Parcela B - COVID | D117: 0 | E117: 0 | J117: 0 | K117: 0 | L117: Neutralidade | M117: Parcela B | N117: 20 | O117: 60 | P117: 999 | Q117: 4 | R117: 999 | S117: 9
C118: Neutralidade Encargo CDE Covid TUSD | D118: -88676.22782 | E118: 13019.62256 | J118: -75656.60526 | K118: -6.246107854e-05 | L118: Neutralidade - CDE Covid TUSD | M118: Encargo - CDE Covid - TUSD | N118: 20 | O118: 60 | P118: 73 | Q118: 3 | R118: 12 | S118: 9
C119: Neutralidade Encargo CDE Covid TE | D119: 165434.5235 | E119: 45834.14132 | J119: 211268.6649 | K119: 0.000174420576 | L119: Neutralidade - CDE Covid TE | M119: Encargo - CDE Covid - TE | N119: 20 | O119: 60 | P119: 74 | Q119: 3 | R119: 25 | S119: 9
C120: CVA CDE Covid - TUSD | D120: -0.009079694241 | E120: -0.007401908474 | J120: -0.01648160271 | K120: -1.360699014e-11 | L120: CVA - CDE Covid TUSD | M120: Encargo - CDE Covid - TUSD | N120: 19 | O120: 60 | P120: 73 | Q120: 3 | R120: 12 | S120: 9
C121: CVA CDE Covid - TE | D121: -0.01422030576 | E121: -0.01859809153 | J121: -0.03281839729 | K121: -2.709442861e-11 | L121: CVA - CDE Covid TE | M121: Encargo - CDE Covid - TE | N121: 19 | O121: 60 | P121: 74 | Q121: 3 | R121: 25 | S121: 9
C122: Saldo a Compensar - CVA CDE Covid - TUSD | D122: -3185.686975 | E122: 1086.534393 | J122: -2099.152582 | K122: -1.733032216e-06 | L122: CVA Saldo a Compensar - CDE Covid TUSD | M122: Encargo - CDE Covid - TUSD | N122: 19 | O122: 64 | P122: 73 | Q122: 3 | R122: 12 | S122: 9
C123: Saldo a Compensar - CVA CDE Covid - TE | D123: 15641.5708 | E123: 3620.632226 | J123: 19262.20303 | K123: 1.590261646e-05 | L123: CVA Saldo a Compensar - CDE Covid TE | M123: Encargo - CDE Covid - TE | N123: 19 | O123: 64 | P123: 74 | Q123: 3 | R123: 25 | S123: 9
D124: 0 | E124: 0 | J124: 0 | K124: 0 | N124: 0 | O124: 0 | P124: 0 | Q124: 0 | R124: 0 | S124: 0
C125: Ajuste Angra III Abril/2017 (Supridora) | D125: 0 | E125: 0 | J125: 0 | K125: 0 | L125: Reversão de Angra III - Supridora (ESS/EER) - CVA | M125: Encargo - ESS/EER | N125: 19 | O125: 60 | P125: 221 | Q125: 3 | R125: 17 | S125: 9
C126: Ajuste Angra III Abril/2017 (Suprida) | D126: 0 | E126: 0 | J126: 0 | K126: 0 | L126: Reversão de Angra III - Suprida (Energia) - CVA | M126: Energia - Genérico | N126: 19 | O126: 60 | P126: 222 | Q126: 2 | R126: 30 | S126: 9
C127: Repasse de compensação DIC/FIC | D127: -182189.3439 | E127: -14682.25965 | J127: -196871.6035 | K127: -0.0001625345553 | L127: Repasse de compensação DIC/FIC | M127: Transporte - EUSD | N127: 22 | O127: 60 | P127: 178 | Q127: 1 | R127: 7 | S127: 9
D128: 0 | E128: 0 | J128: 0 | K128: 0 | L128: Efeito de Acordo Bilateral com geradores | M128: Energia - Energia de Revenda | N128: 22 | O128: 60 | P128: 230 | Q128: 2 | R128: 11 | S128: 9
C129: Recálculo Sobrecontratação/Reversão de Energia - Energia de Revenda | D129: 0 | E129: 0 | J129: 0 | K129: 0 | L129: SOBRECONTRATAÇÃO | M129: Energia - Energia de Revenda | N129: 22 | O129: 60 | P129: 106 | Q129: 2 | R129: 11 | S129: 9
C130: Recálculo Sobrecontratação/Reversão de Energia - Perda Não Técnica | D130: 0 | E130: 0 | J130: 0 | K130: 0 | L130: SOBRECONTRATAÇÃO | M130: Energia - Perda Não Técnica | N130: 22 | O130: 60 | P130: 106 | Q130: 2 | R130: 9 | S130: 9
C131: Recálculo Sobrecontratação/Reversão de Energia - Perda Técnica | D131: 0 | E131: 0 | J131: 0 | K131: 0 | L131: SOBRECONTRATAÇÃO | M131: Energia - Perda Técnica | N131: 22 | O131: 60 | P131: 106 | Q131: 2 | R131: 8 | S131: 9
C132: Recálculo Sobrecontratação/Reversão de Energia - Perda Rede Básica sobre Dist. | D132: 0 | E132: 0 | J132: 0 | K132: 0 | L132: SOBRECONTRATAÇÃO | M132: Energia - Perda Rede Básica sobre Dist. | N132: 22 | O132: 60 | P132: 106 | Q132: 2 | R132: 10 | S132: 9
C133: Recálculo Sobrecontratação/Reversão de Energia - Perda Rede Básica sobre mercado Cat. | D133: 0 | E133: 0 | J133: 0 | K133: 0 | L133: SOBRECONTRATAÇÃO | M133: Energia - Perda Rede Básica sobre mercado Cat. | N133: 22 | O133: 60 | P133: 106 | Q133: 2 | R133: 24 | S133: 9
C134: Recálculo Exposição CCEAR entre Submercados de Energia - Energia de Revenda | D134: 0 | E134: 0 | J134: 0 | K134: 0 | L134: Exposição CCEAR entre Submercados | M134: Energia - Energia de Revenda | N134: 22 | O134: 60 | P134: 101 | Q134: 2 | R134: 11 | S134: 9
C135: Recálculo Exposição CCEAR entre Submercados de Energia - Perda Não Técnica | D135: 0 | E135: 0 | J135: 0 | K135: 0 | L135: Exposição CCEAR entre Submercados | M135: Energia - Perda Não Técnica | N135: 22 | O135: 60 | P135: 101 | Q135: 2 | R135: 9 | S135: 9
C136: Recálculo Exposição CCEAR entre Submercados de Energia - Perda Técnica | D136: 0 | E136: 0 | J136: 0 | K136: 0 | L136: Exposição CCEAR entre Submercados | M136: Energia - Perda Técnica | N136: 22 | O136: 60 | P136: 101 | Q136: 2 | R136: 8 | S136: 9
C137: Recálculo Exposição CCEAR entre Submercados de Energia - Perda Rede Básica sobre Dist. | D137: 0 | E137: 0 | J137: 0 | K137: 0 | L137: Exposição CCEAR entre Submercados | M137: Energia - Perda Rede Básica sobre Dist. | N137: 22 | O137: 60 | P137: 101 | Q137: 2 | R137: 10 | S137: 9
C138: Recálculo Exposição CCEAR entre Submercados de Energia - Perda Rede Básica sobre mercado Cat. | D138: 0 | E138: 0 | J138: 0 | K138: 0 | L138: Exposição CCEAR entre Submercados | M138: Energia - Perda Rede Básica sobre mercado Cat. | N138: 22 | O138: 60 | P138: 101 | Q138: 2 | R138: 24 | S138: 9
C139: Compensação ref. acordos bilaterais de CCEAR de Energia - Energia de Revenda | D139: 0 | E139: 0 | J139: 0 | K139: =J139/$J$6 -> 0 | L139: Efeito de Acordo Bilateral com geradores | M139: Energia - Energia de Revenda | N139: 22 | O139: 60 | P139: 230 | Q139: 2 | R139: 11 | S139: 9
C140: Compensação ref. acordos bilaterais de CCEAR de Energia - Perda Não Técnica | D140: 0 | E140: 0 | J140: =D140+E140 -> 0 | K140: 0 | L140: Efeito de Acordo Bilateral com geradores | M140: Energia - Perda Não Técnica | N140: 22 | O140: 60 | P140: 230 | Q140: 2 | R140: 9 | S140: 9
C141: Compensação ref. acordos bilaterais de CCEAR de Energia - Perda Técnica | D141: 0 | E141: 0 | J141: 0 | K141: 0 | L141: Efeito de Acordo Bilateral com geradores | M141: Energia - Perda Técnica | N141: 22 | O141: 60 | P141: 230 | Q141: 2 | R141: 8 | S141: 9
C142: Compensação ref. acordos bilaterais de CCEAR de Energia - Perda Rede Básica sobre Dist. | D142: 0 | E142: 0 | J142: 0 | K142: 0 | L142: Efeito de Acordo Bilateral com geradores | M142: Energia - Perda Rede Básica sobre Dist. | N142: 22 | O142: 60 | P142: 230 | Q142: 2 | R142: 10 | S142: 9
C143: Compensação ref. acordos bilaterais de CCEAR de Energia - Perda Rede Básica sobre mercado Cat. | D143: 0 | E143: 0 | J143: 0 | K143: 0 | L143: Efeito de Acordo Bilateral com geradores | M143: Energia - Perda Rede Básica sobre mercado Cat. | N143: 22 | O143: 60 | P143: 230 | Q143: 2 | R143: 24 | S143: 9
C144: Reversão de Risco Hidrológico de Energia - Energia de Revenda | D144: -19032468.78 | E144: 0 | J144: -19032468.78 | K144: -0.01571295095 | L144: Reversão de Risco Hidrológico | M144: Energia - Energia de Revenda | N144: 22 | O144: 62 | P144: 220 | Q144: 2 | R144: 11 | S144: 9
C145: Reversão de Risco Hidrológico de Energia - Perda Não Técnica | D145: -63806.69592 | E145: 0 | J145: -63806.69592 | K145: -5.267795233e-05 | L145: Reversão de Risco Hidrológico | M145: Energia - Perda Não Técnica | N145: 22 | O145: 62 | P145: 220 | Q145: 2 | R145: 9 | S145: 9
C146: Reversão de Risco Hidrológico de Energia - Perda Técnica | D146: -3605777.289 | E146: 0 | J146: -3605777.289 | K146: -0.002976881366 | L146: Reversão de Risco Hidrológico | M146: Energia - Perda Técnica | N146: 22 | O146: 62 | P146: 220 | Q146: 2 | R146: 8 | S146: 9
C147: Reversão de Risco Hidrológico de Energia - Perda Rede Básica sobre Dist. | D147: -27940.42759 | E147: 0 | J147: -27940.42759 | K147: -2.306724226e-05 | L147: Reversão de Risco Hidrológico | M147: Energia - Perda Rede Básica sobre Dist. | N147: 22 | O147: 62 | P147: 220 | Q147: 2 | R147: 10 | S147: 9
C148: Reversão de Risco Hidrológico de Energia - Perda Rede Básica sobre mercado Cat. | D148: -144914.3331 | E148: 0 | J148: -144914.3331 | K148: -0.0001196393297 | L148: Reversão de Risco Hidrológico | M148: Energia - Perda Rede Básica sobre mercado Cat. | N148: 22 | O148: 62 | P148: 220 | Q148: 2 | R148: 24 | S148: 9
C149: Restituição de encargo do ONS | D149: 0 | E149: 0 | J149: 0 | K149: 0 | L149: Recálculo Reajuste/Revisão ano anterior | M149: Parcela B | N149: 22 | O149: 60 | P149: 123 | Q149: 4 | R149: 999 | S149: 9
C150: Acordo REN 824/2018 Energia - Energia de Revenda | K150: 0 | L150: Acordo REN 824/2018 | M150: Energia - Energia de Revenda | N150: 22 | O150: 60 | P150: 232 | Q150: 2 | R150: 11 | S150: 9
C151: Acordo REN 824/2018 Energia - Perda Não Técnica | K151: 0 | L151: Acordo REN 824/2018 | M151: Energia - Perda Não Técnica | N151: 22 | O151: 60 | P151: 232 | Q151: 2 | R151: 9 | S151: 9
C152: Acordo REN 824/2018 Energia - Perda Técnica | K152: 0 | L152: Acordo REN 824/2018 | M152: Energia - Perda Técnica | N152: 22 | O152: 60 | P152: 232 | Q152: 2 | R152: 8 | S152: 9
C153: Acordo REN 824/2018 Energia - Perda Rede Básica sobre Dist. | K153: 0 | L153: Acordo REN 824/2018 | M153: Energia - Perda Rede Básica sobre Dist. | N153: 22 | O153: 60 | P153: 232 | Q153: 2 | R153: 10 | S153: 9
C154: Acordo REN 824/2018 Energia - Perda Rede Básica sobre mercado Cat. | K154: 0 | L154: Acordo REN 824/2018 | M154: Energia - Perda Rede Básica sobre mercado Cat. | N154: 22 | O154: 60 | P154: 232 | Q154: 2 | R154: 24 | S154: 9
C155: Conta Covid - CVA CDE | D155: 0 | E155: 0 | J155: 0 | K155: 0 | L155: Covid CVA | M155: Encargo - CDE - TUSD | N155: 19 | O155: 60 | P155: 233 | Q155: 3 | R155: 15 | S155: 9
C156: Conta Covid - CVA Energia | D156: 0 | E156: 0 | J156: 0 | K156: 0 | L156: Covid CVA | M156: Energia - Energia de Revenda | N156: 19 | O156: 60 | P156: 233 | Q156: 2 | R156: 11 | S156: 9
C157: Conta Covid - CVA Energia | D157: 0 | E157: 0 | J157: 0 | K157: 0 | L157: Covid CVA | M157: Energia - Perda Não Técnica | N157: 19 | O157: 60 | P157: 233 | Q157: 2 | R157: 9 | S157: 9
C158: Conta Covid - CVA Energia | D158: 0 | E158: 0 | J158: 0 | K158: 0 | L158: Covid CVA | M158: Energia - Perda Técnica | N158: 19 | O158: 60 | P158: 233 | Q158: 2 | R158: 8 | S158: 9
C159: Conta Covid - CVA Energia | D159: 0 | E159: 0 | J159: 0 | K159: 0 | L159: Covid CVA | M159: Energia - Perda Rede Básica sobre Dist. | N159: 19 | O159: 60 | P159: 233 | Q159: 2 | R159: 10 | S159: 9
C160: Conta Covid - CVA Energia | D160: 0 | E160: 0 | J160: 0 | K160: 0 | L160: Covid CVA | M160: Energia - Perda Rede Básica sobre mercado Cat. | N160: 19 | O160: 60 | P160: 233 | Q160: 2 | R160: 24 | S160: 9
C161: Conta Covid - CVA Proinfa | D161: 0 | E161: 0 | J161: 0 | K161: 0 | L161: Covid CVA | M161: Encargo - PROINFA | N161: 19 | O161: 60 | P161: 233 | Q161: 3 | R161: 18 | S161: 9
C162: Conta Covid - CVA ESS/EER | D162: 0 | E162: 0 | J162: 0 | K162: 0 | L162: Covid CVA | M162: Encargo - ESS/EER | N162: 19 | O162: 60 | P162: 233 | Q162: 3 | R162: 17 | S162: 9
C163: Conta Covid - CVA Transporte | D163: 0 | E163: 0 | J163: 0 | K163: 0 | L163: Covid CVA | M163: Rede Básica - Genérico | N163: 19 | O163: 60 | P163: 233 | Q163: 1 | R163: 1 | S163: 9
C164: Conta Covid - CVA CFURH | D164: 0 | E164: 0 | J164: 0 | K164: 0 | L164: Covid CVA | M164: Encargo - CFURH | N164: 19 | O164: 60 | P164: 233 | Q164: 3 | R164: 16 | S164: 9
C165: Conta Covid - CVA Transporte Itaipu | D165: 0 | E165: 0 | J165: 0 | K165: 0 | L165: Covid CVA | M165: Transporte - Tranporte Itaipu | N165: 19 | O165: 60 | P165: 233 | Q165: 1 | R165: 21 | S165: 9
C166: Conta Covid - CVA Saldo a Compensar CDE | D166: 0 | E166: 0 | J166: 0 | K166: 0 | L166: Covid CVA Saldo a Compensar | M166: Encargo - CDE - TUSD | N166: 19 | O166: 64 | P166: 236 | Q166: 3 | R166: 15 | S166: 9
C167: Conta Covid - CVA Saldo a Compensar Energia | D167: 0 | E167: 0 | J167: 0 | K167: 0 | L167: Covid CVA Saldo a Compensar | M167: Energia - Energia de Revenda | N167: 19 | O167: 64 | P167: 236 | Q167: 2 | R167: 11 | S167: 9
C168: Conta Covid - CVA Saldo a Compensar Energia | D168: 0 | E168: 0 | J168: 0 | K168: 0 | L168: Covid CVA Saldo a Compensar | M168: Energia - Perda Não Técnica | N168: 19 | O168: 64 | P168: 236 | Q168: 2 | R168: 9 | S168: 9
C169: Conta Covid - CVA Saldo a Compensar Energia | D169: 0 | E169: 0 | J169: 0 | K169: 0 | L169: Covid CVA Saldo a Compensar | M169: Energia - Perda Técnica | N169: 19 | O169: 64 | P169: 236 | Q169: 2 | R169: 8 | S169: 9
C170: Conta Covid - CVA Saldo a Compensar Energia | D170: 0 | E170: 0 | J170: 0 | K170: 0 | L170: Covid CVA Saldo a Compensar | M170: Energia - Perda Rede Básica sobre Dist. | N170: 19 | O170: 64 | P170: 236 | Q170: 2 | R170: 10 | S170: 9
C171: Conta Covid - CVA Saldo a Compensar Energia | D171: 0 | E171: 0 | J171: 0 | K171: 0 | L171: Covid CVA Saldo a Compensar | M171: Energia - Perda Rede Básica sobre mercado Cat. | N171: 19 | O171: 64 | P171: 236 | Q171: 2 | R171: 24 | S171: 9
C172: Conta Covid - CVA Saldo a Compensar Proinfa | D172: 0 | E172: 0 | J172: 0 | K172: 0 | L172: Covid CVA Saldo a Compensar | M172: Encargo - PROINFA | N172: 19 | O172: 64 | P172: 236 | Q172: 3 | R172: 18 | S172: 9
C173: Conta Covid - CVA Saldo a Compensar ESS/EER | D173: 0 | E173: 0 | J173: 0 | K173: 0 | L173: Covid CVA Saldo a Compensar | M173: Encargo - ESS/EER | N173: 19 | O173: 64 | P173: 236 | Q173: 3 | R173: 17 | S173: 9
C174: Conta Covid - CVA Saldo a Compensar Transporte | D174: 0 | E174: 0 | J174: 0 | K174: 0 | L174: Covid CVA Saldo a Compensar | M174: Rede Básica - Genérico | N174: 19 | O174: 64 | P174: 236 | Q174: 1 | R174: 1 | S174: 9
C175: Conta Covid - CVA Saldo a Compensar CFURH | D175: 0 | E175: 0 | J175: 0 | K175: 0 | L175: Covid CVA Saldo a Compensar | M175: Encargo - CFURH | N175: 19 | O175: 64 | P175: 236 | Q175: 3 | R175: 16 | S175: 9
C176: Conta Covid - CVA Saldo a Compensar Transporte Itaipu | D176: 0 | E176: 0 | J176: 0 | K176: 0 | L176: Covid CVA Saldo a Compensar | M176: Transporte - Tranporte Itaipu | N176: 19 | O176: 64 | P176: 236 | Q176: 1 | R176: 21 | S176: 9
C177: Conta Covid - Neutralidade CDE Conta ACR | D177: 0 | E177: 0 | J177: 0 | K177: 0 | L177: Covid Neutralidade | M177: Encargo - CDE - TE | N177: 20 | O177: 60 | P177: 234 | Q177: 3 | R177: 25 | S177: 9
C178: Conta Covid - Neutralidade CDE Energia: Decreto | D178: 0 | E178: 0 | J178: 0 | K178: 0 | L178: Covid Neutralidade | M178: Encargo - CDE - TE | N178: 20 | O178: 60 | P178: 234 | Q178: 3 | R178: 25 | S178: 9
C179: Conta Covid - Neutralidade TFSEE | D179: 0 | E179: 0 | J179: 0 | K179: 0 | L179: Covid Neutralidade | M179: Encargo - TFSEE | N179: 20 | O179: 60 | P179: 234 | Q179: 3 | R179: 14 | S179: 9
C180: Conta Covid - Neutralidade CDE | D180: 0 | E180: 0 | J180: 0 | K180: 0 | L180: Covid Neutralidade | M180: Encargo - CDE - TUSD | N180: 20 | O180: 60 | P180: 234 | Q180: 3 | R180: 15 | S180: 9
C181: Conta Covid - Neutralidade CFURH | D181: 0 | E181: 0 | J181: 0 | K181: 0 | L181: Covid Neutralidade | M181: Encargo - CFURH | N181: 20 | O181: 60 | P181: 234 | Q181: 3 | R181: 16 | S181: 9
C182: Conta Covid - Neutralidade ESS/ERR | D182: 0 | E182: 0 | J182: 0 | K182: 0 | L182: Covid Neutralidade | M182: Encargo - ESS/EER | N182: 20 | O182: 60 | P182: 234 | Q182: 3 | R182: 17 | S182: 9
C183: Conta Covid - Neutralidade PROINFA | D183: 0 | E183: 0 | J183: 0 | K183: 0 | L183: Covid Neutralidade | M183: Encargo - PROINFA | N183: 20 | O183: 60 | P183: 234 | Q183: 3 | R183: 18 | S183: 9
C184: Conta Covid - Neutralidade ONS | D184: 0 | E184: 0 | J184: 0 | K184: 0 | L184: Covid Neutralidade | M184: Encargo - ONS | N184: 20 | O184: 60 | P184: 234 | Q184: 3 | R184: 20 | S184: 9
C185: Conta Covid - Sobrecontratação | D185: 0 | E185: 0 | J185: 0 | K185: 0 | L185: Covid Demais Componentes Financeiros | M185: Energia - Energia de Revenda | N185: 22 | O185: 60 | P185: 235 | Q185: 2 | R185: 11 | S185: 9
C186: Conta Covid - Sobrecontratação | D186: 0 | E186: 0 | J186: 0 | K186: 0 | L186: Covid Demais Componentes Financeiros | M186: Energia - Perda Não Técnica | N186: 22 | O186: 60 | P186: 235 | Q186: 2 | R186: 9 | S186: 9
C187: Conta Covid - Sobrecontratação | D187: 0 | E187: 0 | J187: 0 | K187: 0 | L187: Covid Demais Componentes Financeiros | M187: Energia - Perda Técnica | N187: 22 | O187: 60 | P187: 235 | Q187: 2 | R187: 8 | S187: 9
C188: Conta Covid - Sobrecontratação | D188: 0 | E188: 0 | J188: 0 | K188: 0 | L188: Covid Demais Componentes Financeiros | M188: Energia - Perda Rede Básica sobre Dist. | N188: 22 | O188: 60 | P188: 235 | Q188: 2 | R188: 10 | S188: 9
C189: Conta Covid - Sobrecontratação | D189: 0 | E189: 0 | J189: 0 | K189: 0 | L189: Covid Demais Componentes Financeiros | M189: Energia - Perda Rede Básica sobre mercado Cat. | N189: 22 | O189: 60 | P189: 235 | Q189: 2 | R189: 24 | S189: 9
C190: Conta Covid - Parcela B | D190: 0 | E190: 0 | J190: 0 | K190: 0 | L190: Covid Demais Componentes Financeiros | M190: Parcela B | N190: 22 | O190: 60 | P190: 235 | Q190: 4 | R190: 999 | S190: 9
C191: Conta Covid - Diferimento | D191: 0 | E191: 0 | J191: 0 | K191: 0 | N191: 0 | O191: 0 | P191: 0 | Q191: 0 | R191: 0 | S191: 0
C192: Conta Covid - Postergação TE | D192: 0 | E192: 0 | J192: 0 | K192: 0 | L192: Covid Postergação | M192: Conta Covid - Postergação TE | N192: 22 | O192: 60 | P192: 196 | Q192: 99 | R192: 999 | S192: 2
C193: Conta Covid - Postergação TUSD | D193: 0 | E193: 0 | J193: 0 | K193: 0 | L193: Covid Postergação | M193: Conta Covid - Postergação TUSD | N193: 22 | O193: 60 | P193: 196 | Q193: 99 | R193: 999 | S193: 1
D194: 0 | E194: 0 | J194: 0 | K194: 0 | N194: 0 | O194: 0 | P194: 0 | Q194: 0 | R194: 0 | S194: 0
C195: Financeiro CDE Eletrobras | D195: -2535004.341 | E195: 0 | J195: -2535004.341 | K195: -0.002092865583 | L195: Genérico | M195: Encargo - CDE Elet | N195: 22 | O195: 60 | P195: 999 | Q195: 3 | R195: 28 | S195: 9
C196: Financeiro CDE GD | D196: 0 | E196: 0 | J196: 0 | K196: 0 | L196: Genérico | M196: Encargo - CDE GD | N196: 22 | O196: 60 | P196: 999 | Q196: 3 | R196: 29 | S196: 9
C197: Recomposição à conta de comercialização de Itaipu - Energia de Revenda (Decreto 10.665/2021) | D197: 0 | E197: 0 | J197: 0 | K197: 0 | L197: Genérico | M197: Energia - Energia de Revenda | N197: 22 | O197: 60 | P197: 999 | Q197: 2 | R197: 11 | S197: 9
C198: Recomposição à conta de comercialização de Itaipu - Perdas não técnicas (Decreto 10.665/2021) | D198: 0 | E198: 0 | J198: 0 | K198: 0 | L198: Genérico | M198: Energia - Perda Não Técnica | N198: 22 | O198: 60 | P198: 999 | Q198: 2 | R198: 9 | S198: 9
C199: Recomposição à conta de comercialização de Itaipu - Perdas Técnicas (Decreto 10.665/2021) | D199: 0 | E199: 0 | J199: 0 | K199: 0 | L199: Genérico | M199: Energia - Perda Técnica | N199: 22 | O199: 60 | P199: 999 | Q199: 2 | R199: 8 | S199: 9
C200: Recomposição à conta de comercialização de Itaipu - Perdas não técnicas (Decreto 10.665/2021) | D200: 0 | E200: 0 | J200: 0 | K200: 0 | L200: Genérico | M200: Energia - Perda Rede Básica sobre Dist. | N200: 22 | O200: 60 | P200: 999 | Q200: 2 | R200: 10 | S200: 9
C201: Recomposição à conta de comercialização de Itaipu - Perdas Técnicas (Decreto 10.665/2021) | D201: 0 | E201: 0 | J201: 0 | K201: 0 | L201: Genérico | M201: Energia - Perda Rede Básica sobre mercado Cat. | N201: 22 | O201: 60 | P201: 999 | Q201: 2 | R201: 24 | S201: 9
D202: 0 | E202: 0 | J202: 0 | K202: 0 | N202: 0 | O202: 0 | P202: 0 | Q202: 0 | R202: 0 | S202: 0
D203: 0 | E203: 0 | J203: 0 | K203: =J203/$J$6 -> 0 | N203: 0 | O203: 0 | P203: 0 | Q203: 0 | R203: 0 | S203: 0
... 22 more rows

Sheet Energia e Perdas Regulatórias
B46: Energia Requerida (Fornecimento + Suprimento+Perdas) : MWh | D46: Fornecimento + Suprimento (MWh) | F46: Fornecimento (MWh) | H46: Suprimento (Mercado TE) | J46: Suprimento (Mercado TUSD) | L46: Fornecimento (MWh) | N46: Consumidor Livre Total + Distribuição (MWh) | P46: A1 (MWh) | R46: BT (MWh) | T46: GD (MWh)
A47: RTA 2023 | B47: DRA | C47: DRP | D47: DRA | E47: DRP | F47: DRA | G47: DRP | H47: DRA | I47: DRP | K47: DRP | M47: DRP | O47: DRP | Q47: DRP | S47: DRP | U47: DRP
A48: EMG | B48: 1369956.938 | C48: 1395879.594 | D48: 1161405.123 | E48: 1161405.123 | F48: 1161405.123 | G48: 1161405.123 | H48: 0 | I48: 0 | K48: 0 | M48: 1161405.123 | O48: 442027.74 | Q48: 0 | S48: 1041077.991 | U48: 120393.116
A49: ENF | B49: 300840.2174 | C49: 301490.146 | D49: 281956.673 | E49: 281956.673 | F49: 281956.673 | G49: 281956.673 | H49: 0 | I49: 0 | K49: 0 | M49: 281956.673 | O49: 68653.421 | Q49: 0 | S49: 247400.536 | U49: 12098.769
A53: EMG Agrupada | B53: =SUM(B48:B52) -> 1670797.155 | C53: =SUM(C48:C52) -> 1697369.74 | D53: =SUM(D48:D52) -> 1443361.796 | E53: 1443361.796 | F53: 1443361.796 | G53: 1443361.796 | H53: 0 | I53: 0 | J53: 0 | K53: 0 | L53: 0 | M53: 1443361.796 | N53: 0 | O53: 510681.161 | P53: 0 | Q53: 0 | R53: 0 | S53: 1288478.527 | T53: =SUM(T48:T52) -> 0 | U53: 132491.885
B56: Perdas Regulatórias (MWh) | D56: PNT (MWh) | F56: PT (MWh) | H56: P RB sobre Distribuição (MWh) | J56: P RB sobre Mercado Cativo (MWh) | L56: CUSTO MÉDIO ENERGIA (R$/MWh) | N56: Desp Energia (En Req x Custo Médio) | Q56: Comparação de Pmix
A57: RTA 2023 | B57: DRA | C57: DRP | D57: DRA | E57: DRP | F57: DRA | G57: DRP | H57: DRA | I57: DRP | J57: DRA | K57: DRP | L57: DRA | M57: DRP | N57: DRA | O57: DRP | Q57: DRP
A58: EMG | B58: 208551.8149 | C58: 234474.4707 | D58: 3893.631686 | E58: 3893.631686 | F58: 194306.0724 | G58: 220032.843 | H58: 1509.104166 | I58: 1704.989306 | J58: 8843.006694 | K58: 8843.006694 | L58: 287.4500442 | M58: 278.2837287 | N58: 393794182.4 | O58: 388450578.1 | Q58: =$M$63/M58-1 -> 0
A59: ENF | B59: 18883.54439 | C59: 19533.47299 | D59: 46.7587013 | E59: 46.7587013 | F59: 18836.78568 | G59: 19486.71429 | H59: 0 | I59: 0 | J59: 0 | K59: 0 | L59: 316.9475577 | M59: 278.2837287 | N59: 95350572.15 | O59: 83899801.98 | Q59: =$M$63/M59-1 -> 0
A63: EMG Agrupada | B63: =SUM(B58:B62) -> 227435.3593 | C63: =SUM(C58:C62) -> 254007.9437 | D63: 3940.390388 | E63: 3940.390388 | F63: 213142.858 | G63: 239519.5573 | H63: 1509.104166 | I63: 1704.989306 | J63: 8843.006694 | K63: 8843.006694 | L63: =N63/B53 -> 292.7613044 | M63: =O63/C53 -> 278.2837287 | N63: 489144754.5 | O63: 472350380.1
C64: =E63+G63+I63+K63 -> 254007.9437 | K64: =I63+K63 -> 10547.996
G65: =E63+G63 -> 243459.9477 | K65: =K63+I63 -> 10547.996 | L65: Trajetória de Perdas Regulatórias (ref. REN 1003/2022)
B66: Cálculo de Perdas | L66: PNT | N66: PT
A67: RTA 2023 | B67: % PNT (s/Baixa Tensão) | C67: % PT (s/ merc. Injetado) | D67: % P RB (s/ merc. Injetado) | E67: PNT (MWh) | F67: PT (MWh) | G67: PT RB s/ Dist.( MWh) | H67: PT RB s/mercado cativo (MWh) | I67: Perdas Regulatórias(MWh) | L67: 2024 | M67: 2025 | N67: 2024 | O67: 2025
A68: EMG | B68: 0.00374 | C68: 0.10785 | D68: 0.007614058625 | E68: 3893.631686 | F68: 220032.843 | G68: 1704.989306 | H68: 8843.006694 | I68: 234474.4707 | K68: EMG | L68: =B68 -> 0.00374 | M68: =L68 -> 0.00374 | N68: =C68 -> 0.10785 | O68: =N68 -> 0.10785 | P68: REH 2884/2021
A69: ENF | B69: 0.000189 | C69: 0.05098 | D69: 0 | E69: 46.7587013 | F69: 19486.71429 | G69: 0 | H69: 0 | K69: ENF | L69: =B69 -> 0.000189 | M69: =L69 -> 0.000189 | N69: =C69 -> 0.05098 | O69: =N69 -> 0.05098 | P69: REH 2885/2021
A73: EMG Agrupada | B73: =(B68*S48+B69*S49)/S53 -> 0.003058173113 | C73: =(C68*C48+C69*C49)/C53 -> 0.09774863893 | D73: =(D68*C48+D69*C49+D70*C50+D71*C51+D72*C52)/C53 -> 0.006261634582 | E73: =E68+E69+E70+E71+E72 -> 3940.390388 | F73: =F68+F69+F70+F71+F72 -> 239519.5573 | G73: 1704.989306 | H73: 8843.006694 | I73: =SUM(E73:H73) -> 254007.9437 | J73: =I73-C63 -> 0 | K73: EMG Agrupada | L73: =(L68*$S$48+L69*$S$49)/$S$53 -> 0.003058173113 | M73: =(M68*$S$48+M69*$S$49)/$S$53 -> 0.003058173113 | N73: =(C68*C48+C69*C49)/C53 -> 0.09774863893 | O73: =N73 -> 0.09774863893
H74: =G73+H73 -> 10547.996
B76: Resumo da despesa de energia em processamento | AB76: Pmix
B77: Energia Base | E77: Geração Própria | H77: Cota Angra I/Angra II | K77: Cotas Lei n º 12783/2013 | N77: Itaipu (tirando as perdas) | Q77: PROINFA | T77: BILATERAL | W77: CCEAR | Z77: Montante Geral Energia Requerida (MWh) | AA77: Despesa Global (R$) | AB77: Pmix (R$ / MWh) | AC77: Exposição / Sobrecontratação (MWh)
A78: RTA 2023 | B78: Montante (MWh) | C78: Custo Médio (R$/MWh) | D78: Despesa (R$) | E78: Montante (MWh) | F78: Custo Médio (R$/MWh) | G78: Despesa (R$) | H78: Montante (MWh) | I78: Custo Médio (R$/MWh) | J78: Despesa (R$) | K78: Montante (MWh) | L78: Custo Médio (R$/MWh) | M78: Despesa (R$) | N78: Montante (MWh) | O78: Custo Médio (R$/MWh) | P78: Despesa (R$) | Q78: Montante (MWh) | R78: Custo Médio (R$/MWh) | S78: Despesa (R$) | T78: Montante (MWh) | U78: Custo Médio (R$/MWh) | V78: Despesa (R$) | W78: Montante (MWh) | X78: Custo Médio (R$/MWh) | Y78: Despesa (R$)
A79: EMG | B79: 611714.1003 | C79: 199.3685897 | D79: 121956577.4 | E79: 0 | F79: 0 | G79: 0 | H79: 51061.5912 | I79: 347.5 | J79: 17743902.94 | K79: 267114.7665 | L79: 159.4405913 | M79: 42588936.31 | N79: 265667.2338 | O79: 231.9583687 | P79: 61623738.19 | Q79: 27870.50872 | R79: 0 | S79: 0 | T79: 406224.3851 | U79: 454.6128139 | V79: 184674810.8 | W79: 377941.1083 | X79: 216.4866115 | Y79: 81819189.87 | Z79: 1395879.594 | AA79: 388450578.1 | AB79: 278.2837287
A80: ENF | B80: 132121.5485 | C80: 199.3685897 | D80: 26340886.78 | E80: 0 | F80: 0 | G80: 0 | H80: 11028.57772 | I80: 347.5 | J80: 3832430.757 | K80: 57692.9918 | L80: 159.4405913 | M80: 9198604.726 | N80: 57380.34532 | O80: 231.9583687 | P80: 13309851.3 | Q80: 6019.633628 | R80: 0 | S80: 0 | T80: 87738.69159 | U80: 454.6128139 | V80: 39887133.47 | W80: 81629.90593 | X80: 216.4866115 | Y80: 17671781.73 | Z80: 301490.146 | AA80: 83899801.98 | AB80: 278.2837287
A84: EMG Agrupada | B84: =SUM(B79:B83) -> 743835.6487 | C84: =D84/B84 -> 199.3685897 | D84: =SUM(D79:D83) -> 148297464.2 | E84: 0 | F84: 0 | H84: =SUM(H79:H83) -> 62090.16891 | I84: =J84/H84 -> 347.5 | J84: 21576333.7 | K84: =SUM(K79:K83) -> 324807.7583 | L84: =M84/K84 -> 159.4405913 | M84: =SUM(M79:M83) -> 51787541.04 | N84: =SUM(N79:N83) -> 323047.5792 | O84: =P84/N84 -> 231.9583687 | P84: =SUM(P79:P83) -> 74933589.49 | Q84: =SUM(Q79:Q83) -> 33890.14235 | S84: =SUM(S79:S83) -> 0 | T84: =SUM(T79:T83) -> 493963.0767 | U84: =V84/T84 -> 454.6128139 | V84: =SUM(V79:V83) -> 224561944.2 | W84: =SUM(W79:W83) -> 459571.0142 | X84: =Y84/W84 -> 216.4866115 | Y84: =SUM(Y79:Y83) -> 99490971.59 | Z84: 1697369.74 | AA84: 472350380.1 | AB84: =AA84/Z84 -> 278.2837287
B85: =E84+H84+K84+N84+Q84 -> 743835.6487
B87: Despesa sujeita ao Risco Hidrológico (R$) | G87: Glosas de Contratos
A88: RTA 2023 | B88: CCGF | C88: Itaipu | D88: Usinas Repactuadas | E88: Total | F88: Custo Médio (R$/MWh) | G88: Montante contratado | H88: Montante Req menos Proinfa | I88: % considerado
A89: EMG | B89: 8320985.62 | C89: 8036926.038 | D89: 13642248.66 | E89: 30000160.32 | F89: 195.04 | G89: 1727836.701 | H89: 1368009.085 | I89: 0.7917467455
A90: ENF | B90: 1521328.626 | C90: 1705288.307 | D90: 2610423.574 | E90: 5837040.506 | G90: 1727836.701 | H90: 295470.5124 | I90: 0.1710060402
A94: EMG Agrupada | B94: =SUM(B89:B93) -> 9842314.246 | C94: =SUM(C89:C93) -> 9742214.345 | D94: 16252672.23 | E94: 35837200.82 | G94: =SUM(G89:G93) -> 3455673.403 | H94: 1663479.597 | I94: =H94/G94 -> 0.4813763928

Sheet Parcela B -Dados_Complementares
I1: REF.: RTA 2023 | N1: RTP 2021
A2: RTA 2023 | B2: Parcela B - Ano anterior | C2: Parcela B - Faturada limpa | D2: OR- Outras receitas | E2: ER - Excedente de Reativos | F2: UD - Ultrapassagem de demanda | G2: ONS | H2: Parcela B Ref (Parcela B limpa )* Fator X -(UD,ER,OR) | I2: Comp Pd | J2: Comp T | K2: Comp Q | L2: FATOR X original | M2: IPCA | N2: Comp Pd | O2: Comp T
A3: EMG | B3: 296751562.2 | C3: 317836876.5 | D3: 10410644.04 | E3: 2161402.542 | F3: 2272554.506 | H3: =C3*(1+(M3-L3))-(D3+E3+F3) -> 321723642.8 | I3: 0.004545350809 | J3: -0.0215 | K3: -0.002620961678 | L3: -0.01957561087 | M3: 0.03935829144 | N3: 0.00616326106 | O3: -0.02148702499
A4: ENF | B4: 56830823.08 | C4: 61425806.93 | D4: 5271829.395 | E4: 408008.1562 | F4: 156145.6137 | H4: =C4*(1+(M4-L4))-(D4+E4+F4) -> 58081419.97 | I4: -1.276958943e-05 | J4: -0.0057 | K4: 0.004508367004 | L4: -0.001204402585 | M4: 0.03935829144 | N4: 0.003700265159 | O4: -0.0057422114
A8: EMG Agrupada | B8: =SUM(B3:B7) -> 353582385.3 | C8: =SUM(C3:C7) -> 379262683.4 | D8: =SUM(D3:D7) -> 15682473.44 | E8: 2569410.699 | F8: 2428700.12 | H8: =H3+H4 -> 379805062.8 | I8: =(I3*$C$3+I4*$C$4)/($C$3+$C$4) -> 0.003807112549 | J8: =(J3*$C$3+J4*$C$4)/($C$3+$C$4) -> -0.01894101439 | K8: =(K3*$C$3+K4*$C$4+K5*$C$5+K6*$C$6+K7*$C$7)/($C$3+$C$4+$C$5+$C$6+$C$7) -> -0.001466287658 | N8: =(N3*$C$3+N4*$C$4)/($C$3+$C$4) -> 0.005764351499 | O8: =(O3*$C$3+O4*$C$4)/($C$3+$C$4) -> -0.01893697744
A13: REF.: RTA 2023
A14: Cálculo da parcela B | B14: Valores de DRA
A15: Parcela B Ano anterior | B15: =B8 -> 353582385.3 | D15: IGPM
A16: Fator DR1 ou Fator PB | D16: IPCA | E16: =M3 -> 0.03935829144
A17: Parcela B Limpa | B17: =C8 -> 379262683.4 | D17: Componente Pd do Fator X | E17: =I8 -> 0.003807112549
A18: Outras Receitas (OR) | B18: =D8 -> 15682473.44 | D18: Componente T do Fator X | E18: =J8 -> -0.01894101439
A19: Excedente de Reativos (ER) | B19: =E8 -> 2569410.699 | D19: Componente Q do Fator X | E19: =K8 -> -0.001466287658
A20: Ultrapassagem de Demanda (UD) | B20: =F8 -> 2428700.12 | D20: FATOR X | E20: =E17+E18+E19 -> -0.0166001895
A21: VPB1 = PB * (1+IVI - X) - UD,ER,OR | B21: =B17*(1+E21)-(B18+B19+B20) -> 379805062.8 | D21: (IVI - X) | E21: =E16-E20 -> 0.05595848094
A26: REF.: RTP 2021
A27: Cálculo da parcela B | B27: Valores de DRA
A28: Parcela B Ano anterior | B28: =B8 -> 353582385.3 | D28: IGPM
A29: Fator DR1 ou Fator PB | D29: IPCA | E29: =M3 -> 0.03935829144
A30: Parcela B Limpa | B30: =C8 -> 379262683.4 | D30: Componente Pd do Fator X | E30: =N8 -> 0.005764351499
A31: Outras Receitas (OR) | B31: =D8 -> 15682473.44 | D31: Componente T do Fator X | E31: =O8 -> -0.01893697744
A32: Excedente de Reativos (ER) | B32: =E8 -> 2569410.699 | D32: Componente Q do Fator X | E32: =K8 -> -0.001466287658
A33: Ultrapassagem de Demanda (UD) | B33: =F8 -> 2428700.12 | D33: FATOR X | E33: =E30+E31+E32 -> -0.01463891359
A34: VPB1 = PB * (1+IVI - X) - UD,ER,OR | B34: =B30*(1+E34)-(B31+B32+B33) -> 379061224 | D34: (IVI - X) | E34: =E29-E33 -> 0.05399720503

Sheet Subsídios
A1: AJUSTE
A2: Valores Mensais | B2: EMG agrupada | D2: EMG | F2: ENF
A3: TIPO | B3: Ajuste | D3: Ajuste | F3: Ajuste
A4: Subsídio Carga Fonte Incentivada | B4: =D4+F4+H4+J4+L4 -> 348027.3288 | D4: 270486.8096 | F4: 77540.51925
A5: Subsídio Geração Fonte Incentivada | B5: =D5+F5+H5+J5+L5 -> -15307.78218 | D5: -15308.33215 | F5: 0.5499791659
A6: Subsídio Distribuição | B6: 0 | D6: 0 | F6: 0 | M6: verificado--OK
A7: Subsídio Água, Esgoto e Saneamento | B7: 2983.578976 | D7: 2745.833474 | F7: 237.7455024
A8: Subsídio Rural | B8: -72391.51871 | D8: -69009.96375 | F8: -3381.554958
A9: Subsídio Irrigante/Aquicultor | B9: =D9+F9+H9+J9+L9 -> 3741.089052 | D9: 1935.54754 | F9: 1805.541512
A10: Subsídio SCEE
A11: Subsídio Lei 14299
A12: Total | B12: =SUM(B4:B9) -> 267052.696 | C12: =SUM(C4:C9) -> 0 | D12: 0 | F12: 0
A14: PREVISÃO SUBSÍDIO SCEE | D14: EMG | F14: ENF
A16: PREVISÃO ANUAL | D16: 12072663.7 | F16: 4979351.98
B17: EMG agrupada
A18: TIPO | B18: Previsão ANUAL | D18: Previsão MENSAL
A19: Subsídio Carga Fonte Incentivada | B19: 33246062.12 | D19: =B19/12 -> 2770505.177
A20: Subsídio Geração Fonte Incentivada | B20: 18248250.64 | D20: =B20/12 -> 1520687.554
A21: Subsídio Distribuição | D21: 0
A22: Subsídio Água, Esgoto e Saneamento | D22: 0
A23: Subsídio Rural | D23: 0
A24: Subsídio Irrigante/Aquicultor | B24: 518893.9007 | D24: 43241.15839
A25: Subsídio SCEE | B25: =D16+F16 -> 17052015.68 | D25: 1421001.307
A26: Subsídio Lei 14299
A27: Total | D27: =SUM(D19:D25) -> 5755435.195
A29: REPASSE CDE
B31: EMG agrupada
A32: Valores Mensais
A33: Tipo | B33: Ajuste | D33: Previsão | F33: Repasse CDE
A34: Subsídio Carga Fonte Incentivada | B34: =B4 -> 348027.3288 | D34: =D19 -> 2770505.177 | F34: =B34+D34 -> 3118532.505
A35: Subsídio Geração Fonte Incentivada | B35: -15307.78218 | D35: 1520687.554 | F35: =B35+D35 -> 1505379.772
A36: Subsídio Distribuição | B36: 0 | D36: 0 | F36: 0
A37: Subsídio Água, Esgoto e Saneamento | B37: 2983.578976 | D37: 0 | F37: 2983.578976
A38: Subsídio Rural | B38: -72391.51871 | D38: 0 | F38: -72391.51871
A39: Subsídio Irrigante/Aquicultor | B39: 3741.089052 | D39: 43241.15839 | F39: 46982.24744
A40: Subsídio SCEE | B40: =B10 -> 0 | D40: 1421001.307 | F40: 1421001.307
A41: Subsídio Lei 14299 | B41: 0 | F41: 0
A42: Total | B42: =B12 -> 267052.696 | D42: =D27 -> 5755435.195 | F42: =B42+D42 -> 6022487.891

Sheet DECi_FECi (hidden)
B1: nº Unidades Consumidoras (*) | C1: DECi | D1: FECi
A2: JAGUARI
A3: MOCOCA
A4: LESTE PLT
A5: SUL PLT
A6: STA CRUZ
A7: Sta Cruz agrupada | B7: =SUM(B2:B6) -> 0 | C7: =(C2*$B$2+C3*$B$3+C4*$B$4+C5*+C6*$B$6)/B7 -> 
A8: (*)

Sheet CVA
B1: CVA em Processamento | C1: EMG | F1: CVA Saldo a Compensar (R$) | H1: CVA em Processamento | I1: ENF | L1: CVA Saldo a Compensar (R$) | AF1: EMG agrupada | AJ1: CVA Saldo a Compensar (R$)
B2: Descrição | C2: Delta (R$) | D2: 5° Dia Útil Anterior (R$) | E2: 12 Meses Subsequentes (R$) | H2: Descrição | I2: Delta (R$) | J2: 5° Dia Útil Anterior (R$) | K2: 12 Meses Subsequentes (R$) | N2: Descrição | O2: Delta (R$) | P2: 5° Dia Útil Anterior (R$) | Q2: 12 Meses Subsequentes (R$) | R2: CVA Saldo a Compensar (R$) | T2: Descrição | U2: Delta (R$) | V2: 5° Dia Útil Anterior (R$) | W2: 12 Meses Subsequentes (R$) | X2: CVA Saldo a Compensar (R$) | Z2: Descrição | AA2: Delta (R$) | AB2: 5° Dia Útil Anterior (R$) | AC2: 12 Meses Subsequentes (R$) | AD2: CVA Saldo a Compensar (R$) | AF2: Descrição | AG2: Delta (R$) | AH2: 5° Dia Útil Anterior (R$) | AI2: 12 Meses Subsequentes (R$)
B3: CCC | C3: 0 | D3: 0 | E3: 0 | F3: 0 | H3: CCC | I3: 0 | J3: 0 | K3: 0 | L3: 0 | N3: CCC | T3: CCC | Z3: CCC | AF3: CCC
B4: CDE | C4: -1484048.734 | D4: -1355974.222 | E4: -1445429.979 | F4: -86201.76248 | H4: CDE | I4: -625981.8448 | J4: -602781.1024 | K4: -642547.5221 | L4: 72324.68336 | N4: CDE | T4: CDE | Z4: CDE | AF4: CDE | AG4: =C4+I4+O4+U4+AA4 -> -2110030.579 | AH4: =D4+J4+P4+V4+AB4 -> -1958755.324 | AI4: =E4+K4+Q4+W4+AC4 -> -2087977.501 | AJ4: =F4+L4+R4+X4+AD4 -> -13877.07912
B5: CDE Covid | C5: -0.0204 | D5: -0.0219 | E5: -0.0233 | F5: -3185.686975 | H5: CDE Covid | I5: -0.0227 | J5: -0.0244 | K5: -0.026 | L5: 1086.534393 | AF5: CDE Covid
F6: 15641.5708 | L6: 3620.632226
B7: Rede Básica | C7: 2653436.118 | D7: 2800132.085 | E7: 2984861.214 | F7: -17646.48317 | H7: Rede Básica | I7: 0 | J7: 0 | K7: 0 | L7: 0 | N7: Rede Básica | T7: Rede Básica | Z7: Rede Básica | AF7: Rede Básica | AG7: =C7+I7+O7+U7+AA7 -> 2653436.118 | AH7: 2800132.085 | AI7: 2984861.214 | AJ7: -17646.48317
B8: Compra Energia | C8: 2017997.755 | D8: 2285628.25 | E8: 2436414.749 | F8: 369833.5613 | H8: Compra Energia | I8: 3781496.44 | J8: 4192599.742 | K8: 4469192.157 | L8: 125070.804 | N8: Compra Energia | T8: Compra Energia | Z8: Compra Energia | AF8: Compra Energia | AG8: 5799494.195 | AH8: 6478227.991 | AI8: 6905606.906 | AJ8: 494904.3653
B9: CFURH | C9: 0 | D9: 0 | E9: 0 | F9: 0 | H9: CFURH | I9: 0 | J9: 0 | K9: 0 | L9: 0 | N9: CFURH | T9: CFURH | Z9: CFURH | AF9: CFURH | AG9: 0 | AH9: 0 | AI9: 0 | AJ9: 0
B10: Transporte Itaipu | C10: 1276540.387 | D10: 1338605.297 | E10: 1426915.198 | F10: -7340.433396 | H10: Transporte Itaipu | I10: 0 | J10: 0 | K10: 0 | L10: 0 | N10: Transporte Itaipu | T10: Transporte Itaipu | Z10: Transporte Itaipu | AF10: Transporte Itaipu | AG10: 1276540.387 | AH10: 1338605.297 | AI10: 1426915.198 | AJ10: -7340.433396
B11: Proinfa | C11: -1611604.244 | D11: -1675874.27 | E11: -1786434.338 | F11: -48830.96306 | H11: Proinfa | I11: -410287.5401 | J11: -426649.6143 | K11: -454796.362 | L11: 16543.15177 | N11: Proinfa | T11: Proinfa | Z11: Proinfa | AF11: Proinfa | AG11: -2021891.784 | AH11: -2102523.885 | AI11: -2241230.7 | AJ11: -32287.81128
B12: ESS/ERR | C12: 1357311.433 | D12: 845844.8354 | E12: 901646.5528 | F12: 302623.8598 | H12: ESS/ERR | I12: 0 | J12: 0 | K12: 0 | L12: 0 | N12: ESS/ERR | T12: ESS/ERR | Z12: ESS/ERR | AF12: ESS/ERR | AG12: 1357311.433 | AH12: 845844.8354 | AI12: 901646.5528 | AJ12: 302623.8598
B13: Total | C13: =SUM(C3:C12) -> 4209632.694 | D13: =SUM(D3:D12) -> 4238361.952 | E13: =SUM(E3:E12) -> 4517973.373 | F13: =SUM(F3:F12) -> 524893.6628 | H13: Total | I13: =SUM(I3:I12) -> 2745227.032 | J13: =SUM(J3:J12) -> 3163169 | K13: =SUM(K3:K12) -> 3371848.247 | L13: =SUM(L3:L12) -> 218645.8057 | N13: Total | O13: =SUM(O4:O12) -> 0 | P13: =SUM(P4:P12) -> 0 | Q13: =SUM(Q4:Q12) -> 0 | R13: =SUM(R4:R12) -> 0 | T13: Total | U13: =SUM(U4:U12) -> 0 | V13: =SUM(V4:V12) -> 0 | W13: =SUM(W4:W12) -> 0 | X13: =SUM(X4:X12) -> 0 | Z13: Total | AA13: =SUM(AA4:AA12) -> 0 | AB13: =SUM(AB4:AB12) -> 0 | AC13: 0 | AD13: 0 | AF13: Total | AG13: 6954859.726 | AH13: 7401530.953 | AI13: 7889821.62 | AJ13: 743539.4686

Sheet Resumo RTA
B1: DRA | C1: DRP | D1: Variação | E1: Participação no Reajuste | F1: Participação na Receita | M1: DRA - EMG | N1: DRA - ENF | P1: DRP - EMG | Q1: DRP - ENF
A2: PARCELA A [Encargos+Transmissão+Energia] | B2: =M2+N2 -> 857677603 | C2: =P2+Q2 -> 877583626.7 | D2: =C2/B2-1 -> 0.02320921488 | E2: =IFERROR((C2-B2)/$B$29,0) -> 0.01643414624 | F2: =IFERROR(C2/$C$29,0) -> 0.6979414035 | M2: 677239522.5 | N2: 180438080.4 | P2: 711409699.6 | Q2: 166173927.1
A3: Encargos Setoriais | B3: =M3+N3 -> 200789691.4 | C3: =P3+Q3 -> 227205781.7 | D3: =C3/B3-1 -> 0.1315609887 | E3: =IFERROR((C3-B3)/$B$29,0) -> 0.02180876985 | F3: =IFERROR(C3/$C$29,0) -> 0.1806965368 | M3: 164308524.4 | N3: 36481166.98 | P3: 191002307.1 | Q3: 36203474.52
A4: Taxa de Fisc. de Serviços de E.E. – TFSEE | B4: =M4+N4 -> 1739439.905 | C4: 1844490.826 | D4: 0.06039353269 | E4: 8.672863115e-05 | F4: 0.001466921757 | M4: 1414518.975 | N4: 324920.9303 | P4: 1511058.662 | Q4: 333432.1636
A5: Conta de Desenv. Energético – CDE (USO) | B5: =M5+N5 -> 145643993.9 | C5: 135175056.9 | D5: -0.07188032036 | E5: -0.008643013919 | F5: 0.1075045911 | M5: 118704013.7 | N5: 26939980.17 | P5: 110228545.6 | Q5: 24946511.35
A6: Conta de Desenv. Energético – CDE Conta-Covid (TUSD) | B6: =M6+N6 -> 8663537.388 | C6: 8592058.143 | D6: -0.008250584245 | E6: -5.9012306e-05 | F6: 0.006833255472 | M6: 7882489.048 | N6: 781048.3405 | P6: 7798736.254 | Q6: 793321.8896
A7: Conta de Desenv. Energético – CDE Conta-Covid (TE) | B7: =M7+N7 -> 14008043.47 | C7: 14207419.9 | D7: 0.01423299614 | E7: 0.0001646025053 | F7: 0.01129914721 | M7: 12057950.4 | N7: 1950093.069 | P7: 12214113.29 | Q7: 1993306.613
A8: Conta de Desenv. Energético – CDE Eletrobrás | B8: -19635697.48 | C8: -2472916.43 | D8: -0.8740601686 | E8: 0.01416936184 | F8: -0.001966708028 | M8: -19635697.48 | N8: 0 | P8: -2472916.43 | Q8: 0
A9: Conta de Desenv. Energético – CDE Conta-Escassez Hídrica (TUSD) | B9: 0 | C9: 225250.25 | E9: 0.0001859635852 | F9: 0.0001791413044 | I9: =IFERROR(BN270/$BN$297,0) -> 0 | M9: 0 | N9: 0 | P9: 225250.25 | Q9: 0
A10: Conta de Desenv. Energético – CDE Conta-Escassez Hídrica (TE) | B10: 0 | C10: 5888068.202 | E10: 0.004861110133 | F10: 0.004682774906 | M10: 0 | N10: 0 | P10: 4688320.333 | Q10: 1199747.869
A11: Conta de Desenv. Energético – CDE GD | B11: 0 | C11: 8324749.375 | E11: 0.006872801426 | F11: 0.006620665069 | M11: 0 | N11: 0 | P11: 6599901.579 | Q11: 1724847.796
A12: Compensação financeira - CFURH | B12: 0 | C12: 0 | E12: 0 | F12: 0 | M12: 0 | N12: 0 | P12: 0 | Q12: 0
A13: Encargos Serv. Sist. - ESS e Energ. Reserv. - EER | B13: 14548315.67 | C13: 23777686.37 | D13: 0.6343944488 | E13: 0.007619644659 | F13: 0.01891037081 | M13: 14548315.67 | N13: 0 | P13: 23777686.37 | Q13: 0
A14: PROINFA | B14: 25152434.2 | C14: 20619804.13 | D14: -0.1802064177 | E14: -0.003742078585 | F14: 0.01639891014 | M14: 20707299.93 | N14: 4445134.27 | P14: 16974480.36 | Q14: 3645323.773
A15: P&D, Efic.Energ e Ressarc.ICMS Sist.Isol. | B15: 10669624.34 | C15: 11024113.96 | D15: 0.03322418983 | E15: 0.0002926618792 | F15: 0.008767467094 | M15: 8629634.136 | N15: 2039990.2 | P15: 9457130.895 | Q15: 1566983.066
A16: ONS | B16: 0 | C16: 0 | E16: 0 | F16: 0 | M16: 0 | N16: 0 | P16: 0 | Q16: 0
A17: Custos de Transmissão | B17: 161836620.6 | C17: 172224057.6 | D17: 0.06418471234 | E17: 0.008575728615 | F17: 0.1369696252 | M17: 113533618.3 | N17: 48303002.35 | P17: 126269214.7 | Q17: 45954842.91
A18: Rede Básica | B18: 18511970.7 | C18: 20616672 | D18: 0.1136940702 | E18: 0.001737613161 | F18: 0.01639641916 | M18: 18511970.7 | N18: 0 | P18: 20616672 | Q18: 0
A19: Rede Básica Fronteira | B19: 4235614.77 | C19: 3566160 | D19: -0.1580537435 | E19: -0.0005526928791 | F19: 0.002836163574 | M19: 4235614.77 | N19: 0 | P19: 3566160 | Q19: 0
A20: Rede Básica ONS (A2) | B20: 582725.6383 | C20: 582734.96 | D20: 1.599672704e-05 | E20: 7.695872948e-09 | F20: 0.0004634485461 | M20: 582725.6383 | N20: 0 | P20: 582734.96 | Q20: 0
A21: Rede Básica Export. (A2) | B21: 0 | C21: 0 | E21: 0 | F21: 0 | M21: 0 | N21: 0 | P21: 0 | Q21: 0
A22: MUST Itaipu | B22: 4832553.125 | C22: 5532006.447 | D22: 0.1447378443 | E22: 0.0005774592809 | F22: 0.004399599339 | M22: 4832553.125 | N22: 0 | P22: 4377292.187 | Q22: 1154714.26
A23: Transporte de Itaipu | B23: 5814821.543 | C23: 7165695.606 | D23: 0.2323156528 | E23: 0.001115263507 | F23: 0.005698870735 | M23: 5814821.543 | N23: 0 | P23: 7165695.606 | Q23: 0
A24: Conexão | B24: 0 | C24: 1305928.853 | E24: 0.001078157345 | F24: 0.001038603944 | M24: 0 | N24: 0 | P24: 1305928.853 | Q24: 0
A25: Uso do sistema de distribuição e CCD | B25: 127858934.9 | C25: 133454859.7 | D25: 0.04376639664 | E25: 0.004619920505 | F25: 0.1061365199 | M25: 79555932.51 | N25: 48303002.35 | P25: 88654731.07 | Q25: 44800128.65
A26: Custos de Aquisição de Energia | B26: 488014311 | C26: 472350380.1 | D26: -0.03209727796 | E26: -0.01293193133 | F26: 0.3756597972 | M26: 392542011.6 | N26: 95472299.4 | P26: 388450578.1 | Q26: 83899801.98
A27: Receitas Irrecuperáveis | B27: 7036979.92 | C27: 5803407.443 | D27: -0.1752985643 | E27: -0.001018420892 | F27: 0.004615444286 | M27: 6855368.203 | N27: 181611.7169 | P27: 5687599.736 | Q27: 115807.7071
A28: PARCELA B | B28: 353582385.3 | C28: 379805062.8 | D28: 0.07416285022 | E28: 0.02164909081 | F28: 0.3020585965 | M28: 296751562.2 | N28: 56830823.08 | P28: 321723642.8 | Q28: 58081419.97
A29: IRT | B29: 1211259988 | C29: 1257388690 | D29: 0.03808323705 | E29: 0.03808323705 | F29: 1 | M29: 973991084.7 | N29: 237268903.5 | P29: 1033133342 | Q29: 224255347.1
C30: =Distribuidoras!D4 -> 1257388690 | D30: =Distribuidoras!D10 -> 0.03808323705
A31: Efeito dos Componentes Financeiros do Processo Atual | C31: RGE | D31: RGE Sul | E31: % | F31: EMG agrupada
A32: CVA em processamento - Energia | B32: 2436414.749 | C32: =B32+D32 -> 6905606.906 | D32: 4469192.157 | E32: =C32/FINANCEIROSAT!$J$6 -> 0.005701176438
A33: CVA em processamento - Transporte | B33: 4411776.412 | C33: =B33+D33 -> 4411776.412 | D33: 0 | E33: =C33/FINANCEIROSAT!$J$6 -> 0.003642303432
A34: CVA em processamento - Encargos Setoriais | B34: -2330217.788 | C34: -3427561.698 | D34: -1097343.91 | E34: =C34/FINANCEIROSAT!$J$6 -> -0.002829748965
A35: Saldo a Compensar CVA-Ano Anterior + Ajustes | B35: 524893.6628 | C35: 743539.4686 | D35: 218645.8057 | E35: =C35/FINANCEIROSAT!$J$6 -> 0.0006138562123
A36: Neutralidade de Parcela A- Energia | B36: 1015366.905 | C36: 888539.9245 | D36: -126826.9806 | E36: =C36/FINANCEIROSAT!$J$6 -> 0.0007335666439
A37: Neutralidade de Parcela A - Transporte | B37: -1853729.731 | C37: -1601512.899 | D37: 252216.8316 | E37: =C37/FINANCEIROSAT!$J$6 -> -0.001322187569
A38: Neutralidade de Parcela A - Encargos Setoriais | B38: -1385157.419 | C38: -791694.4665 | D38: 593462.9521 | E38: =C38/FINANCEIROSAT!$J$6 -> -0.0006536123328
A39: Neutralidade de Parcela A - Receita Irrecuperável | B39: -1641942.853 | C39: -1678509.175 | D39: -36566.32209 | E39: =C39/FINANCEIROSAT!$J$6 -> -0.001385754661
A40: Neutralidade de Fin. Parcela B - Conta Covid | B40: 0 | C40: 0 | D40: 0 | E40: =C40/FINANCEIROSAT!$J$6 -> 0
A41: Sobrecontratação/exposição de energia | B41: 48328659.35 | C41: 48328659.35 | D41: 0 | E41: =C41/FINANCEIROSAT!$J$6 -> 0.03989949294
A42: Garantias financeiras na contratação regulada de energia (CCEAR) | B42: 418158.7392 | C42: 418158.7392 | D42: 0 | E42: =C42/FINANCEIROSAT!$J$6 -> 0.0003452262464
A43: Compensação ref. acordos bilaterais de CCEAR | B43: 0 | C43: 0 | D43: 0 | E43: =C43/FINANCEIROSAT!$J$6 -> 0
A44: Ajuste Liminar Abrace | B44: 0 | C44: 0 | D44: 0 | E44: =C44/FINANCEIROSAT!$J$6 -> 0
A45: Ajuste ref. equilíbrio econômico-financeiro TUSDg (A3a) | B45: 0 | C45: 0 | D45: 0 | E45: =C45/FINANCEIROSAT!$J$6 -> 0
A46: Repasse de ultrapassagem de Supridas/Permissionárias de Energia | B46: 0 | C46: 0 | D46: 0 | E46: =C46/FINANCEIROSAT!$J$6 -> 0
A47: Reversão do Financeiro de Reperfilamento dos custos de RBSE | B47: 0 | C47: 0 | D47: 0 | E47: =C47/FINANCEIROSAT!$J$6 -> 0
A48: Ajuste CUSD | B48: 2684642.667 | C48: 1854955.499 | D48: -829687.1677 | E48: =C48/FINANCEIROSAT!$J$6 -> 0.00153142638
A49: Repasse de compensação DIC/FIC | B49: -182189.3439 | C49: -196871.6035 | D49: -14682.25965 | E49: =C49/FINANCEIROSAT!$J$6 -> -0.0001625345553
A50: Previsão do Risco Hidrológico | B50: 30000160.32 | C50: 35837200.82 | D50: 5837040.506 | E50: =C50/FINANCEIROSAT!$J$6 -> 0.02958671233
A51: Reversão do Risco Hidrológico | B51: -22874907.53 | C51: -22874907.53 | D51: 0 | E51: =C51/FINANCEIROSAT!$J$6 -> -0.01888521684
A52: Ressarcimento de P&D | B52: 0 | C52: 0 | D52: 0 | E52: =C52/FINANCEIROSAT!$J$6 -> 0
A53: Reversão Conta-Covid - CVA em processamento - Energia | B53: 0 | C53: 0 | D53: 0 | E53: =C53/FINANCEIROSAT!$J$6 -> 0
A54: Reversão Conta-Covid - CVA em processamento -Transporte | B54: 0 | C54: 0 | D54: 0 | E54: =C54/FINANCEIROSAT!$J$6 -> 0
A55: Reversão Conta-Covid - CVA em processamento - Encargos Setoriais | B55: 0 | C55: 0 | D55: 0 | E55: =C55/FINANCEIROSAT!$J$6 -> 0
A56: Reversão Conta-Covid - Saldo a Compensar CVA-Ano Anterior + Ajustes | B56: 0 | C56: 0 | D56: 0 | E56: =C56/FINANCEIROSAT!$J$6 -> 0
A57: Reversão Conta-Covid - Neutralidade de Parcela A | B57: 0 | C57: 0 | D57: 0 | E57: =C57/FINANCEIROSAT!$J$6 -> 0
A58: Reversão Conta-Covid - Sobrecontratação | B58: 0 | C58: 0 | D58: 0 | E58: =C58/FINANCEIROSAT!$J$6 -> 0
A59: Reversão Conta Covid - Parcela B | B59: 0 | C59: 0 | D59: 0 | E59: =C59/FINANCEIROSAT!$J$6 -> 0
A60: Reversão Conta Covid - Diferimento | B60: 0 | C60: 0 | D60: 0 | E60: =C60/FINANCEIROSAT!$J$6 -> 0
A61: Reversão Conta Covid - Postergação | B61: 0 | C61: 0 | D61: 0 | E61: =C61/FINANCEIROSAT!$J$6 -> 0
A62: Conselho de Consumidores | B62: 8300.036521 | C62: 8300.036521 | D62: 0 | E62: =C62/FINANCEIROSAT!$J$6 -> 6.852398826e-06
A63: 0 | B63: 0 | C63: 0 | D63: 0 | E63: =C63/FINANCEIROSAT!$J$6 -> 0
A64: Custo Distribuidora - Spread Conta Covid - Art. 4º, REN 952/2021 | B64: -177823.4811 | C64: -299310.6111 | D64: -121487.1299 | E64: =C64/FINANCEIROSAT!$J$6 -> -0.0002471068259
A65: 0 | B65: 0 | C65: 0 | D65: 0 | E65: =C65/FINANCEIROSAT!$J$6 -> 0
A66: 0 | B66: 0 | C66: 0 | D66: 0 | E66: =C66/FINANCEIROSAT!$J$6 -> 0
A67: 0 | B67: 0 | C67: 0 | D67: 0 | E67: =C67/FINANCEIROSAT!$J$6 -> 0
A68: Empréstimo Conta Escassez Hídrica - Importação de Energia | B68: 0 | C68: 0 | D68: 0 | E68: =C68/FINANCEIROSAT!$J$6 -> 0
A69: Empréstimo Conta Escassez Hídrica - Bônus de redução voluntária | B69: 0 | C69: 0 | D69: 0 | E69: =C69/FINANCEIROSAT!$J$6 -> 0
A70: Empréstimo Conta Escassez Hídrica - Diferimentos | B70: 0 | C70: 0 | D70: 0 | E70: =C70/FINANCEIROSAT!$J$6 -> 0
A71: Arrecadação de encargo CDE Covid dos consumidores migrantes (Ofício Circular 20/2021) | B71: -1127849.342 | C71: -1190590.131 | D71: -62740.78942 | E71: =C71/FINANCEIROSAT!$J$6 -> -0.0009829352434
A72: Reversão de Créditos de Rescisão Contratual e Migração de Consumidores (REN 376 e 414) | B72: -909184.72 | C72: -1103784.9 | D72: -194600.18 | E72: =C72/FINANCEIROSAT!$J$6 -> -0.0009112700087
A73: Financeiro CDE Eletrobras | B73: -2535004.341 | C73: -2535004.341 | D73: 0 | E73: =C73/FINANCEIROSAT!$J$6 -> -0.002092865583
A74: Neutralidade Crédito de PIS/COFINS | B74: 0 | C74: -85422.85524 | D74: -85422.85524 | E74: =C74/FINANCEIROSAT!$J$6 -> -7.052396353e-05
A75: Crédito de PIS/COFINS | B75: 0 | C75: -44360432.77 | D75: -44360432.77 | E75: =C75/FINANCEIROSAT!$J$6 -> -0.0366233783
A76: 0 | B76: 0 | C76: 0 | D76: 0 | E76: =C76/FINANCEIROSAT!$J$6 -> 0
A77: 0 | B77: 0 | C77: 0 | D77: 0 | E77: =C77/FINANCEIROSAT!$J$6 -> 0
A78: 0 | B78: 0 | C78: 0 | D78: 0 | E78: =C78/FINANCEIROSAT!$J$6 -> 0
A79: 0 | B79: 0 | C79: 0 | D79: 0 | E79: =C79/FINANCEIROSAT!$J$6 -> 0
A80: 0 | B80: 0 | C80: 0 | D80: 0 | E80: =C80/FINANCEIROSAT!$J$6 -> 0
A81: 0 | B81: 0 | C81: 0 | D81: 0 | E81: =C81/FINANCEIROSAT!$J$6 -> 0
A82: 0 | B82: 0 | C82: 0 | D82: 0 | E82: =C82/FINANCEIROSAT!$J$6 -> 0
A83: Valor total dos Componentes Financeiros | B83: =SUM(B32:B82) -> 54810366.29 | C83: =B83+D83 -> 19251134.18 | D83: =SUM(D32:D82) -> -35559232.11 | E83: =SUM(E32:E82) -> 0.01589347817
C85: =SUM(C32:C82) -> 19251134.18
A86: Aba financeiros | B86: 54810366.29 | C86: =B86+D86 -> 19251134.18 | D86: -35559232.11
C87: =FINANCEIROSAT!J8 -> 19251134.18
A88: DELTA | B88: =B86-B83 -> 0 | D88: =D86-D83 -> 0

Sheet NT
D2: Gráficos
D4: Análise de Impacto da RTA na Tarfia | K4: Composição da Receita
O5: Composição da Receita com Tributos | S5: Composição da Receita com detalhamento de Encargos
O20: Composição da Receita com Tributos
E21: Impacto da RTA na Tarifa | H21: Valores (R$) | K21: Composição da Receita | L21: Valores (R$) | O21: Encargos Setoriais | Q21: =L26/Q31 -> 0.1475901083 | T21: Composição da Receita com detalhamento de Encargos
E22: Encargos Setoriais | K22: Custo de Distribuição | L22: =Resultado!D45 -> 379805062.8 | M22: =$L$28/L22 -> 3.310615926 | O22: Custo de Distribuição | Q22: =L22/$Q$31 -> 0.2467167425 | T22: Custo de Distribuição | V22: =L22 -> 379805062.8
E23: Custos de Transmissão | K23: Custo de Energia | L23: =Resultado!D38 -> 472350380.1 | M23: =$L$28/L23 -> 2.661983016 | O23: Custo de Energia | Q23: =L23/$Q$31 -> 0.3068330533 | T23: Custo de Energia | V23: =L23 -> 472350380.1
E24: Custos de Aquisição de Energia | K24: Custo de Transmissão | L24: =Resultado!D29 -> 172224057.6 | M24: 7.300888779 | O24: Custo de Transmissão | Q24: =L24/$Q$31 -> 0.11187465 | T24: Custo de Transmissão | V24: =L24 -> 172224057.6
E25: Receitas Irrecuperáveis | K25: Receitas Irrecuperáveis | L25: =Resultado!D39 -> 5803407.443 | M25: 216.6638655 | O25: Receitas Irrecuperáveis | Q25: =L25/$Q$31 -> 0.003769822786 | T25: Receitas Irrecuperáveis | V25: =L25 -> 5803407.443
E26: Distribuição | K26: Encargos Setoriais | L26: =Resultado!D19 -> 227205781.7 | M26: 5.534140374 | T26: PROINFA | V26: =Resultado!D26 -> 20619804.13
E27: Componentes Financeiros | O27: ICMS | Q27: =Mercado!G9 -> 0.144700846 | T27: CDE | V27: =Resultado!D23 -> 169939686.4
E28: Efeito da Retirada dos Financeiros Anteriores | L28: =SUM(L22:L27) -> 1257388690 | O28: PIS/COFINS | Q28: =Mercado!G10 -> 0.03851477713 | T28: ESS/EER | V28: =Resultado!D25 -> 23777686.37
E29: Efeito Médio Consumidor | O29: Imposto por dentro | Q29: =LnkTxtPisCofinsb+LnkTxtICMSc -> 0.1832156231 | T29: Outros | V29: =Resultado!D22+Resultado!D24+Resultado!D27+Resultado!D28 -> 12868604.79
L30: =L22/$L$28 -> 0.3020585965 | M30: =Q29/(1-Q29) -> 0.2243133295 | O30: Imposto Total por Fora | Q30: =Q29/(1-Q29) -> 0.2243133295 | V30: =SUM(V22:V29) -> 1257388690
L31: =L23/$L$28 -> 0.3756597972 | O31: Receita com Impostos | Q31: =L28/(1-Q29) -> 1539437733
L32: 0.1369696252 | S32: =T32/T34 -> 0.1832156231 | T32: =T34-T33 -> 282049043.5 | V32: =V22/$V$30 -> 0.3020585965 | W32: Custo de Distribuição
L33: 0.004615444286 | S33: =T33/T34 -> 0.8167843769 | T33: =V30 -> 1257388690 | V33: =V23/$V$30 -> 0.3756597972 | W33: Custo de Energia
L34: 0.1806965368 | T34: =Q31 -> 1539437733 | V34: =V24/$V$30 -> 0.1369696252 | W34: Custo de Transmissão
L35: =L28/$L$28 -> 1 | V35: =V25/$V$30 -> 0.004615444286 | W35: Receitas Irrecuperáveis
V36: 0.01639891014 | W36: PROINFA
V37: 0.135152867 | W37: CDE
V38: 0.01891037081 | W38: ESS/EER
V39: 0.01023438885 | W39: Outros
V40: 1
G52: Subgrupos | H52: Mercado (MWh) | I52: Receita (R$)
G53: Fornecimento | H53: =SUM(H54:H60) -> 1443361.796 | I53: =SUM(I54:I60) -> 1027885522
G54: A1 (230 kV ou mais) | H54: =Mercado!C10 -> 0 | I54: =Mercado!D10 -> 0
G55: A2 (88 a 138 kV) | H55: =Mercado!C11 -> 0 | I55: =Mercado!D11 -> 0
G56: A3 (69 kV) | H56: =Mercado!C12 -> 177.853 | I56: =Mercado!D12 -> 96342.33979
G57: A3a (30 kV a 44 kV) | H57: =Mercado!C13 -> 0 | I57: =Mercado!D13 -> 0
G58: A4 (2,3 kV a 25 kV) | H58: =Mercado!C14 -> 154705.416 | I58: =Mercado!D14 -> 112158131.7
G59: As | H59: =Mercado!C15 -> 0 | I59: =Mercado!D15 -> 0
G60: BT (menor que 2,3 kV) | H60: =Mercado!C16 -> 1288478.527 | I60: =Mercado!D16 -> 915631048.4
G61: Suprimento | H61: =Mercado!C17 -> 0 | I61: =Mercado!D17 -> 0
G62: Livres A1 | H62: =Mercado!C18 -> 0 | I62: =Mercado!D18 -> 0
G63: Demais Livres | H63: =Mercado!C19 -> 471925.189 | I63: =Mercado!D19 -> 135432352.7
G64: Distribuição | H64: =Mercado!C20 -> 38755.972 | I64: =Mercado!D20 -> 9905741.54
G65: Geração | H65: =Mercado!C21 -> 0 | I65: =Mercado!D21 -> 38036371.6
G66: Total | H66: =SUM(H54:H65) -> 1954042.957 | I66: =SUM(I54:I65) -> 1211259988
K70: Encargos Setoriais | L70: DRA (R$) | M70: DRP (R$) | N70: Dispositivo Legal
K71: Reserva Global de Reversão – RGR | M71: =Resultado!D20 -> 0
K72: Conta de Consumo de Combustíveis – CCC | M72: =Resultado!D21 -> 0
K73: Taxa de Fisc. de Serviços de E.E. – TFSEE | M73: =Resultado!D22 -> 1844490.826
K74: Conta de Desenvolvimento Energético – CDE | M74: =Resultado!D23 -> 169939686.4
K75: Compensação financeira - CFURH | M75: =Resultado!D24 -> 0
K76: Encargos Serv. Sist. - ESS e Energ. Reserv. - EER | M76: =Resultado!D25 -> 23777686.37
K77: PROINFA | M77: =Resultado!D26 -> 20619804.13
K78: P&D e Eficiência Energética | M78: =Resultado!D27 -> 11024113.96
K79: Contribuição ONS. | M79: =Resultado!D28 -> 0
K81: Total de Encargos Tarifários | L81: =SUM(L71:L80) -> 0 | M81: =SUM(M71:M80) -> 227205781.7
P83: Componente | Q83: DRA (R$) | R83: DRP (R$)
K84: Encargos Setoriais | L84: Processo Anterior (R$) | M84: Processo Atual (R$) | N84: Dispositivo Legal | P84: Rede Básica | R84: =Resultado!D30 -> 20616672
K85: Taxa de Fisc. de Serviços de E.E. – TFSEE | M85: ='Resumo RTA'!C4 -> 1844490.826 | N85: Conforme módulo 5.5 do PRORET | P85: Rede Básica Fronteira | R85: =Resultado!D31 -> 3566160
K86: Conta de Desenv. Energético – CDE (USO) | M86: ='Resumo RTA'!C5 -> 135175056.9 | N86: REH 3.175/2023 | P86: Rede Básica ONS (A2) | R86: =Resultado!D32 -> 582734.96
K87: Conta de Desenv. Energético – CDE Conta-Covid | M87: ='Resumo RTA'!C6+'Resumo RTA'!C7 -> 22799478.04 | N87: DSP 939/2021 | P87: Rede Básica Export. (A2) | R87: =Resultado!D33 -> 0
K88: Conta de Desenv. Energético – CDE Eletrobrás | M88: ='Resumo RTA'!C8 -> -2472916.43 | N88: Desp. 1.959/2022 e Previsão 2023 | P88: MUST Itaipu | R88: =Resultado!D34 -> 5532006.447
K89: Conta de Desenv. Energético – CDE Conta-Escassez Hídrica | M89: ='Resumo RTA'!C9+'Resumo RTA'!C10 -> 6113318.452 | N89: DSP 510/2023 | P89: Transporte de Itaipu | R89: =Resultado!D35 -> 7165695.606
K90: Conta de Desenv. Energético – CDE GD | M90: ='Resumo RTA'!C11 -> 8324749.375 | N90: REH 3.175/2023 | P90: Conexão | R90: =Resultado!D36 -> 1305928.853
K91: Compensação financeira - CFURH | N91: 0 | P91: Uso do sistema de distribuição | R91: =Resultado!D37 -> 133454859.7
K92: Encargos Serv. Sist. - ESS e Energ. Reserv. - EER | M92: ='Resumo RTA'!C13 -> 23777686.37 | N92: DSP 1.141/2023 | P92: Total dos Custos de Transporte | Q92: =SUM(Q84:Q91) -> 0 | R92: =SUM(R84:R91) -> 172224057.6
K93: PROINFA | M93: ='Resumo RTA'!C14 -> 20619804.13 | N93: REH 3.147/2022
K94: P&D e Eficiência Energética | M94: ='Resumo RTA'!C15 -> 11024113.96 | N94: REN nº 316/2008
K95: Contribuição ONS | N95: 0 | T95: Perdas | U95: DRA | V95: DRP | W95: Referência
K96: Total de Encargos Tarifários | M96: ='Resumo RTA'!C3 -> 227205781.7 | T96: Não Técnica (s/ Baixa Tensão) | V96: ='Energia e Perdas Regulatórias'!B73 -> 0.003058173113 | W96: REHs 2.884 e 2885/2021
T97: Técnica (s/ merc. injetado) | V97: ='Energia e Perdas Regulatórias'!C73 -> 0.09774863893 | W97: =W96 -> REHs 2.884 e 2885/2021
T98: Rede Básica (s/ merc. Injetado) | V98: ='Energia e Perdas Regulatórias'!D73 -> 0.006261634582 | W98: CCEE (últimos 12 meses)
T99: Mercado Baixa Tensão (MWh) | V99: ='Energia e Perdas Regulatórias'!S53 -> 1288478.527 | W99: SAMP
V101: =H60 -> 1288478.527
Y102: Descrição | Z102: DRA (MWh) | AA102: DRP (MWh)
Y103: Mercado Total | AA103: ='Energia e Perdas Regulatórias'!D53 -> 1443361.796
Y104: Fornecimento | AA104: ='Energia e Perdas Regulatórias'!M53 -> 1443361.796
Y105: Suprimento | AA105: ='Energia e Perdas Regulatórias'!I53 -> 0
Y106: Consumidores Livres | AA106: ='Energia e Perdas Regulatórias'!O53 -> 510681.161
Y107: Cons Rede Básica | AA107: ='Energia e Perdas Regulatórias'!Q53 -> 0
Y108: Perdas Totais | Z108: =Z109+Z110 -> 0 | AA108: =AA109+AA110 -> 254007.9437
Y109: Perdas Rede Básica | AA109: ='Energia e Perdas Regulatórias'!I63+'Energia e Perdas Regulatórias'!K63 -> 10547.996
Y110: Perdas na Distribuição | AA110: =SUM(AA111:AA112) -> 243459.9477
Y111: Perda Não Técnica | AA111: ='Energia e Perdas Regulatórias'!E63 -> 3940.390388
Y112: Perda Técnica | AA112: ='Energia e Perdas Regulatórias'!G63 -> 239519.5573
Y113: Energia Requerida | Z113: =Z103+Z108 -> 0 | AA113: =AA103+AA108 -> 1697369.74
AC116: Energia Requerida (MWh) | AD116: Tarifa Média (R$/MWh) | AE116: Energia Requerida (R$)
AC117: =AA113 -> 1697369.74 | AD117: =AE117/AC117 -> 278.2837287 | AE117: =Distribuidoras!D35 -> 472350380.1 | AG117: EMG agrupada | AM117: EMG | AS117: ENF
AG119: Contratos | AH119: Montante Contratado (MWh) | AI119: Montante Considerado (MWh) | AJ119: Tarifa (R$/MWh) | AK119: Despesa (R$) | AM119: Contratos | AN119: Montante Contratado (MWh) | AO119: Montante Considerado (MWh) | AP119: Tarifa (R$/MWh) | AQ119: Despesa (R$) | AS119: Contratos | AT119: Montante Contratado (MWh) | AU119: Montante Considerado (MWh) | AV119: Tarifa (R$/MWh) | AW119: Despesa (R$)
AG120: AMBIENTE REGULADO - CCEAR | AH120: =SUM(AH121:AH125) -> 477351.0096 | AI120: =SUM(AI121:AI125) -> 377941.1083 | AJ120: =AK120/AI120 -> 216.4866115 | AK120: =SUM(AK121:AK125) -> 81819189.87 | AM120: AMBIENTE REGULADO - CCEAR | AN120: 477351.0096 | AO120: 377941.1083 | AP120: 216.4866115 | AQ120: 81819189.87 | AS120: AMBIENTE REGULADO - CCEAR | AT120: 0 | AU120: 0 | AV120: 0 | AW120: 0
AG121: Existente - CCEAR-DSP | AH121: =AN121+AT121 -> 0 | AI121: =AO121+AU121 -> 0 | AK121: =AQ121+AW121 -> 0 | AM121: Existente - CCEAR-DSP | AN121: 0 | AO121: 0 | AQ121: 0 | AS121: Existente - CCEAR-DSP | AT121: 0 | AU121: 0 | AW121: 0
AG122: Existente - CCEAR-QTD | AH122: =AN122+AT122 -> 0 | AI122: =AO122+AU122 -> 0 | AK122: =AQ122+AW122 -> 0 | AM122: Existente - CCEAR-QTD | AN122: 0 | AO122: 0 | AQ122: 0 | AS122: Existente - CCEAR-QTD | AT122: 0 | AU122: 0 | AW122: 0
AG123: Nova e Alternativa- CCEAR-DSP | AH123: 291889.7124 | AI123: 231102.7298 | AJ123: =AK123/AI123 -> 244.4564332 | AK123: 56494549.03 | AM123: Nova e Alternativa- CCEAR-DSP | AN123: 291889.7124 | AO123: 231102.7298 | AP123: 244.4564332 | AQ123: 56494549.03 | AS123: Nova e Alternativa- CCEAR-DSP | AT123: 0 | AU123: 0 | AW123: 0
AG124: Nova e Alternativa- CCEAR-QTD | AH124: 76281.92267 | AI124: 60395.96401 | AJ124: 177.9780768 | AK124: 10749157.52 | AM124: Nova e Alternativa- CCEAR-QTD | AN124: 76281.92267 | AO124: 60395.96401 | AP124: 177.9780768 | AQ124: 10749157.52 | AS124: Nova e Alternativa- CCEAR-QTD | AT124: 0 | AU124: 0 | AW124: 0
AG125: Madeira e Belo Monte | AH125: 109179.3746 | AI125: 86442.41451 | AJ125: 168.6149491 | AK125: 14575483.32 | AM125: Madeira e Belo Monte | AN125: 109179.3746 | AO125: 86442.41451 | AP125: 168.6149491 | AQ125: 14575483.32 | AS125: Madeira e Belo Monte | AT125: 0 | AU125: 0 | AW125: 0
AG126: Bilaterais | AH126: =AN126+AT126 -> 1026147.281 | AI126: =AO126+AU126 -> 493963.0767 | AJ126: =IFERROR(AK126/AI126,0) -> 454.6128139 | AK126: =AQ126+AW126 -> 224561944.2 | AM126: Bilaterais | AN126: 513073.6405 | AO126: 406224.3851 | AP126: 454.6128139 | AQ126: 184674810.8 | AS126: Bilaterais | AT126: 513073.6405 | AU126: 87738.69159 | AV126: 454.6128139 | AW126: 39887133.47
AG127: =AM127 -> Energia Base | AH127: =SUM(AH128:AH132) -> 1508714.245 | AI127: =SUM(AI128:AI132) -> 743835.6487 | AJ127: 199.3685897 | AK127: =SUM(AK128:AK132) -> 148297464.2 | AM127: Energia Base | AN127: 765282.5598 | AO127: 611714.1003 | AP127: 199.3685897 | AQ127: 121956577.4 | AS127: Energia Base | AT127: 743431.6847 | AU127: 132121.5485 | AV127: 199.3685897 | AW127: 26340886.78
AG128: Geração Própria | AH128: =AN128+AT128 -> 0 | AI128: =AO128+AU128 -> 0 | AK128: =AQ128+AW128 -> 0 | AM128: Geração Própria | AN128: 0 | AO128: 0 | AP128: 0 | AQ128: 0 | AS128: Geração Própria | AT128: 0 | AU128: 0 | AV128: 0 | AW128: 0
AG129: Cota Angra I/Angra II | AH129: =AN129+AT129 -> 128984.657 | AI129: =AO129+AU129 -> 62090.16891 | AJ129: =AK129/AI129 -> 347.5 | AK129: =AQ129+AW129 -> 21576333.7 | AM129: Cota Angra I/Angra II | AN129: 64492.3285 | AO129: 51061.5912 | AP129: 347.5 | AQ129: 17743902.94 | AS129: Cota Angra I/Angra II | AT129: 64492.3285 | AU129: 11028.57772 | AV129: 347.5 | AW129: 3832430.757
AG130: Cotas Lei n º 12783/2013 | AH130: 674748 | AI130: 324807.7583 | AJ130: 159.4405913 | AK130: 51787541.04 | AM130: Cotas Lei n º 12783/2013 | AN130: 337374 | AO130: 267114.7665 | AP130: 159.4405913 | AQ130: 42588936.31 | AS130: Cotas Lei n º 12783/2013 | AT130: 337374 | AU130: 57692.9918 | AV130: 159.4405913 | AW130: 9198604.726
AG131: Itaipu (tirando as perdas) | AH131: 671091.4452 | AI131: 323047.5792 | AJ131: 231.9583687 | AK131: 74933589.49 | AM131: Itaipu (tirando as perdas) | AN131: 335545.7226 | AO131: 265667.2338 | AP131: 231.9583687 | AQ131: 61623738.19 | AS131: Itaipu (tirando as perdas) | AT131: 335545.7226 | AU131: 57380.34532 | AV131: 231.9583687 | AW131: 13309851.3
AG132: PROINFA | AH132: 33890.14235 | AI132: 33890.14235 | AJ132: 0 | AK132: 0 | AM132: PROINFA | AN132: 27870.50872 | AO132: 27870.50872 | AP132: 0 | AQ132: 0 | AS132: PROINFA | AT132: 6019.633628 | AU132: 6019.633628 | AV132: 0 | AW132: 0
AG133: Total | AH133: =AH120+AH127 -> 1986065.254 | AI133: =AI120+AI127 -> 1121776.757 | AJ133: =AK133/AI133 -> 405.3200385 | AK133: =AK120+AK127+AK126 -> 454678598.3 | AM133: Total | AN133: 1755707.21 | AO133: 1395879.594 | AP133: 278.2837287 | AQ133: 388450578.1 | AS133: Total | AT133: 1256505.325 | AU133: 219860.2401 | AV133: 301.2278174 | AW133: 66228020.25
AK135: =AQ133+AW133 -> 454678598.3
AV136: EMG | AW136: ENF | AX136: COMPONENTES FINANCEIROS | BB136: % | BC136: Valor (R$) | BD136: Percentual em relação à Receita Requerida
AV137: 2436414.749 | AW137: 4469192.157 | AX137: CVA em processamento - Energia | BB137: =BC137/FINANCEIROSAT!$J$6 -> 0.005701176438 | BC137: =AV137+AW137 -> 6905606.906 | BD137: =BC137/FINANCEIROSAT!$J$5 -> 0.005701176438
AV138: 4411776.412 | AW138: 0 | AX138: CVA em processamento - Transporte | BB138: =BC138/FINANCEIROSAT!$J$6 -> 0.003642303432 | BC138: =AV138+AW138 -> 4411776.412 | BD138: =BC138/FINANCEIROSAT!$J$5 -> 0.003642303432
AV139: -2330217.788 | AW139: -1097343.91 | AX139: CVA em processamento - Encargos Setoriais | BB139: =BC139/FINANCEIROSAT!$J$6 -> -0.002829748965 | BC139: -3427561.698 | BD139: =BC139/FINANCEIROSAT!$J$5 -> -0.002829748965
AV140: 524893.6628 | AW140: 218645.8057 | AX140: Saldo a Compensar CVA-Ano Anterior + Ajustes | BB140: =BC140/FINANCEIROSAT!$J$6 -> 0.0006138562123 | BC140: 743539.4686 | BD140: =BC140/FINANCEIROSAT!$J$5 -> 0.0006138562123
AV141: 1015366.905 | AW141: -126826.9806 | AX141: Neutralidade de Parcela A- Energia | BB141: =BC141/FINANCEIROSAT!$J$6 -> 0.0007335666439 | BC141: 888539.9245 | BD141: =BC141/FINANCEIROSAT!$J$5 -> 0.0007335666439
AV142: -1853729.731 | AW142: 252216.8316 | AX142: Neutralidade de Parcela A - Transporte | BB142: =BC142/FINANCEIROSAT!$J$6 -> -0.001322187569 | BC142: -1601512.899 | BD142: =BC142/FINANCEIROSAT!$J$5 -> -0.001322187569
AV143: -1385157.419 | AW143: 593462.9521 | AX143: Neutralidade de Parcela A - Encargos Setoriais | BB143: =BC143/FINANCEIROSAT!$J$6 -> -0.0006536123328 | BC143: -791694.4665 | BD143: =BC143/FINANCEIROSAT!$J$5 -> -0.0006536123328
AV144: -1641942.853 | AW144: -36566.32209 | AX144: Neutralidade de Parcela A - Receita Irrecuperável | BB144: =BC144/FINANCEIROSAT!$J$6 -> -0.001385754661 | BC144: -1678509.175 | BD144: =BC144/FINANCEIROSAT!$J$5 -> -0.001385754661
AV145: 0 | AW145: 0 | AX145: Neutralidade de Fin. Parcela B - Conta Covid | BB145: =BC145/FINANCEIROSAT!$J$6 -> 0 | BC145: 0 | BD145: =BC145/FINANCEIROSAT!$J$5 -> 0
AV146: 48328659.35 | AW146: 0 | AX146: Sobrecontratação/exposição de energia | BB146: =BC146/FINANCEIROSAT!$J$6 -> 0.03989949294 | BC146: 48328659.35 | BD146: =BC146/FINANCEIROSAT!$J$5 -> 0.03989949294
AV147: 418158.7392 | AW147: 0 | AX147: Garantias financeiras na contratação regulada de energia (CCEAR) | BB147: =BC147/FINANCEIROSAT!$J$6 -> 0.0003452262464 | BC147: 418158.7392 | BD147: =BC147/FINANCEIROSAT!$J$5 -> 0.0003452262464
AV148: 0 | AW148: 0 | AX148: Compensação ref. acordos bilaterais de CCEAR | BB148: =BC148/FINANCEIROSAT!$J$6 -> 0 | BC148: 0 | BD148: =BC148/FINANCEIROSAT!$J$5 -> 0
AV149: 0 | AW149: 0 | AX149: Ajuste Liminar Abrace | BB149: =BC149/FINANCEIROSAT!$J$6 -> 0 | BC149: 0 | BD149: =BC149/FINANCEIROSAT!$J$5 -> 0
AV150: 0 | AW150: 0 | AX150: Ajuste ref. equilíbrio econômico-financeiro TUSDg (A3a) | BB150: =BC150/FINANCEIROSAT!$J$6 -> 0 | BC150: 0 | BD150: =BC150/FINANCEIROSAT!$J$5 -> 0
AV151: 0 | AW151: 0 | AX151: Repasse de ultrapassagem de Supridas/Permissionárias de Energia | BB151: =BC151/FINANCEIROSAT!$J$6 -> 0 | BC151: 0 | BD151: =BC151/FINANCEIROSAT!$J$5 -> 0
AV152: 0 | AW152: 0 | AX152: Reversão do Financeiro de Reperfilamento dos custos de RBSE | BB152: =BC152/FINANCEIROSAT!$J$6 -> 0 | BC152: 0 | BD152: =BC152/FINANCEIROSAT!$J$5 -> 0
AV153: 2684642.667 | AW153: -829687.1677 | AX153: Ajuste CUSD | BC153: 1854955.499 | BD153: =BC153/FINANCEIROSAT!$J$5 -> 0.00153142638
AV154: -182189.3439 | AW154: -14682.25965 | AX154: Repasse de compensação DIC/FIC | BC154: -196871.6035 | BD154: =BC154/FINANCEIROSAT!$J$5 -> -0.0001625345553
AV155: 30000160.32 | AW155: 5837040.506 | AX155: Previsão do Risco Hidrológico | BC155: 35837200.82 | BD155: =BC155/FINANCEIROSAT!$J$5 -> 0.02958671233
AV156: -22874907.53 | AW156: 0 | AX156: Reversão do Risco Hidrológico | BC156: -22874907.53 | BD156: =BC156/FINANCEIROSAT!$J$5 -> -0.01888521684
AV157: 0 | AW157: 0 | AX157: Ressarcimento de P&D | BC157: 0 | BD157: =BC157/FINANCEIROSAT!$J$5 -> 0
AV158: 0 | AW158: 0 | AX158: Reversão Conta-Covid - CVA em processamento - Energia | BB158: =BC158/FINANCEIROSAT!$J$6 -> 0 | BC158: 0 | BD158: =BC158/FINANCEIROSAT!$J$5 -> 0
AV159: 0 | AW159: 0 | AX159: Reversão Conta-Covid - CVA em processamento -Transporte | AZ159: =SUM(AZ137:AZ158) -> 0 | BC159: 0 | BD159: =BC159/FINANCEIROSAT!$J$5 -> 0
AV160: 0 | AW160: 0 | AX160: Reversão Conta-Covid - CVA em processamento - Encargos Setoriais | BC160: 0 | BD160: =BC160/FINANCEIROSAT!$J$5 -> 0
AV161: 0 | AW161: 0 | AX161: Reversão Conta-Covid - Saldo a Compensar CVA-Ano Anterior + Ajustes | BC161: 0 | BD161: =BC161/FINANCEIROSAT!$J$5 -> 0 | BF161: Tipo | BG161: Ajuste (R$) | BH161: Previsão (R$) | BI161: Valor Mensal (R$)
AV162: 0 | AW162: 0 | AX162: Reversão Conta-Covid - Neutralidade de Parcela A | BC162: 0 | BD162: =BC162/FINANCEIROSAT!$J$5 -> 0 | BF162: Subsídio Carga Fonte Incentivada | BG162: =Subsídios!B34 -> 348027.3288 | BH162: =Subsídios!D34 -> 2770505.177 | BI162: =Subsídios!F34 -> 3118532.505
AV163: 0 | AW163: 0 | AX163: Reversão Conta-Covid - Sobrecontratação | BC163: 0 | BD163: =BC163/FINANCEIROSAT!$J$5 -> 0 | BF163: Subsídio Geração Fonte Incentivada | BG163: =Subsídios!B35 -> -15307.78218 | BH163: =Subsídios!D35 -> 1520687.554 | BI163: =Subsídios!F35 -> 1505379.772
AV164: 0 | AW164: 0 | AX164: Reversão Conta Covid - Parcela B | BC164: 0 | BD164: =BC164/FINANCEIROSAT!$J$5 -> 0 | BF164: Subsídio Distribuição | BG164: =Subsídios!B36 -> 0 | BH164: =Subsídios!D36 -> 0 | BI164: =Subsídios!F36 -> 0
AV165: 0 | AW165: 0 | AX165: Reversão Conta Covid - Diferimento | BC165: 0 | BD165: =BC165/FINANCEIROSAT!$J$5 -> 0 | BF165: Subsídio Água, Esgoto e Saneamento | BG165: =Subsídios!B37 -> 2983.578976 | BH165: =Subsídios!D37 -> 0 | BI165: =Subsídios!F37 -> 2983.578976
AV166: 0 | AW166: 0 | AX166: Reversão Conta Covid - Postergação | BC166: 0 | BD166: =BC166/FINANCEIROSAT!$J$5 -> 0 | BF166: Subsídio Rural | BG166: =Subsídios!B38 -> -72391.51871 | BH166: =Subsídios!D38 -> 0 | BI166: =Subsídios!F38 -> -72391.51871
AV167: 8300.036521 | AW167: 0 | AX167: Conselho de Consumidores | BC167: 8300.036521 | BD167: =BC167/FINANCEIROSAT!$J$5 -> 6.852398826e-06 | BF167: Subsídio Irrigante/Aquicultor | BG167: =Subsídios!B39 -> 3741.089052 | BH167: =Subsídios!D39 -> 43241.15839 | BI167: =Subsídios!F39 -> 46982.24744
AV168: 0 | AW168: 0 | BC168: 0 | BD168: =BC168/FINANCEIROSAT!$J$5 -> 0 | BF168: Subsídio SCEE | BG168: =Subsídios!B40 -> 0 | BH168: =Subsídios!D40 -> 1421001.307 | BI168: =Subsídios!F40 -> 1421001.307
AV169: -177823.4811 | AW169: -121487.1299 | AX169: Custo Distribuidora - Spread Conta Covid - Art. 4º, REN 952/2021 | BC169: -299310.6111 | BD169: =BC169/FINANCEIROSAT!$J$5 -> -0.0002471068259 | BF169: Subsídio Lei 14299 | BG169: =Subsídios!B41 -> 0 | BH169: =Subsídios!D41 -> 0
AV170: 0 | AW170: 0 | AX170: 0 | BC170: 0 | BD170: =BC170/FINANCEIROSAT!$J$5 -> 0 | BF170: Total | BG170: =SUM(BG162:BG169) -> 267052.696 | BH170: =SUM(BH162:BH169) -> 5755435.195 | BI170: =SUM(BI162:BI169) -> 6022487.891
AV171: 0 | AW171: 0 | AX171: 0 | BC171: 0 | BD171: =BC171/FINANCEIROSAT!$J$5 -> 0
AV172: 0 | AW172: 0 | AX172: 0 | BC172: 0 | BD172: =BC172/FINANCEIROSAT!$J$5 -> 0
AV173: 0 | AW173: 0 | AX173: Empréstimo Conta Escassez Hídrica - Importação de Energia | BC173: 0 | BD173: =BC173/FINANCEIROSAT!$J$5 -> 0
AV174: 0 | AW174: 0 | AX174: Empréstimo Conta Escassez Hídrica - Bônus de redução voluntária | BC174: 0 | BD174: =BC174/FINANCEIROSAT!$J$5 -> 0
AV175: 0 | AW175: 0 | AX175: Empréstimo Conta Escassez Hídrica - Diferimentos | BC175: 0 | BD175: =BC175/FINANCEIROSAT!$J$5 -> 0
AV176: -1127849.342 | AW176: -62740.78942 | AX176: Arrecadação de encargo CDE Covid dos consumidores migrantes (Ofício Circular 20/2021) | BC176: -1190590.131 | BD176: =BC176/FINANCEIROSAT!$J$5 -> -0.0009829352434
AV177: -909184.72 | AW177: -194600.18 | AX177: Reversão de Créditos de Rescisão Contratual e Migração de Consumidores (REN 376 e 414) | BC177: -1103784.9 | BD177: =BC177/FINANCEIROSAT!$J$5 -> -0.0009112700087
AV178: -2535004.341 | AW178: 0 | AX178: Financeiro CDE Eletrobras | BC178: -2535004.341 | BD178: =BC178/FINANCEIROSAT!$J$5 -> -0.002092865583
AV179: 0 | AW179: -85422.85524 | AX179: Neutralidade Crédito de PIS/COFINS | BC179: -85422.85524 | BD179: =BC179/FINANCEIROSAT!$J$5 -> -7.052396353e-05
AV180: 0 | AW180: -44360432.77 | AX180: Crédito de PIS/COFINS | BC180: -44360432.77 | BD180: =BC180/FINANCEIROSAT!$J$5 -> -0.0366233783
AV181: 0 | AW181: ] | BD181: =BC181/FINANCEIROSAT!$J$5 -> 0
AV182: 0 | AW182: 0 | BC182: 0 | BD182: =BC182/FINANCEIROSAT!$J$5 -> 0
AV183: 0 | AW183: 0 | BC183: 0 | BD183: =BC183/FINANCEIROSAT!$J$5 -> 0
AV184: 0 | AW184: 0 | BC184: 0 | BD184: =BC184/FINANCEIROSAT!$J$5 -> 0
AV185: 0 | AW185: 0 | BC185: 0 | BD185: =BC185/FINANCEIROSAT!$J$5 -> 0
AV186: 0 | AW186: 0 | BC186: 0 | BD186: =BC186/FINANCEIROSAT!$J$5 -> 0
AV187: 0 | AW187: 0 | BC187: 0 | BD187: =BC187/FINANCEIROSAT!$J$5 -> 0
AV188: 0 | AW188: 0 | BC188: 0 | BD188: =BC188/FINANCEIROSAT!$J$5 -> 0
AV189: 0 | AW189: 0 | BC189: 0 | BD189: =BC189/FINANCEIROSAT!$J$5 -> 0
AV190: 0 | AW190: 0 | BC190: 0 | BD190: =BC190/FINANCEIROSAT!$J$5 -> 0
AV191: 0 | AW191: 0 | BC191: 0 | BD191: =BC191/FINANCEIROSAT!$J$5 -> 0
AV192: 0 | AW192: 0 | BC192: 0 | BD192: =BC192/FINANCEIROSAT!$J$5 -> 0
AV193: 54810366.29 | AW193: -35559232.11 | AX193: Total | BC193: =AV193+AW193 -> 19251134.18 | BD193: =SUM(BD137:BD192) -> 0.01589347817
AX195: VERIFICAÇÃO - ABA FINANCEIROS | BC195: =FINANCEIROSAT!J8 -> 19251134.18 | BD195: =FINANCEIROSAT!J7 -> 0.01589347817

Sheet Tarifa B1 (hidden)
AD3: TUSD | AE3: 500
R4: Evolução da Tarifa B1 Residencial | AD4: TE | AE4: 400
B5: EMG | AE5: =D20 -> 802.6
A7: Ano | B7: Tipo | C7: Tipo Ano | D7: B1 - Residencial | E7: IGPM | F7: IPCA | G7: Data
A8: 2013 | B8: RTE | C8: RTE 2013 | D8: 364.48 | E8: 364.48 | F8: 364.48 | G8: 2012-12-01
A9: 2013 | B9: Reajuste | C9: Reajuste 2013 | D9: 371.56 | E9: 368.0851413 | F9: 374.9840205 | G9: 2013-05-01
A10: 2014 | B10: Reajuste | C10: Reajuste 2014 | D10: 392.88 | E10: 396.929129 | F10: 398.8887105 | G10: 2014-05-01
A11: 2015 | B11: Reajuste | C11: Reajuste 2015 | D11: 501.1 | E11: 413.2419112 | F11: 432.6863221 | G11: 2015-05-01
A12: 2016 | B12: Revisão | C12: Revisão 2016 | D12: 506.8 | E12: 459.0544211 | F12: 473.0178351 | G12: 2016-05-01
A13: 2017 | B13: RTE | C13: RTE 2017 | D13: 501.47 | E13: 475.8736518 | F13: 487.8359708 | G13: 2017-03-01
A14: 2017 | B14: Reajuste | C14: Reajuste 2017 | D14: 507.38 | E14: 466.2739898 | F14: 490.0334984 | G14: 2017-05-01
A15: 2018 | B15: Reajuste | C15: Reajuste 2018 | D15: 565.18 | E15: 486.1469116 | F15: 504.02402 | G15: 2018-05-01
A16: 2019 | B16: Reajuste | C16: Reajuste 2019 | D16: 595.83 | E16: 523.3026536 | F16: 527.502762 | G16: 2019-05-01
A17: 2020 | B17: COVID | C17: COVID 2020 | D17: 627.73 | E17: 566.0429002 | F17: 538.8050557 | G17: 2020-06-01
A18: 2021 | B18: 1 | C18: Revisão 2021 | D18: 668.9489463 | E18: 763.8077944 | F18: 580.7017507 | G18: 2021-05-01
A19: 2022 | B19: 0 | C19: Reajuste 2022 | D19: 766.4157165 | E19: 845.7138619 | F19: 648.8251091 | G19: 2022-05-01
A20: 2023 | B20: 0 | C20: Reajuste 2023 | D20: 802.6 | E20: 807.9302381 | F20: 674.3617568 | G20: 2023-05-01
D21: =D20/D8-1 -> 1.202041264 | E21: =E20/E8-1 -> 1.216665491 | F21: =F20/F8-1 -> 0.8502023617 | AC21: Data | AD21: Tarifa B1 EMG | AE21: Tarifa B1 ENF | AF21: IGPM | AG21: IPCA | AH21: Eixo Ref
D22: 1.194907814 | E22: 1.216665491 | F22: 0.8502023617 | AC22: 2023-01-01 | AD22: =AE5 -> 802.6 | AE22: =AE5 -> 802.6 | AF22: =E38 -> 632.2816646 | AG22: =F38 -> 527.7517217 | AH22: 150
B23: ENF | AC23: 2022-01-01 | AD23: =D19 -> 766.4157165 | AE23: =D37 -> 821.9287722 | AF23: =E37 -> 661.8509163 | AG23: =F37 -> 507.7668846 | AH23: 150
AC24: 2021-01-01 | AD24: =D18 -> 668.9489463 | AE24: =D36 -> 687.5493759 | AF24: =E36 -> 597.7516881 | AG24: =F36 -> 454.4539271 | AH24: 150
A25: Ano | B25: Tipo | C25: Tipo Ano | D25: B1 - Residencial | E25: IGPM | F25: IPCA | G25: Data | AC25: 2020-01-01 | AD25: =D17 -> 627.73 | AE25: =D35 -> 662.44 | AF25: =E35 -> 442.9819931 | AG25: 421.665809 | AH25: 150
A26: 2013 | B26: RTE | C26: RTE 2013 | D26: 285.24 | E26: 285.24 | F26: 285.24 | G26: 2012-12-01 | AC26: 2019-01-01 | AD26: =D16 -> 595.83 | AE26: =D34 -> 649.89 | AF26: =E34 -> 409.5337163 | AG26: 412.8206975 | AH26: 150
A27: 2013 | B27: Reajuste | C27: Reajuste 2013 | D27: 324.01 | E27: 288.0613633 | F27: 293.4603874 | G27: 2013-05-01 | AC27: 2018-01-01 | AD27: =D15 -> 565.18 | AE27: =D33 -> 595.67 | AF27: =E33 -> 380.4558413 | AG27: =F33 -> 394.446366 | AH27: 150
A28: 2014 | B28: Reajuste | C28: Reajuste 2014 | D28: 368.2 | E28: 310.634506 | F28: 312.1680635 | G28: 2014-05-01 | AC28: 2017-01-01 | AD28: =D14 -> 507.38 | AE28: =D32 -> 524.75 | AF28: =E32 -> 364.9034044 | AG28: =F32 -> 383.4974624 | AH28: 150
A29: 2015 | B29: Reajuste | C29: Reajuste 2015 | D29: 520.54 | E29: 323.4007977 | F29: 338.6178844 | G29: 2015-05-01 | AC29: 2016-01-01 | AD29: =D12 -> 506.8 | AE29: =D30 -> 555.17 | AF29: =E30 -> 359.2534106 | AG29: =F30 -> 370.1810999 | AH29: 150
A30: 2016 | B30: Revisão | C30: Revisão 2016 | D30: 555.17 | E30: 359.2534106 | F30: 370.1810999 | G30: 2016-05-01 | AC30: 2015-01-01 | AD30: =D11 -> 501.1 | AE30: =D29 -> 520.54 | AF30: =E29 -> 323.4007977 | AG30: =F29 -> 338.6178844 | AH30: 150
A31: 2017 | B31: RTE | C31: RTE 2017 | D31: 549.36 | E31: 372.416046 | F31: 381.7776896 | G31: 2017-03-01 | AC31: 2014-01-01 | AD31: =D10 -> 392.88 | AE31: =D28 -> 368.2 | AF31: =E28 -> 310.634506 | AG31: =F28 -> 312.1680635 | AH31: 150
A32: 2017 | B32: Reajuste | C32: Reajuste 2017 | D32: 524.75 | E32: 364.9034044 | F32: 383.4974624 | G32: 2017-05-01 | AC32: 2013-01-01 | AD32: =D8 -> 364.48 | AE32: =D26 -> 285.24 | AF32: =E26 -> 285.24 | AG32: =F26 -> 285.24 | AH32: 150
A33: 2018 | B33: Reajuste | C33: Reajuste 2018 | D33: 595.67 | E33: 380.4558413 | F33: 394.446366 | G33: 2018-05-01
A34: 2019 | B34: Reajuste | C34: Reajuste 2019 | D34: 649.89 | E34: 409.5337163 | F34: 412.8206975 | G34: 2019-05-01
A35: 2020 | B35: Reajuste | C35: Reajuste 2020 | D35: 662.44 | E35: 442.9819931 | F35: 421.665809 | G35: 2020-06-01 | AD35: =AD22/AD32-1 -> 1.202041264 | AE35: =AE22/AE32-1 -> 1.81377086 | AF35: =AF22/AF32-1 -> 1.216665491 | AG35: =AG22/AG32-1 -> 0.8502023617
A36: 2021 | B36: 1 | C36: Revisão 2021 | D36: 687.5493759 | E36: 597.7516881 | F36: 454.4539271 | G36: 2021-05-01
A37: 2022 | B37: 0 | C37: Reajuste 2022 | D37: 821.9287722 | E37: 661.8509163 | F37: 507.7668846 | G37: 2022-05-01
A38: 2023 | B38: 0 | C38: Reajuste 2023 | D38: 800 | E38: 632.2816646 | F38: 527.7517217 | G38: 2023-05-01
D39: =D38/D26-1 -> 1.804655729 | E39: =E38/E26-1 -> 1.216665491 | F39: =F38/F26-1 -> 0.8502023617
D40: 1.804655729 | E40: 1.216665491 | F40: 0.8502023617
E42: =E39/E26-1 -> -0.9957345902

Sheet Tab Compra Energia (hidden)
A3: EMG agrupada
A4: TabCompEnergia
C5: Montante de energia (MWh) | F5: Custo unitário (R$/MWh) | H5: Custo Total (R$) | J5: Cálculo de impacto por despesa (método tradicional) | AL5: Total
A6: Tipo de contrato | B6: Processo DRA | C6: Processo Atual | D6: Variação | E6: Processo DRA | F6: Processo Atual | G6: Variação | H6: Processo Anterior | I6: Processo Atual | J6: Processo anterior sem Sobra/Exposição | K6: Processo atual sem Sobra/Exposição | L6: Impacto IRT | AL6: CCEAR Existente Disponibilidade
A7: Existente - CCEAR-DSP | B7: =B53+B99 -> 0 | C7: =C53+C99 -> 0 | D7: =IFERROR(C7/B7-1,"-") -> - | G7: =IFERROR(F7/E7-1,"-") -> - | H7: =H53+H99 -> 0 | I7: =I53+I99 -> 0 | J7: =J53+J99 -> 0 | K7: =K53+K99 -> 0 | L7: =(K7-J7)/$H$26 -> 0 | N7: =IFERROR(H7/SUMIFS(S9:S21,Q9:Q21,"Existente",P9:P21,"CCEAR-DISP"),0) -> 0 | S7: Prcesso Anterior | AL7: CCEAR Existente Quantidade
A8: Existente - CCEAR-QTD | B8: =B54+B100 -> 0 | C8: 0 | D8: =IFERROR(C8/B8-1,"-") -> - | G8: =IFERROR(F8/E8-1,"-") -> - | H8: =H54+H100 -> 0 | I8: 0 | J8: 0 | K8: 0 | L8: =(K8-J8)/$H$26 -> 0 | N8: =IFERROR(H8/SUMIFS(S9:S20,Q9:Q20,"Existente",P9:P20,"CCEAR-QTD"),0) -> 0 | S8: MWh | T8: R$ | AL8: CCEAR Nova/Alternativa Disponibilidade
A9: Nova e Alternativa- CCEAR-DSP | B9: =B55+B101 -> 232199.2657 | C9: 291889.7124 | D9: 0.2570656132 | E9: =H9/B9 -> 247.7947911 | F9: =IFERROR(I9/C9,0) -> 244.4564332 | G9: -0.01347226817 | H9: =H55+H101 -> 57537768.54 | I9: 71354317.97 | J9: 48471213.78 | K9: 56494549.03 | L9: 0.006623957963 | N9: =IFERROR(H9/SUMIFS(S9:S20,Q9:Q20,"<>Existente",P9:P20,"CCEAR-DISP",Q9:Q20,"<>Madeira",Q9:Q20,"<>Belo Monte"),0) -> 249.4264265 | P9: BILATERAL | Q9: Alternativa | R9: valor | S9: =S55+S101 -> 812253.2254 | T9: =T55+T101 -> 343812243.3 | AL9: CCEAR Nova/Alternativa Quantidade
A10: Nova e Alternativa- CCEAR-QTD | B10: =B56+B102 -> 58772.50728 | C10: 76281.92267 | D10: 0.2979184691 | E10: 173.3297606 | F10: 177.9780768 | G10: 0.02681776141 | H10: =H56+H102 -> 10187024.62 | I10: 13576509.89 | J10: 8581796.975 | K10: 10749157.52 | L10: 0.001789343795 | N10: =IFERROR(H10/SUMIFS(S9:S20,Q9:Q20,"<>Existente",P9:P20,"CCEAR-QTD",Q9:Q20,"<>Madeira",Q9:Q20,"<>Belo Monte"),0) -> 319.8200189 | P10: CCEAR-DISP | Q10: Existente | R10: valor | S10: =S56+S102 -> 1518.943113 | T10: 452951.7721 | AL10: Madeira e Belo Monte
A11: Madeira e Belo Monte | B11: =B57+B103 -> 108881.07 | C11: 109179.3746 | D11: 0.002739728692 | E11: 160.2862141 | F11: 168.6149491 | G11: 0.05196164271 | H11: =H57+H103 -> 17452134.5 | I11: 18409274.69 | J11: 14702102 | K11: 14575483.32 | L11: -0.0001045346878 | N11: =IFERROR(H11/(SUMIFS(S9:S21,Q9:Q21,"Belo Monte",P9:P21,"CCEAR-QTD")+SUMIFS(S9:S21,Q9:Q21,"Madeira",P9:P21,"CCEAR-QTD")),0) -> 226.566641 | P11: CCEAR-DISP | Q11: Nova | R11: valor | S11: =S57+S103 -> 230680.3226 | T11: 57084816.76 | AL11: Cota Angra I e II
A12: Cota Angra I e Angra II | B12: =B58+B104 -> 47988.53982 | C12: 128984.657 | D12: 1.687822081 | E12: 349.15 | F12: 347.5 | G12: -0.004725762566 | H12: =H58+H104 -> 16755198.68 | I12: 44822168.31 | J12: 14114986.34 | K12: 23039297.01 | L12: 0.007367791187 | N12: =IFERROR(H12/SUMIFS(S9:S21,P9:P21,"CCEN"),0) -> 349.15 | P12: CCEAR-QTD | Q12: Madeira | R12: valor | S12: =S58 -> 77028.703 | T12: =T58 -> 11894213.51 | AL12: Cotas Lei 12.783/2013
A13: Cotas Lei n º 12.783/2013 | B13: =B59+B105 -> 368414.6598 | C13: 674748 | D13: 0.8314906369 | E13: =H13/B13 -> 122.6489457 | F13: 159.4405913 | G13: 0.2999752293 | H13: =H59+H105 -> 45185669.6 | I13: 107582220.1 | J13: 38065505.61 | K13: 55298947.27 | L13: 0.01422769829 | N13: =IFERROR(H13/SUMIFS(S9:S21,P9:P21,"CCGF"),0) -> 122.6489457 | P13: CCEAR-QTD | Q13: Alternativa | R13: valor | S13: =S59+S104 -> 31852.367 | T13: =T59+T104 -> 5557920.988 | AL13: CCEAR Ajustes
A14: Ajuste - CCEAR | B14: =B60+B106 -> 0 | C14: 0 | D14: - | E14: =N14 -> 0 | F14: 0 | G14: - | H14: =H60+H106 -> 0 | I14: 0 | J14: 0 | K14: 0 | L14: 0 | P14: CCEAR-QTD | Q14: Existente | R14: valor | S14: =S60+S105 -> 58772.50728 | T14: 10187024.62 | AL14: Itaipu
A15: Itaipu | B15: =B61+B107 -> 263804.5175 | C15: 671091.4452 | D15: 1.543896714 | E15: =H15/B15 -> 280.4336053 | F15: 231.9583687 | G15: -0.1728581585 | H15: =H61+H107 -> 73979651.94 | I15: 155665276.9 | J15: 62322255.73 | K15: 80014392.09 | L15: 0.01460639048 | N15: =IFERROR(H15/SUMIFS(S9:S21,P9:P21,"Itaipu"),0) -> 280.4336053 | P15: CCEN | Q15: Madeira | R15: valor | S15: =S61+S106 -> 47988.53982 | T15: 16755198.68 | AL15: Bilateral
A16: Bilateral | B16: =B62+B108 -> 812253.2254 | C16: 1026147.281 | D16: 0.2633342029 | E16: 0 | F16: 454.6128139 | G16: - | H16: =H62+H108 -> 343812243.3 | I16: 466499702.9 | J16: 302794660.1 | K16: 239788158.8 | L16: -0.05201732241 | P16: CCGF | Q16: Nova | R16: valor | S16: =S62+S107 -> 368414.6598 | T16: 45185669.6 | AL16: Geração Própria
A17: Geração Própria | B17: =B63+B109 -> 0 | C17: 0 | D17: - | E17: 0 | F17: 0 | G17: - | H17: =H63+H109 -> 0 | I17: 0 | J17: 0 | K17: 0 | L17: 0 | P17: ITAIPU | R17: valor | S17: =S63+S108 -> 263804.5175 | T17: 73979651.94 | AL17: Montante de Reposição
A18: Montante de Reposição | B18: =B64+B110 -> 0 | C18: 0 | D18: - | F18: 0 | G18: - | H18: =H64+H110 -> 0 | I18: 0 | J18: 0 | K18: 0 | L18: 0 | P18: PROINFA | R18: valor | S18: =S64+S109 -> 29042.93521 | T18: 0 | AL18: Proinfa
A19: Proinfa | B19: =B65+B111 -> 36101.07422 | C19: 33890.14235 | D19: -0.0612428279 | E19: 0 | F19: 0 | G19: - | H19: =H65+H111 -> 0 | I19: 0 | J19: 0 | K19: 0 | L19: 0 | P19: SOBRA/EXPOSIÇÃO | R19: valor | S19: =S65+S110 -> -237040.0886 | T19: -71678198.53
A20: Sobra (-) / Exposição (+) | B20: =B21-SUM(B7:B19) -> -257617.7045 | C20: =C66+C112 -> -1314842.796 | E20: =H20/B20 -> 298.4863957 | F20: ='Energia e Perdas Regulatórias'!AB84 -> 278.2837287 | H20: =H21-SUM(H7:H19) -> -76895380.08 | I20: =I66+I112 -> -405559090.7
A21: TOTAL | B21: ='Energia e Perdas Regulatórias'!B53 -> 1670797.155 | C21: =SUM(C7:C20) -> 1697369.74 | D21: 0.01590413551 | E21: ='Energia e Perdas Regulatórias'!L63 -> 292.7613044 | F21: 196.46 | G21: -0.3289413694 | H21: ='Resumo RTA'!B26 -> 488014311 | I21: =SUM(I7:I20) -> 472350380.1 | J21: =SUM(J7:J20) -> 489052520.6 | K21: =SUM(K7:K20) -> 479959985 | L21: =SUM(L7:L20) -> -0.007506675389
H23: =H67+H113 -> 488014311 | I23: 472350380.1
F24: Custo ponderado pelo mercado | H24: =H70+H116 -> 488012167.5
F25: Delta RA1 e faturado | H25: =I21-H24 -> -15661787.48
C26: Incremento em relação ao cuto médio | F26: Base faturado | H26: =H72+H118 -> 1211259988
A27: Tipo de Contrato | B27: Variação de montante DRA/DRP | C27: Efeito Montante | D27: Efeito Preço | E27: Efeito Preço-Montante | F27: Impacto Alteração Tarifa Média | G27: Impacto de Perdas | H27: Impacto Total | I27: Impacto sobre o Custo Médio
A28: Existente - CCEAR-DSP | B28: =B7/$B$21*$B$42 -> 0 | C28: =(C7-B7*$C$21/$B$21)*(IF(B7=0,F7,E7)-$E$21)/$C$21 -> 0 | D28: =IF(OR(C7=0,B7=0),0,(F7-E7)*B7/$B$21) -> 0 | E28: =IF(OR(C7=0,B7=0),0,(F7-E7)*(C7-B7*C$21/B$21)/$C$21) -> 0 | F28: =SUM(C28:E28)*$C$21 -> 0 | G28: =B28*E7 -> 0 | H28: =F28+G28 -> 0 | I28: =(H28+$BZ$355*H28/SUM($H$28:$H$39))/$H$26 -> 0
A29: Existente - CCEAR-QTD | B29: =B8/$B$21*$B$42 -> 0 | C29: =(C8-B8*$C$21/$B$21)*(IF(B8=0,F8,E8)-$E$21)/$C$21 -> 0 | D29: =IF(OR(C8=0,B8=0),0,(F8-E8)*B8/$B$21) -> 0 | E29: =IF(OR(C8=0,B8=0),0,(F8-E8)*(C8-B8*C$21/B$21)/$C$21) -> 0 | F29: =SUM(C29:E29)*$C$21 -> 0 | G29: 0 | H29: 0 | I29: =(H29+$BZ$355*H29/SUM($H$28:$H$39))/$H$26 -> 0
A30: Nova e Alternativa- CCEAR-DSP | B30: 3692.928587 | C30: -1.483479457 | D30: -0.4639487475 | E30: -0.1101349641 | F30: -3492445.46 | G30: 915088.4676 | H30: -2577356.993 | I30: -0.002127831364
A31: Nova e Alternativa- CCEAR-QTD | B31: 934.7259199 | C31: -1.166240157 | D31: 0.1635106899 | E31: 0.0453904622 | F31: -1624958.257 | G31: 162015.8199 | H31: -1462942.437 | I31: -0.001207785654
A32: Madeira e Belo Monte | B32: 1731.659292 | C32: 0.1118694347 | D32: 0.5427598284 | E32: -0.00703325337 | F32: 1099209.87 | G32: 277561.1119 | H32: 1376770.982 | I32: 0.001136643657
A33: Cota Angra I e Angra II | B33: 763.2162402 | C33: 2.665434952 | D33: -0.04739120513 | E33: -0.07799378264 | F33: 4311403.946 | G33: 266476.9503 | H33: 4577880.896 | I33: 0.003779437066
A34: Cotas Lei n º 12.783/2013 | B34: 5859.316673 | C34: -30.1138542 | D34: 8.112643452 | E34: 6.512979187 | F34: -26289255.57 | G34: 718639.0124 | H34: -25570616.56 | I34: -0.02111075806
A35: Ajuste - CCEAR | B35: 0 | C35: 0 | D35: 0 | E35: 0 | F35: 0 | G35: 0 | H35: 0 | I35: 0
A36: Itaipu | B36: 4195.582794 | C36: -2.92758182 | D36: -7.65382342 | E36: -11.51189859 | F36: -37500505.37 | G36: 1176582.409 | H36: -36323922.96 | I36: -0.02998854359
A37: Bilateral | B37: 12918.18536 | C37: -34.66419635 | D37: 221.0087103 | E37: 53.82811051 | F37: 407661745 | G37: 0 | H37: 407661745 | I37: 0.3365600688
A38: Geração Própria | B38: 0 | C38: 0 | D38: 0 | E38: 0 | F38: 0 | G38: 0 | H38: 0 | I38: 0
A39: Montante de Reposição | B39: 0 | C39: 0 | D39: 0 | E39: 0 | F39: 0 | G39: 0 | H39: 0 | I39: 0
A40: Proinfa | B40: 574.1563764 | C40: 0.4803703344 | D40: 0 | E40: 0 | F40: 815366.0695 | G40: 0 | H40: 815366.0695 | I40: 0.0006731552907
A41: Sobra (-) / Exposição (+) | B41: -4097.186882 | C41: -3.552115514 | D41: 3.115018889 | E41: 12.53468343 | F41: 20534077.77 | G41: -1222954.545 | H41: 19311123.23
A42: Total | B42: =C21-B21 -> 26572.58436 | C42: =(C21-B21*C21/B21)*(E21-E21)/C21 -> 0 | D42: =IF(OR(C21=0,B21=0),0,(F21-E21)*B21/B21) -> -96.30130437 | E42: =IF(OR(C21=0,B21=0),0,(F21-E21)*(C21-B21*C21/B21)/C21) -> 0 | F42: =SUM(C42:E42)*C21 -> -163458919.9 | G42: 7779424.459 | H42: =SUM(H28:H41) -> 367808047.2 | I42: =SUM(I28:I41) -> 0.2877143861
A49: EMG
A50: TabCompEnergia
C51: Montante de energia (MWh) | F51: Custo unitário (R$/MWh) | H51: Custo Total (R$) | J51: Cálculo de impacto por despesa (método tradicional)
A52: Tipo de contrato | B52: Processo DRA | C52: Processo Atual | D52: Variação | E52: Processo DRA | F52: Processo Atual | G52: Variação | H52: Processo Anterior | I52: Processo Atual | J52: Processo anterior sem Sobra/Exposição | K52: Processo atual sem Sobra/Exposição | L52: Impacto IRT | P52: I | Q52: J | R52: K | S52: L | T52: M
A53: Existente - CCEAR-DSP | B53: 0 | C53: 0 | D53: - | E53: 0 | F53: 0 | G53: - | H53: 0 | I53: 0 | J53: 0 | K53: 0 | L53: 0 | N53: =IFERROR(H53/SUMIFS($S$55:$S$67,$Q$55:$Q$67,"Existente",$P$55:$P$67,"CCEAR-DISP"),0) -> 0 | S53: Prcesso Anterior
A54: Existente - CCEAR-QTD | B54: 0 | C54: 0 | D54: - | E54: 0 | F54: 0 | G54: - | H54: 0 | I54: 0 | J54: 0 | K54: 0 | L54: 0 | N54: =IFERROR(H54/SUMIFS($S$55:$S$67,$Q$55:$Q$67,"Existente",$P$55:$P$67,"CCEAR-QTD"),0) -> 0 | S54: MWh | T54: R$
A55: Nova e Alternativa- CCEAR-DSP | B55: 232199.2657 | C55: 291889.7124 | D55: 0.2570656132 | E55: 247.7947911 | F55: 244.4564332 | G55: -0.01347226817 | H55: 57537768.54 | I55: 71354317.97 | J55: 48471213.78 | K55: 56494549.03 | L55: 0.008237585919 | N55: =IFERROR(H55/SUMIFS($S$55:$S$67,$Q$55:$Q$67,"<>Existente",$P$55:$P$67,"CCEAR-DISP",$Q$55:$Q$67,"<>Madeira",$Q$55:$Q$67,"<>Belo Monte"),0) -> 247.7947911 | P55: BILATERAL | Q55: 0 | R55: valor | S55: 511671.8 | T55: 246306634.7
A56: Nova e Alternativa- CCEAR-QTD | B56: 58772.50728 | C56: 76281.92267 | D56: 0.2979184691 | E56: 173.3297606 | F56: 177.9780768 | G56: 0.02681776141 | H56: 10187024.62 | I56: 13576509.89 | J56: 8581796.975 | K56: 10749157.52 | L56: 0.002225236533 | N56: =IFERROR(H56/SUMIFS($S$55:$S$67,$Q$55:$Q$67,"<>Existente",$P$55:$P$67,"CCEAR-QTD",$Q$55:$Q$67,"<>Madeira",$Q$55:$Q$67,"<>Belo Monte"),0) -> 173.3297606 | P56: CCEAR-DISP | Q56: Alternativa | R56: valor | S56: 1518.943113 | T56: 452951.7721
A57: Madeira e Belo Monte | B57: 108881.07 | C57: 109179.3746 | D57: 0.002739728692 | E57: 160.2862141 | F57: 168.6149491 | G57: 0.05196164271 | H57: 17452134.5 | I57: 18409274.69 | J57: 14702102 | K57: 14575483.32 | L57: -0.0001299998395 | N57: =IFERROR(H57/(SUMIFS(S55:S67,Q55:Q67,"Belo Monte",P55:P67,"CCEAR-QTD")+SUMIFS(S55:S67,Q55:Q67,"Madeira",P55:P67,"CCEAR-QTD")),0) -> 160.2862141 | P57: CCEAR-DISP | Q57: Nova | R57: valor | S57: 230680.3226 | T57: 57084816.76
A58: Cota Angra I e Angra II | B58: 47988.53982 | C58: 64492.3285 | D58: 0.3439110407 | E58: 349.15 | F58: 347.5 | G58: -0.004725762566 | H58: 16755198.68 | I58: 22411084.15 | J58: 14114986.34 | K58: 17743902.94 | L58: 0.003725821163 | N58: =IFERROR(H58/SUMIFS(S55:S67,P55:P67,"CCEN"),0) -> 349.15 | P58: CCEAR-QTD | Q58: Belo Monte | R58: valor | S58: 77028.703 | T58: 11894213.51
A59: Cotas Lei n º 12.783/2013 | B59: 368414.6598 | C59: 337374 | D59: -0.08425468155 | E59: 122.6489457 | F59: 159.4405913 | G59: 0.2999752293 | H59: 45185669.6 | I59: 53791110.05 | J59: 38065505.61 | K59: 42588936.31 | L59: 0.004644221873 | N59: =IFERROR(H59/SUMIFS(S55:S67,P55:P67,"CCGF"),0) -> 122.6489457 | P59: CCEAR-QTD | Q59: Madeira | R59: valor | S59: 31852.367 | T59: 5557920.988
A60: Ajuste - CCEAR | P60: CCEAR-QTD | Q60: Nova | R60: valor | S60: 58772.50728 | T60: 10187024.62
A61: Itaipu | B61: 263804.5175 | C61: 335545.7226 | D61: 0.2719483571 | E61: 280.4336053 | F61: 231.9583687 | G61: -0.1728581585 | H61: 73979651.94 | I61: 77832638.45 | J61: 62322255.73 | K61: 61623738.19 | L61: -0.0007171703612 | N61: =IFERROR(H61/SUMIFS(S55:S67,P55:P67,"Itaipu"),0) -> 280.4336053 | P61: CCEN | Q61: 0 | R61: valor | S61: 47988.53982 | T61: 16755198.68
A62: Bilateral | B62: 511671.8 | C62: 513073.6405 | D62: 0.002739726027 | E62: 481.3762155 | F62: 454.6128139 | G62: -0.05559768173 | H62: 246306634.7 | I62: 233249851.5 | J62: 207494691.7 | K62: 184674810.8 | L62: -0.02342925034 | P62: CCGF | Q62: 0 | R62: valor | S62: 368414.6598 | T62: 45185669.6
A63: Geração Própria | B63: 0 | C63: 0 | D63: - | E63: 0 | F63: 0 | G63: - | H63: 0 | I63: 0 | J63: 0 | K63: 0 | L63: 0 | P63: ITAIPU | Q63: 0 | R63: valor | S63: 263804.5175 | T63: 73979651.94
A64: Montante de Reposição | B64: 0 | C64: 0 | D64: - | E64: 0 | F64: 0 | G64: - | H64: 0 | I64: 0 | J64: 0 | K64: 0 | L64: 0 | P64: PROINFA | Q64: 0 | R64: valor | S64: 29042.93521 | T64: 0
A65: Proinfa | B65: 29042.93521 | C65: 27870.50872 | D65: -0.04036873287 | E65: 0 | F65: 0 | G65: - | H65: 0 | I65: 0 | J65: 0 | K65: 0 | L65: 0 | P65: SOBRA/EXPOSIÇÃO | Q65: 0 | R65: valor | S65: -244098.2276 | T65: -71678198.53
A66: Sobra (-) / Exposição (+) | B66: -250818.3574 | C66: -359827.6163 | D66: 0.434614356 | E66: 298.4712588 | F66: 283.9532152 | G66: -0.04864134542 | H66: -74862070.87 | I66: -102174208.6 | J66: 0 | K66: 0 | L66: 0
A67: TOTAL | B67: 1369956.938 | C67: 1395879.594 | D67: 0.01892224131 | E67: 286.5360223 | F67: 278.2837287 | G67: -0.028800196 | H67: 392542011.6 | I67: 388450578.1 | J67: 393752552.2 | K67: 388450578.1 | L67: -0.005443555051
F70: Custo ponderado pelo mercado | H70: 392540218.2
F71: Delta RA1 e faturado
C72: Incremento em relação ao cuto médio | F72: Base faturado | H72: 973991084.7
A73: Tipo de Contrato | B73: Variação de montante DRA/DRP | C73: Efeito Montante | D73: Efeito Preço | E73: Efeito Preço-Montante | F73: Impacto Alteração Tarifa Média | G73: Impacto de Perdas | H73: Impacto Total | I73: Impacto sobre o Custo Médio
A74: Existente - CCEAR-DSP | B74: 0 | C74: 0 | D74: 0 | E74: 0 | F74: 0 | G74: 0 | H74: 0 | I74: 0
A75: Existente - CCEAR-QTD | B75: 0 | C75: 0 | D75: 0 | E75: 0 | F75: 0 | G75: 0 | H75: 0 | I75: 0
A76: Nova e Alternativa- CCEAR-DSP | B76: 4393.730537 | C76: -1.534704621 | D76: -0.5658311046 | E76: -0.1322465265 | F76: -3116695.182 | G76: 1088743.541 | H76: -2027951.642 | I76: -0.001335519903
A77: Nova e Alternativa- CCEAR-QTD | B77: 1112.107565 | C77: -1.329826676 | D77: 0.1994173598 | E77: 0.05460347109 | F77: -1501695.427 | G77: 192761.338 | H77: -1308934.089 | I77: -0.0008620065146
A78: Madeira e Belo Monte | B78: 2060.27388 | C78: 0.1593606538 | D78: 0.6619489651 | E78: -0.01051306669 | F78: 1131774.362 | G78: 330233.5003 | H78: 1462007.862 | I78: 0.0009628141803
A79: Cota Angra I e Angra II | B79: 908.0507306 | C79: 0.6995669203 | D79: -0.0577982333 | E79: -0.01843494792 | F79: 870098.8465 | G79: 317045.9126 | H79: 1187144.759 | I79: 0.00078180141
A80: Cotas Lei n º 12.783/2013 | B80: 6971.231095 | C80: 4.462890431 | D80: 9.894166179 | E80: -1.001891586 | F80: 18642202.33 | G80: 855014.1439 | H80: 19497216.47 | I80: 0.01284001063
A81: Ajuste - CCEAR
A82: Itaipu | B82: 4991.772738 | C82: -0.2918108901 | D82: -9.334590046 | E82: -2.318032688 | F82: -16672991.15 | G82: 1399860.826 | H82: -15273130.33 | I82: -0.01005821298
A83: Bilateral | B83: 9681.97727 | C83: -1.155761175 | D83: -9.995991482 | E83: 0.1587562606 | F83: -15344899.34 | G83: 4660673.577 | H83: -10684225.77 | I83: -0.007036161938
A84: Geração Própria | B84: 0 | C84: 0 | D84: 0 | E84: 0 | F84: 0 | G84: 0 | H84: 0 | I84: 0
A85: Montante de Reposição | B85: 0 | C85: 0 | D85: 0 | E85: 0 | F85: 0 | G85: 0 | H85: 0 | I85: 0
A86: Proinfa | B86: 549.5574284 | C86: 0.3534763496 | D86: 0 | E86: 0 | F86: 493410.4233 | G86: 0 | H86: 493410.4233 | I86: 0.0003249384388
A87: Sobra (-) / Exposição (+) | B87: -4746.045484 | C87: -0.8914852821 | D87: 2.658033802 | E87: 1.084404332 | F87: 3979586.908 | G87: -1416558.17 | H87: 2563028.738
A88: Total | B88: 25922.65576 | C88: 0 | D88: -8.252293602 | E88: 0 | F88: -11519208.24 | G88: 7427774.668 | H88: -4091433.571 | I88: -0.004382336675
I89: -0.004200688934
E93: =H56/B56 -> 173.3297606 | F93: =I56/C56 -> 177.9780768
E94: =H102/B102 ->  | F94: =I102/C102 -> 
A95: ENF
A96: TabCompEnergia
C97: Montante de energia (MWh) | F97: Custo unitário (R$/MWh) | H97: Custo Total (R$) | J97: Cálculo de impacto por despesa (método tradicional)
A98: Tipo de contrato | B98: Processo DRA | C98: Processo Atual | D98: Variação | E98: Processo DRA | F98: Processo Atual | G98: Variação | H98: Processo Anterior | I98: Processo Atual | J98: Processo anterior sem Sobra/Exposição | K98: Processo atual sem Sobra/Exposição | L98: Impacto IRT | P98: I | Q98: J | R98: K | S98: L | T98: M
A99: Existente - CCEAR-DSP | B99: 0 | C99: 0 | D99: - | E99: 0 | F99: 0 | G99: - | H99: 0 | I99: 0 | J99: 0 | K99: 0 | L99: 0 | N99: =IFERROR(H99/SUMIFS(S101:S112,Q101:Q112,"Existente",P101:P112,"CCEAR-DISP"),0) -> 0 | S99: Prcesso Anterior
A100: Existente - CCEAR-QTD | B100: 0 | C100: 0 | D100: - | E100: 0 | F100: 0 | G100: - | H100: 0 | I100: 0 | J100: 0 | K100: 0 | L100: 0 | N100: =IFERROR(H100/SUMIFS(S101:S112,Q101:Q112,"Existente",P101:P112,"CCEAR-QTD"),0) -> 0 | S100: MWh | T100: R$
A101: Nova e Alternativa- CCEAR-DSP | B101: 0 | C101: 0 | D101: - | E101: 0 | F101: 0 | G101: - | H101: 0 | I101: 0 | J101: 0 | K101: 0 | L101: 0 | N101: =IFERROR(H101/SUMIFS(S101:S112,Q101:Q112,"<>Existente",P101:P112,"CCEAR-DISP",Q101:Q112,"<>Madeira",Q101:Q112,"<>Belo Monte"),0) -> 0 | P101: BILATERAL | Q101: 0 | R101: valor | S101: 300581.4254 | T101: 97505608.6
A102: Nova e Alternativa- CCEAR-QTD | B102: 0 | C102: 0 | D102: - | E102: 0 | F102: 0 | G102: - | H102: 0 | I102: 0 | J102: 0 | K102: 0 | L102: 0 | N102: =IFERROR(H102/SUMIFS(S101:S112,Q101:Q112,"<>Existente",P101:P112,"CCEAR-QTD",Q101:Q112,"<>Madeira",Q101:Q112,"<>Belo Monte"),0) -> 0 | P102: CCEAR-DISP | Q102: Alternativa | R102: valor
A103: Madeira e Belo Monte | B103: 0 | C103: 0 | D103: - | E103: 0 | F103: 0 | G103: - | H103: 0 | I103: 0 | J103: 0 | K103: 0 | L103: 0 | N103: =IFERROR(H103/(SUMIFS(S101:S113,Q101:Q113,"Belo Monte",P101:P113,"CCEAR-QTD")+SUMIFS(S101:S113,Q101:Q113,"Madeira",P101:P113,"CCEAR-QTD")),0) -> 0 | P103: CCEAR-DISP | Q103: Nova | R103: valor
A104: Cota Angra I e Angra II | B104: 0 | C104: 64492.3285 | D104: - | E104: 0 | F104: 347.5 | G104: - | H104: 0 | I104: 22411084.15 | J104: 0 | K104: 5295394.071 | L104: 0.02231811245 | N104: =IFERROR(H104/SUMIFS(S101:S113,P101:P113,"CCEN"),0) -> 0 | P104: CCEAR-QTD | Q104: Belo Monte | R104: valor
A105: Cotas Lei n º 12.783/2013 | B105: 0 | C105: 337374 | D105: - | E105: 0 | F105: 159.4405913 | G105: - | H105: 0 | I105: 53791110.05 | J105: 0 | K105: 12710010.96 | L105: 0.05356795927 | N105: =IFERROR(H105/SUMIFS(S101:S113,P101:P113,"CCGF"),0) -> 0 | P105: CCEAR-QTD | Q105: Madeira | R105: valor
A106: Ajuste - CCEAR | P106: CCEAR-QTD | Q106: Nova | R106: valor
A107: Itaipu | B107: 0 | C107: 335545.7226 | D107: - | E107: 0 | F107: 231.9583687 | G107: - | H107: 0 | I107: 77832638.45 | J107: 0 | K107: 18390653.9 | L107: 0.07750975213 | N107: =IFERROR(H107/SUMIFS(S101:S113,P101:P113,"Itaipu"),0) -> 0 | P107: CCEN | Q107: 0 | R107: valor
A108: Bilateral | B108: 300581.4254 | C108: 513073.6405 | D108: 0.7069372793 | E108: 324.39 | F108: 454.6128139 | G108: 0.4014390514 | H108: 97505608.6 | I108: 233249851.5 | J108: 95299968.4 | K108: 55113348.02 | L108: -0.1693716277 | P108: CCGF | Q108: 0 | R108: valor | S108: 0 | T108: 0
A109: Geração Própria | B109: 0 | C109: 0 | D109: - | E109: 0 | F109: 0 | G109: - | H109: 0 | I109: 0 | J109: 0 | K109: 0 | L109: 0 | P109: ITAIPU | Q109: 0 | R109: valor
A110: Montante de Reposição | B110: 0 | C110: 0 | D110: - | E110: 0 | F110: 0 | G110: - | H110: 0 | I110: 0 | J110: 0 | K110: 0 | L110: 0 | P110: PROINFA | Q110: 0 | R110: valor | S110: 7058.13901 | T110: 0
A111: Proinfa | B111: 7058.13901 | C111: 6019.633628 | D111: -0.1471358641 | E111: 0 | F111: 0 | G111: - | H111: 0 | I111: 0 | J111: 0 | K111: 0 | L111: 0 | P111: SOBRA/EXPOSIÇÃO | Q111: 0 | R111: valor
A112: Sobra (-) / Exposição (+) | B112: -6799.347061 | C112: -955015.1793 | D112: 139.4568955 | E112: 299.0447735 | F112: 283.9532152 | G112: -0.05046588216 | H112: -2033309.202 | I112: -303384882.1 | J112: 0 | K112: 0 | L112: 0
A113: TOTAL | B113: 300840.2174 | C113: 301490.146 | D113: 0.002160378055 | E113: 317.3521819 | F113: 278.2837287 | G113: -0.1231075615 | H113: 95472299.4 | I113: 83899801.98 | J113: 95299968.4 | K113: 91509406.95 | L113: -0.01597580382
F116: Custo ponderado pelo mercado | H116: 95471949.29
F117: Delta RA1 e faturado
C118: Incremento em relação ao cuto médio | F118: Base faturado | H118: 237268903.5
A119: Tipo de Contrato | B119: Variação de montante DRA/DRP | C119: Efeito Montante | D119: Efeito Preço | E119: Efeito Preço-Montante | F119: Impacto Alteração Tarifa Média | G119: Impacto de Perdas | H119: Impacto Total | I119: Impacto sobre o Custo Médio
A120: Existente - CCEAR-DSP | B120: 0 | C120: 0 | D120: 0 | E120: 0 | F120: 0 | G120: 0 | H120: 0 | I120: 0
A121: Existente - CCEAR-QTD | B121: 0 | C121: 0 | D121: 0 | E121: 0 | F121: 0 | G121: 0 | H121: 0 | I121: 0
A122: Nova e Alternativa- CCEAR-DSP | B122: 0 | C122: 0 | D122: 0 | E122: 0 | F122: 0 | G122: 0 | H122: 0 | I122: 0
A123: Nova e Alternativa- CCEAR-QTD | B123: 0 | C123: 0 | D123: 0 | E123: 0 | F123: 0 | G123: 0 | H123: 0 | I123: 0
A124: Madeira e Belo Monte | B124: 0 | C124: 0 | D124: 0 | E124: 0 | F124: 0 | G124: 0 | H124: 0 | I124: 0
A125: Cota Angra I e Angra II | B125: 0 | C125: 6.448976901 | D125: 0 | E125: 0 | F125: 1944302.987 | G125: 0 | H125: 1944302.987 | I125: -0.01450296326
A126: Cotas Lei n º 12.783/2013 | B126: 0 | C126: -176.7064884 | D126: 0 | E126: 0 | F126: -53275264.98 | G126: 0 | H126: -53275264.98 | I126: 0.3973913612
A127: Ajuste - CCEAR
A128: Itaipu | B128: 0 | C128: -95.03968581 | D128: 0 | E128: 0 | F128: -28653528.75 | G128: 0 | H128: -28653528.75 | I128: 0.2137326731
A129: Bilateral | B129: 649.3695154 | C129: 4.945141423 | D129: 130.1107922 | E129: 91.50140334 | F129: 68304804.6 | G129: 210648.9771 | H129: 68515453.58 | I129: -0.5110711204
A130: Geração Própria | B130: 0 | C130: 0 | D130: 0 | E130: 0 | F130: 0 | G130: 0 | H130: 0 | I130: 0
A131: Montante de Reposição | B131: 0 | C131: 0 | D131: 0 | E131: 0 | F131: 0 | G131: 0 | H131: 0 | I131: 0
A132: Proinfa | B132: 15.24824863 | C132: 1.109193844 | D132: 0 | E132: 0 | F132: 334411.014 | G132: 0 | H132: 334411.014 | I132: -0.002494441804
A133: Sobra (-) / Exposição (+) | B133: -14.68916018 | C133: 57.57768813 | D133: 0.3410871839 | E133: 47.46368337 | F133: 31771772.85 | G133: -4392.716579 | H133: 31767380.14 | I133: 0
A134: Total | B134: 649.9286038 | C134: 0 | D134: -39.06845326 | E134: 0 | F134: -11778753.68 | G134: 206256.2605 | H134: 20632753.99 | I134: 0.08305550881
I135: -0.04877376363

Sheet Energia
B1: Cálculo da despesa de energia | C1: Anexo II | D1: =LnkTxtIndiceEconomico -> 0.03808323705
C2: Anexo I | D2: =LnkTxtIndiceIRT -> 0.05397671522
B3: Resultado | C3: EMG Agrupada | G3: Quadro de mercado
C4: DRA | D4: DRP | G4: Mercado | H4: MWh | I4: GD | J4: INVERSÃO
B5: Energia Requerida (Fornecimento + Suprimento + Perdas) | C5: =C48+C91 -> 1670797.155 | D5: =SUM(H16:H19)+C6 -> 1697369.74 | G5: Fornecimento | H5: =H48+H91 -> 1443361.796 | I5: =I48+I91 -> 132491.885 | J5: =J48+J91 -> 92422.261
B6: Fornecimento + Suprimento | C6: =D6 -> 1443361.796 | D6: =D7+D8 -> 1443361.796 | G6: Suprimento (Mercado TUSD) | H6: =H49+H92 -> 0 | I6: 0
B7: Fornecimento | C7: =D7 -> 1443361.796 | D7: =H5 -> 1443361.796 | G7: Consumidor Livre | H7: 510681.161 | I7: 0
B8: Suprimento (Mercado TE) | C8: =D8 -> 0 | D8: =D51+D94 -> 0 | G8: A1 | H8: 0 | I8: 0
B9: Perdas Regulatórias | C9: =SUM(C10:C13) -> 227435.3593 | D9: =SUM(D10:D13) -> 254007.9437 | G9: BT | H9: 1288478.527 | I9: 0
B10: Perda Não Técnica | C10: =C53+C96 -> 3940.390388 | D10: =H16 -> 3940.390388
B11: Perda Técnica | C11: =C54+C97 -> 213142.858 | D11: =H17 -> 239519.5573 | G11: Calculo de perdas
B12: Perda Rede Básica sobre Dist. | C12: =C55+C98 -> 1509.104166 | D12: =H18 -> 1704.989306 | G12: Descrição | H12: DRP
B13: Perda Rede Básica sobre mercado Cat. | C13: =C56+C99 -> 8843.006694 | D13: =H19 -> 8843.006694 | G13: % Não Técnica (s/ Baixa Tensão) | H13: ='Energia e Perdas Regulatórias'!B73 -> 0.003058173113
B14: Custo Médio | C14: =C15/C5 -> 292.7613044 | D14: =E14 -> 278.2837287 | E14: =E15/D5 -> 278.2837287 | G14: % Técnica (s/ merc. injetado) | H14: ='Energia e Perdas Regulatórias'!C73 -> 0.09774863893
B15: Despesa Energia (Energia Req. X Custo Médio) | C15: =C58+C101 -> 489144754.5 | D15: =D14*D5 -> 472350380.1 | E15: =E75+E118 -> 472350380.1 | G15: % Rede Básica (s/ merc. Injetado) | H15: ='Energia e Perdas Regulatórias'!D73 -> 0.006261634582
G16: Perda Não Técnica | H16: =H59+H102 -> 3940.390388 | I16: =I59+I102 -> 0
G17: Perda Técnica | H17: =H60+H103 -> 239519.5573 | I17: 0
B18: Resumo da despesa de energia em processamento | G18: Perda Rede Básica sobre Dist. | H18: =H61+H104 -> 1704.989306 | I18: 0
B19: Empresa | C19: Montante | D19: Custo médio | E19: Despesa (R$) | G19: Perda Rede Básica sobre mercado Cat. | H19: =H62+H105 -> 8843.006694 | I19: 0
B20: Energia Base | C20: =SUM(C21:C25) -> 743835.6487 | D20: =IF(C20=0,0,E20/C20) -> 199.3685897 | E20: =SUM(E21:E25) -> 148297464.2
B21: Geração Própria
B22: Cota Angra I/Angra II | C22: =H34*$J$24 -> 62090.16891 | D22: =I34 -> 347.5 | E22: =C22*D22 -> 21576333.7 | G22: Glosas de contratos
B23: Cotas Lei n º 12783/2013 | C23: =H35*$J$24 -> 324807.7583 | D23: =I35 -> 159.4405913 | E23: 51787541.04 | G23: Tipo | H23: Montante contratado | I23: Montante Req sem proinfa | J23: % considerado
B24: Itaipu (tirando as perdas) | C24: =H36*$J$24 -> 323047.5792 | D24: =I36 -> 231.9583687 | E24: 74933589.49 | G24: Geral | H24: =SUM(H32,H38,H40) -> 1727836.701 | I24: =C32-C25 -> 1663479.597 | J24: =I24/H24 -> 0.9627527857
B25: PROINFA | C25: =C68+C111 -> 33890.14235 | D25: 0 | E25: 0
B26: Bilateral | C26: =H38*$K$24 -> 0 | D26: =I38 -> 454.6128139 | E26: 0
G27: Informações para o cálculo da Sobrecontratação
B28: CCEAR | C28: =H40*$J$24 -> 459571.0142 | D28: =I40 -> 216.4866115 | E28: =D28*C28 -> 99490971.59 | G28: Perdas DRA realizadas | H28: =C9/C6 -> 0.157573354
B29: Custo médio geral de energia | D29: =E32/C32 -> 278.2837287
B30: Energia Vendida | C30: =D6 -> 1443361.796 | D30: =IF(J24<100%,"Sobrecontratada em",IF(J24=1,"","Exposta em")) -> Sobrecontratada em | E30: =ABS(C32-H24-C25) -> 64357.10397 | G30: Energia Contratada ( Sem considerar o PROINFA) : determinar o custo médio do Mix
B31: Perdas | C31: =SUM(I16:I19) -> 0 | G31: Empresa | H31: Montante | I31: Custo médio | J31: Despesa
B32: Energia Requerida (Energia Vendida + Perdas) | C32: =D5 -> 1697369.74 | D32: Despesa final | E32: =D15 -> 472350380.1 | G32: Energia Base | H32: =H75 -> 737412.0511 | J32: =SUM(J33:J37) -> 154034832.7
G33: Geração Própria | H33: =H76+H119 -> 0 | I33: 0 | J33: =I33*H33 -> 0
B34: Contrato sujeito ao Risco Hidrológico | C34: GSF previsto 2019 (INFO CCEE 05/2019) | D34: PLD | E34: Despesa | G34: Cota Angra I/Angra II | H34: =H77 -> 64492.3285 | I34: =J34/H34 -> 347.5 | J34: =J77 -> 22411084.15
B35: CCGF | C35: 0.8593 | D35: 149 | E35: =(D35*(1-C35)*H35) -> 7072809.748 | G35: Cotas Lei n º 12783/2013 | H35: =H78 -> 337374 | I35: =J35/H35 -> 159.4405913 | J35: =J78 -> 53791110.05
B36: Itaipu | C36: =C35 -> 0.8593 | D36: =D35 -> 149 | E36: =(D36*(1-C36)*H36) -> 7034481.193 | G36: Itaipu (tirando as perdas) | H36: =H79 -> 335545.7226 | I36: =IF(H36=0,0,J36/H36) -> 231.9583687 | J36: =J79 -> 77832638.45
B37: Usinas Repactuadas | C37: =C36 -> 0.8593 | D37: =D36 -> 149 | E37: =(D37*(1-C37)*C40*E40*365*24) -> 64507510.71 | I37: 0 | J37: 0
B38: Previsão de Risco Hidrológico Total | E38: =SUM(E35:E37) -> 78614801.65 | G38: Bilateral | H38: =H81 -> 513073.6405 | I38: =J38/H38 -> 454.6128139 | J38: =J81 -> 233249851.5
B39: Fator de rateio | D39: MWm repactuado
B40: =LnkTxtNomeResumido ->  | C40: 0.02434948712 | D40: 211.28 | E40: 14425.67 | G40: CCEAR | H40: =H83 -> 477351.0096 | I40: =IFERROR(J40/H40,0) -> 216.4866115 | J40: =J83 -> 103340102.5
G41: Custo Mix (sem proinfa) | I41: =J42/H42 -> 283.9532152
G42: Despesa Final | H42: =C32-C25 -> 1663479.597 | J42: =J85+J128 -> 472350380.1
H43: =H85+H128 -> 1663479.597 | J43: =H42*I41 -> 472350380.1
B46: Resultado | C46: EMG | G46: Quadro de mercado
C47: DRA | D47: DRP | G47: Mercado | H47: MWh | I47: GD | J47: INVERSÃO
B48: Energia Requerida (Fornecimento + Suprimento + Perdas) | C48: 1369956.938 | D48: 1395879.594 | G48: Fornecimento | H48: 1161405.123 | I48: 120393.116 | J48: 92422.261
B49: Fornecimento + Suprimento | C49: 1161405.123 | D49: 1161405.123 | G49: Suprimento (Mercado TUSD) | H49: 0
B50: Fornecimento | C50: 1161405.123 | D50: 1161405.123 | G50: Consumidor Livre | H50: 442027.74
B51: Suprimento (Mercado TE) | C51: 0 | D51: 0 | G51: A1 | H51: 0
B52: Perdas Regulatórias | C52: 208551.8149 | D52: 234474.4707 | G52: BT | H52: 1041077.991
B53: Perda Não Técnica | C53: 3893.631686 | D53: 3893.631686
B54: Perda Técnica | C54: 194306.0724 | D54: 220032.843 | G54: Calculo de perdas
B55: Perda Rede Básica sobre Dist. | C55: 1509.104166 | D55: 1704.989306 | G55: Descrição | H55: DRP | I55: % Não Técnica (sobre energia injetada)
B56: Perda Rede Básica sobre mercado Cat. | C56: 8843.006694 | D56: 8843.006694 | G56: % Não Técnica (s/ Baixa Tensão) | H56: 0.00374 | I56: 0.002715269143
B57: Custo Médio | C57: 287.4500442 | D57: 278.2837287 | G57: % Técnica (s/ merc. injetado) | H57: 0.10785
B58: Despesa Energia (Energia Req. X Custo Médio) | C58: 393794182.4 | D58: 388450578.1 | G58: % Rede Básica (s/ merc. Injetado) | H58: 0.007614058625
G59: Perda Não Técnica | H59: 3893.631686
G60: Perda Técnica | H60: 220032.843
B61: Resumo da despesa de energia em processamento | G61: Perda Rede Básica sobre Dist. | H61: 1704.989306
B62: Empresa | C62: Montante | D62: Custo médio | E62: Despesa (R$) | G62: Perda Rede Básica sobre mercado Cat. | H62: 8843.006694
B63: Energia Base | C63: 611714.1003 | D63: 199.3685897 | E63: 121956577.4
B64: Geração Própria | C64: 0 | D64: 0 | E64: 0
B65: Cota Angra I/Angra II | C65: 51061.5912 | D65: 347.5 | E65: 17743902.94 | G65: Glosas de contratos
B66: Cotas Lei n º 12783/2013 | C66: 267114.7665 | D66: 159.4405913 | E66: 42588936.31 | G66: Tipo | H66: Montante contratado | I66: Montante Req sem proinfa | J66: % considerado
B67: Itaipu (tirando as perdas) | C67: 265667.2338 | D67: 231.9583687 | E67: 61623738.19 | G67: Geral | H67: 1727836.701 | I67: 1368009.085 | J67: 0.7917467455
B68: PROINFA | C68: 27870.50872 | D68: 0 | E68: 0
B69: Bilateral | C69: 406224.3851 | D69: 454.6128139 | E69: 184674810.8
C70: 0 | D70: 0 | E70: 0 | G70: Informações para o cálculo da Sobrecontratação
B71: CCEAR | C71: 377941.1083 | D71: 216.4866115 | E71: 81819189.87 | G71: Perdas DRA realizadas | H71: 0.1795685336
B72: Custo médio geral de energia | C72: 0 | D72: 278.2837287 | E72: 0
B73: Energia Vendida | C73: 1161405.123 | D73: Sobrecontratada em | E73: 359827.6163 | G73: Energia Contratada ( Sem considerar o PROINFA) : determinar o custo médio do Mix
B74: Perdas | C74: 234474.4707 | E74: 0 | G74: Empresa | H74: Montante | I74: Custo médio | J74: Despesa
B75: Energia Requerida (Energia Vendida + Perdas) | C75: 1395879.594 | D75: Despesa final | E75: 388450578.1 | G75: Energia Base | H75: 737412.0511 | I75: 0 | J75: 154034832.7
G76: Geração Própria | H76: 0 | I76: 0 | J76: 0
B77: Contrato sujeito ao Risco Hidrológico | C77: GSF previsto (INFO CCEE ) | D77: PLD | E77: Despesa | G77: Cota Angra I/Angra II | H77: 64492.3285 | I77: 347.5 | J77: 22411084.15
B78: CCGF | C78: 0.8448 | D78: 195.04 | E78: 8320985.62 | G78: Cotas Lei n º 12783/2013 | H78: 337374 | I78: 159.4405913 | J78: 53791110.05
B79: Itaipu | C79: 0.8448 | D79: 195.04 | E79: 8036926.038 | G79: Itaipu (tirando as perdas) | H79: 335545.7226 | I79: 231.9583687 | J79: 77832638.45
B80: Usinas Repactuadas | C80: 0.8448 | D80: 195.04 | E80: 13642248.66 | H80: 0 | I80: 0 | J80: 0
B81: Previsão de Risco Hidrológico Total | C81: 0 | D81: 0 | E81: 30000160.32 | G81: Bilateral | H81: 513073.6405 | I81: 454.6128139 | J81: 233249851.5
B82: Fator de rateio | D82: MWm repactuado | H82: 0 | I82: 0 | J82: 0
B83: EMG | C83: 0.003490411469 | D83: 195.04 | E83: 14739.74 | G83: CCEAR | H83: 477351.0096 | I83: 216.4866115 | J83: 103340102.5
G84: Custo Mix (sem proinfa) | H84: 0 | I84: 283.9532152 | J84: 0
G85: Despesa Final | H85: 1368009.085 | I85: 0 | J85: 388450578.1
B89: Resultado | C89: ENF | G89: Quadro de mercado
C90: DRA | D90: DRP | G90: Mercado | H90: MWh | I90: GD
B91: Energia Requerida (Fornecimento + Suprimento + Perdas) | C91: 300840.2174 | D91: 301490.146 | G91: Fornecimento | H91: 281956.673 | I91: 12098.769
B92: Fornecimento + Suprimento | C92: 281956.673 | D92: 281956.673 | G92: Suprimento (Mercado TUSD) | H92: 0
B93: Fornecimento | C93: 281956.673 | D93: 281956.673 | G93: Consumidor Livre | H93: 68653.421
B94: Suprimento (Mercado TE) | C94: 0 | D94: 0 | G94: A1 | H94: 0
B95: Perdas Regulatórias | C95: 18883.54439 | D95: 19533.47299 | G95: BT | H95: 247400.536
B96: Perda Não Técnica | C96: 46.7587013 | D96: 46.7587013
B97: Perda Técnica | C97: 18836.78568 | D97: 19486.71429 | G97: Calculo de perdas
B98: Perda Rede Básica sobre Dist. | C98: 0 | D98: 0 | G98: Descrição | H98: DRP | I98: % Não Técnica (sobre energia injetada)
B99: Perda Rede Básica sobre mercado Cat. | C99: 0 | D99: 0 | G99: % Não Técnica (s/ Baixa Tensão) | H99: 0.000189 | I99: 0.0001405091947
B100: Custo Médio | C100: 316.9475577 | D100: 278.2837287 | G100: % Técnica (s/ merc. injetado) | H100: 0.05098
B101: Despesa Energia (Energia Req. X Custo Médio) | C101: 95350572.15 | D101: 83899801.98 | G101: % Rede Básica (s/ merc. Injetado) | H101: 0
G102: Perda Não Técnica | H102: 46.7587013
G103: Perda Técnica | H103: 19486.71429
B104: Resumo da despesa de energia em processamento | G104: Perda Rede Básica sobre Dist. | H104: 0
B105: Empresa | C105: Montante | D105: Custo médio | E105: Despesa (R$) | G105: Perda Rede Básica sobre mercado Cat. | H105: 0
B106: Energia Base | C106: 132121.5485 | D106: 199.3685897 | E106: 26340886.78
B107: Geração Própria | C107: 0 | D107: 0 | E107: 0
B108: Cota Angra I/Angra II | C108: 11028.57772 | D108: 347.5 | E108: 3832430.757 | G108: Glosas de contratos
B109: Cotas Lei n º 12783/2013 | C109: 57692.9918 | D109: 159.4405913 | E109: 9198604.726 | G109: Tipo | H109: Montante contratado | I109: Montante Req sem proinfa | J109: % considerado
B110: Itaipu (tirando as perdas) | C110: 57380.34532 | D110: 231.9583687 | E110: 13309851.3 | G110: Geral | H110: 1727836.701 | I110: 295470.5124 | J110: 0.1710060402
B111: PROINFA | C111: 6019.633628 | D111: 0 | E111: 0
B112: Bilateral | C112: 87738.69159 | D112: 454.6128139 | E112: 39887133.47
C113: 0 | D113: 0 | E113: 0 | G113: Informações para o cálculo da Sobrecontratação
B114: CCEAR | C114: 81629.90593 | D114: 216.4866115 | E114: 17671781.73 | G114: Perdas DRA realizadas | H114: 0.06697321324
B115: Custo médio geral de energia | C115: 0 | D115: 278.2837287 | E115: 0
B116: Energia Vendida | C116: 281956.673 | D116: Sobrecontratada em | E116: 1432366.189 | G116: Energia Contratada ( Sem considerar o PROINFA) : determinar o custo médio do Mix
B117: Perdas | C117: 19533.47299 | D117: 0 | E117: 0 | G117: Empresa | H117: Montante | I117: Custo médio | J117: Despesa
B118: Energia Requerida (Energia Vendida + Perdas) | C118: 301490.146 | D118: Despesa final | E118: 83899801.98 | G118: Energia Base | H118: 737412.0511 | I118: 0 | J118: 154034832.7
G119: Geração Própria | H119: 0 | I119: 0 | J119: 0
B120: Contrato sujeito ao Risco Hidrológico | C120: GSF previsto (INFO CCEE) | D120: PLD | E120: Despesa | G120: Cota Angra I/Angra II | H120: 64492.3285 | I120: 347.5 | J120: 22411084.15
B121: CCGF | C121: 0.8751666667 | D121: 195.04 | E121: 1521328.626 | G121: Cotas Lei n º 12783/2013 | H121: 337374 | I121: 159.4405913 | J121: 53791110.05
B122: Itaipu | C122: 0.8751666667 | D122: 195.04 | E122: 1705288.307 | G122: Itaipu (tirando as perdas) | H122: 335545.7226 | I122: 231.9583687 | J122: 77832638.45
B123: Usinas Repactuadas | C123: 0.8751666667 | D123: 195.04 | E123: 2610423.574 | H123: 0 | I123: 0 | J123: 0
B124: Previsão de Risco Hidrológico Total | C124: 0 | D124: 0 | E124: 5837040.506 | G124: Bilateral | H124: 513073.6405 | I124: 454.6128139 | J124: 233249851.5
B125: Fator de rateio | D125: MWm repactuado | H125: 0 | I125: 0 | J125: 0
B126: ENF | D126: 195.04 | E126: 14739.74 | G126: CCEAR | H126: 477351.0096 | I126: 216.4866115 | J126: 103340102.5
G127: Custo Mix (sem proinfa) | H127: 0 | I127: 283.9532152 | J127: 0
G128: Despesa Final | H128: 295470.5124 | I128: 0 | J128: 83899801.98

Sheet Fator DR1 (hidden)
C1: D01 | D1: D02 | E1: D03 | F1: D04 | G1: D05
C2: AES SUL | D2: AMAZONAS | E2: AMPLA | F2: BANDEIRANTE | G2: BOA VISTA ENERGIA | H2: JAGUARI | I2: CEAL | J2: CELESC | K2: CELG | L2: CELPA | M2: CELPE | N2: CELTINS | O2: CEMAR | P2: EMT | Q2: CEMIG | R2: CEPISA | S2: CERON | T2: MOCOCA | U2: CJE | V2: MOCOCA | W2: CPFL STA CRUZ | X2: LESTE PLT | Y2: COCEL | Z2: COELBA | AA2: COELCE | AB2: COOPERALIANÇA | AC2: COPEL | AD2: COSERN | AE2: CPEE | AF2: CPFL PIRATININGA | AG2: CPFL PAULISTA | AH2: CSPE | AI2: DEMEI | AJ2: DME-PC | AK2: ENERGISA BO | AL2: SUL PLT | AM2: STA CRUZ | AN2: JOAOCESA | AO2: EFLUL | AP2: ELEKTRO | AQ2: ELETROACRE | AR2: ELETROCAR | AS2: ELETROPAULO | AT2: SANTAMARIA | AU2: ENERGISA MG | AV2: EMS | AW2: ENF | AX2: ENERGISA PB | AY2: ESCELSA | AZ2: ENERGISA SE | BA2: FORCEL | BB2: HIDROPAN | BC2: IENERGIA | BD2: LIGHT | BE2: MUXFELDT | BF2: RGE | BG2: UHENPAL | BH2: CEB | BI2: CEEE | BJ2: OESTE | BK2: CHESP | BL2: SULGIPE | BM2: CPFL STA CRUZ
A3: Det1 | B3: Det2 | C3: 2013-04-19 | D3: 2013-11-01 | E3: 2014-03-15 | F3: 2015-10-23 | G3: 2013-11-01 | H3: 2017-03-22 | I3: 2013-08-28 | J3: 2016-08-22 | K3: 2013-09-12 | L3: 2015-08-07 | M3: 2013-04-29 | N3: 2016-07-04 | O3: 2013-08-28 | P3: 2013-04-08 | Q3: 2013-04-08 | R3: 2013-08-28 | S3: 2013-11-30 | T3: 2017-03-22 | U3: 2016-03-22 | V3: 2016-03-22 | W3: 2016-03-22 | X3: 2017-03-22 | Y3: 2016-06-29 | Z3: 2013-04-22 | AA3: 2015-04-22 | AB3: 2013-08-14 | AC3: 2016-06-24 | AD3: 2013-04-22 | AE3: 2016-03-22 | AF3: 2015-10-23 | AG3: 2013-04-08 | AH3: 2016-03-22 | AI3: 2013-06-29 | AJ3: 2015-10-28 | AK3: 2013-02-04 | AL3: 2017-03-22 | AM3: 2017-03-22 | AN3: 2016-08-29 | AO3: 2016-08-29 | AP3: 2015-08-27 | AQ3: 2013-11-30 | AR3: 2013-06-29 | AS3: 2015-07-04 | AT3: 2016-08-22 | AU3: 2016-06-22 | AV3: 2013-04-08 | AW3: 2016-06-22 | AX3: 2013-08-28 | AY3: 2016-08-07 | AZ3: 2013-04-22 | BA3: 2016-08-26 | BB3: 2013-06-29 | BC3: 2016-08-29 | BD3: 2013-11-07 | BE3: 2013-06-29 | BF3: 2013-06-19 | BG3: 2013-04-19 | BH3: 2012-08-26 | BI3: 2012-10-25 | BJ3: 2012-06-29 | BK3: 2012-09-12 | BL3: 2012-12-14 | BM3: 2017-03-22
A4: Parâmetros de Revisão p/ abertura | B4: (14) Remuneração de Capital (RC) = (11)*(13) | C4: 160482535.5 | D4: 16261010.06 | E4: 457022620.1 | F4: 204428667.7 | G4: 16162059.07 | H4: 7977663.53 | I4: 32844595.56 | J4: 385189477.1 | K4: 168950092.9 | L4: 405185144 | M4: 245917037.8 | N4: 93365403.47 | O4: 215779886 | P4: 153652049.3 | Q4: 587394485.8 | R4: 10914162.06 | S4: 32381609.53 | T4: 9126342.314 | U4: 7977663.53 | V4: 9126342.314 | W4: 26033583.18 | X4: 12704102.02 | Y4: 3686739.873 | Z4: 427501184.3 | AA4: 321971418.9 | AB4: 3155830.839 | AC4: 657423325 | AD4: 103047852 | AE4: 12704102.02 | AF4: 233608622.4 | AG4: 380253427.6 | AH4: 15675151.75 | AI4: 1051779.71 | AJ4: 14237850.77 | AK4: 7586639.489 | AL4: 15675151.75 | AM4: 26033583.18 | AN4: 220319.0148 | AO4: 1040973.449 | AP4: 353797654.5 | AQ4: 23163408.7 | AR4: 1706125.482 | AS4: 772301797.7 | AT4: 18045886.21 | AU4: 43913669.29 | AV4: 123920392.2 | AW4: 11886837.96 | AX4: 90596421.34 | AY4: 251808147.8 | AZ4: 54261931.61 | BA4: 604882.8733 | BB4: 2215839.28 | BC4: 2312348.962 | BD4: 762000209.9 | BE4: 642598.0648 | BF4: 175180073.8 | BG4: 988334.2749 | BH4: 79481897.94 | BI4: 135343522.6 | BJ4: 1651059.071 | BK4: 2707030.482 | BL4: 4269073.478 | BM4: 71516842.8
B5: (15) Quota de Reintegração Regulatória (QRR) = (5)*(12) | C5: 92862539.86 | D5: 13356850.1 | E5: 271999792.3 | F5: 134317614.6 | G5: 7499797.376 | H5: 3364693.46 | I5: 43130718.21 | J5: 216639884.8 | K5: 126252278.1 | L5: 178066196.8 | M5: 151282259.7 | N5: 42679578.8 | O5: 125126028.7 | P5: 102212312.6 | Q5: 589664369.1 | R5: 24625020.16 | S5: 26168446.91 | T5: 4273481.422 | U5: 3364693.46 | V5: 4273481.422 | W5: 12114811.07 | X5: 5744883.375 | Y5: 2297590.219 | Z5: 285459128.8 | AA5: 176206632.8 | AB5: 1918956.922 | AC5: 337492449.3 | AD5: 62494409 | AE5: 5744883.375 | AF5: 110236265.2 | AG5: 281358176.6 | AH5: 7926640.145 | AI5: 660567.5346 | AJ5: 7440870.58 | AK5: 4769565.218 | AL5: 7926640.145 | AM5: 12114811.07 | AN5: 111239.5327 | AO5: 498947.0311 | AP5: 211589373.8 | AQ5: 14155977.01 | AR5: 961501.7459 | AS5: 456264972.4 | AT5: 9518157.517 | AU5: 26244466.41 | AV5: 74501151.8 | AW5: 6344710.781 | AX5: 51033641.93 | AY5: 138122170 | AZ5: 33015057.03 | BA5: 352075.79 | BB5: 742171.432 | BC5: 1470203.692 | BD5: 456217480.4 | BE5: 242550.6934 | BF5: 92915416.96 | BG5: 656237.2007 | BH5: 49165200.98 | BI5: 94368210.14 | BJ5: 1518921.594 | BK5: 1553590.877 | BL5: 3133165.834 | BM5: 33424509.47
B6: Custo Operacional pós pd | N6: 280703982 | T6: 18194873.63 | Y6: 17933640.96 | AC6: 1127282518 | AU6: 128973786.5 | AW6: 25935713.69 | BA6: 0 | BC6: 16403911.08
B7: Custos Operacionais | C7: 274874226.9 | D7: 325860227.1 | E7: 536735601 | F7: 411219936.5 | G7: 28709020.68 | H7: 18483434.71 | I7: 212883716 | J7: 760854203.7 | K7: 642382631 | L7: 588345154.8 | M7: 547591680.3 | N7: 282093897.1 | O7: 409239639.4 | P7: 376358387.1 | Q7: 1714237665 | R7: 284324335.6 | S7: 191549348.3 | T7: 17878889.34 | U7: 18483434.71 | V7: 17878889.34 | W7: 70660164.96 | X7: 23629687.72 | Y7: 18060727.79 | Z7: 896894035.3 | AA7: 584593322.9 | AB7: 9885251.431 | AC7: 1092161935 | AD7: 231956684.2 | AE7: 23629687.72 | AF7: 384526516.1 | AG7: 788829753.2 | AH7: 27151370.63 | AI7: 9642999.422 | AJ7: 21261690.05 | AK7: 33717700.69 | AL7: 27151370.63 | AM7: 70660164.96 | AN7: 2098300.614 | AO7: 4799124.663 | AP7: 701728972 | AQ7: 74604263.76 | AR7: 13797227.07 | AS7: 1357156906 | AT7: 45068860.47 | AU7: 127800325.5 | AV7: 273210945.2 | AW7: 25960692.84 | AX7: 275970197.2 | AY7: 384889166.9 | AZ7: 159408691.3 | BA7: 4039842.736 | BB7: 6269221.689 | BC7: 16357434.38 | BD7: 737245854.6 | BE7: 3086924.739 | BF7: 317867251.8 | BG7: 4310380.943 | BH7: 276177078.5 | BI7: 364641060 | BJ7: 15638881.14 | BK7: 13101488.46 | BL7: 30997723.69 | BM7: 157803547.4
B8: Depreciação AIS | N8: 23961829.03 | T8: 1380163.188 | Y8: 1587226.987 | AC8: 116418481.9 | AU8: 12308787.05 | AW8: 2597909.814 | BA8: 0 | BC8: 1264298.631
B9: Outras Receitas (OR) proporcional RCB | N9: 1408597.555 | T9: 199836.6921 | Y9: 308398.4788 | AC9: 22683353.69 | AU9: 1484752.173 | AW9: 529676.4675 | BA9: 0 | BC9: 124356.0025
B10: Quota de Reintegração Bruta pós pd | N10: 64647597.2 | T10: 3196437.688 | Y10: 3843687.56 | AC10: 449009920.6 | AU10: 38087099.13 | AW10: 8879913.41 | BA10: 0 | BC10: 3426336.459
B11: Receita Irrecuperável | C11: 12664493.19 | D11: 16034849.88 | E11: 42834993.22 | F11: 27394844.45 | G11: 320417.0389 | H11: 69857.80288 | I11: 8533386.777 | J11: 36172778.04 | K11: 19889640.89 | L11: 81811375.9 | M11: 38891500.15 | N11: 5115549.33 | O11: 18582304.19 | P11: 11663586.46 | Q11: 55190091.23 | R11: 10220300.67 | S11: 9112279.726 | T11: 97073.58065 | U11: 69857.80288 | V11: 97073.58065 | W11: 574315.4424 | X11: 146315.8966 | Y11: 64813.33659 | Z11: 52523365.18 | AA11: 43103914.8 | AB11: 64024.40625 | AC11: 47425040.04 | AD11: 14159375.49 | AE11: 146315.8966 | AF11: 23743745.08 | AG11: 34671328.02 | AH11: 214393.6412 | AI11: 73331.81189 | AJ11: 233107.4125 | AK11: 1721559.029 | AL11: 214393.6412 | AM11: 574315.4424 | AN11: 4526.983238 | AO11: 11048.64528 | AP11: 30880126.38 | AQ11: 3742808.709 | AR11: 68878.24268 | AS11: 198258841.6 | AT11: 137394.7416 | AU11: 2751992.558 | AV11: 7540962.215 | AW11: 158170.792 | AX11: 11594723.21 | AY11: 30947412.79 | AZ11: 6857352.75 | BA11: 9847.440308 | BB11: 35721.86489 | BC11: 49128.77122 | BD11: 84432127.66 | BE11: 17392.32844 | BF11: 11281765.57 | BG11: 23003.01521 | BH11: 9122814.714 | BI11: 16781107.48 | BJ11: 102598.0752 | BK11: 70826.92463 | BL11: 246674.9995 | BM11: 1101956.364
B12: Remuenração de Capital Bruta - OR proporcional | N12: 100916824.3 | T12: 3576680.915 | Y12: 4180773.597 | AC12: 689347467.9 | AU12: 48413505.6 | AW12: 12656061.48 | BA12: 0 | BC12: 3688614.36
B13: Remuneração AIS | N13: 12839241.38 | T13: 739519.8541 | Y13: 850468.9011 | AC13: 62379419.69 | AU13: 6595301.543 | AW13: 1392013.571 | BA13: 0 | BC13: 677437.239
B14: Remuneração de Capital Bruta pós pd | N14: 102325421.8 | T14: 3776517.607 | Y14: 4489172.075 | AC14: 712030821.6 | AU14: 49898257.78 | AW14: 13185737.95 | BA14: 0 | BC14: 3812970.362
A15: Outras Receitas | C15: 20343457.34 | D15: 9038512.894 | E15: 31237516.18 | F15: 31817176.36 | G15: 1081360.741 | H15: 1084084.712 | I15: 6026819.362 | J15: 62188656.42 | K15: 31597840.56 | L15: 19390424.97 | M15: 23934215.05 | N15: 6193277.268 | O15: 13223121.47 | P15: 13699442.61 | Q15: 40020638.35 | R15: 7000951.315 | S15: 4168822.285 | T15: 755584.8211 | U15: 1084084.712 | V15: 755584.8211 | W15: 2744965.298 | X15: 1233044.98 | Y15: 1804463.872 | Z15: 34163969.03 | AA15: 25810558.29 | AB15: 852264.9261 | AC15: 72899717.66 | AD15: 9507399.196 | AE15: 1233044.98 | AF15: 36262892.31 | AG15: 59405974.56 | AH15: 1379854.727 | AI15: 323886.5619 | AJ15: 2093776.698 | AK15: 970584.1366 | AL15: 1379854.727 | AM15: 2744965.298 | AN15: 41243.61811 | AO15: 105244.5919 | AP15: 22309647.82 | AQ15: 3491045.637 | AR15: 304317.8665 | AS15: 88054603.18 | AT15: 1310871.148 | AU15: 6455747.637 | AV15: 11255892.46 | AW15: 1928234.398 | AX15: 4735677.439 | AY15: 16291839.19 | AZ15: 3235950.231 | BA15: 225975.5407 | BB15: 138489.2272 | BC15: 779549.2861 | BD15: 38131862.5 | BE15: 86116.8414 | BF15: 19556792.19 | BG15: 102829.3627 | BH15: 18214258.63 | BI15: 18324163.88 | BJ15: 1024028.334 | BK15: 306788.703 | BL15: 165639.2465 | BM15: 7197534.538
A16: Parcela B - Cálculo | B16: Parcela B (VPB) | C16: 571554566.3 | D16: 384495069.7 | E16: 1366682814 | F16: 829494697.2 | G16: 56239332.07 | H16: 32754763.01 | I16: 315107240.5 | J16: 1489054079 | K16: 1002688928 | L16: 1309989901 | M16: 1026113837 | N16: 461781736.2 | O16: 813251797.4 | P16: 680509001.6 | Q16: 3093276453 | R16: 348548677.3 | S16: 272716062.1 | T16: 34894187.99 | U16: 32754763.01 | V16: 34894187.99 | W16: 120017369 | X16: 46649892.93 | Y16: 26643961.32 | Z16: 1748812185 | AA16: 1179131965 | AB16: 16171577.45 | AC16: 2320370886 | AD16: 434223475.1 | AE16: 46649892.93 | AF16: 800858691.1 | AG16: 1568920704 | AH16: 56368257.89 | AI16: 11939675.22 | AJ16: 47180383.13 | AK16: 50905041.47 | AL16: 56368257.89 | AM16: 120017369 | AN16: 2586133.414 | AO16: 6823102.655 | AP16: 1360939446 | AQ16: 124077655.9 | AR16: 17524610.5 | AS16: 2933153247 | AT16: 79984248.87 | AU16: 220362069.9 | AV16: 508430162.2 | AW16: 48498109.95 | AX16: 448510727.8 | AY16: 869048024.4 | AZ16: 267385726.9 | BA16: 5536842.953 | BB16: 9984735.405 | BC16: 22062097.84 | BD16: 2137011657 | BE16: 4259466.721 | BF16: 629287036.6 | BG16: 6747060.965 | BH16: 386188159.6 | BI16: 571426786.4 | BJ16: 20237503.58 | BK16: 15925467.34 | BL16: 42230785.15 | BM16: 290684470.8
B17: Parcela B com ajuste de mercado (Parcela B sem deduzir OR) | C17: 562550858.7 | D17: 376183725.2 | E17: 1296982722 | F17: 822779109.9 | G17: 55454821.9 | H17: 32537208.83 | I17: 307492590.4 | J17: 1472164398 | K17: 989714413.3 | L17: 1296911997 | M17: 1013057856 | N17: 452167947 | O17: 802636967.1 | P17: 671947934.7 | Q17: 2968835151 | R17: 341070701 | S17: 262267963.6 | T17: 34122428.86 | U17: 32537208.83 | V17: 34122428.86 | W17: 118998319.3 | X17: 46247627.18 | Y17: 26361874.25 | Z17: 1687015095 | AA17: 1160355594 | AB17: 15937390.81 | AC17: 2295317155 | AD17: 430351105.9 | AE17: 46247627.18 | AF17: 791078333.6 | AG17: 1549289745 | AH17: 55706069.84 | AI17: 11389069.24 | AJ17: 46927191.31 | AK17: 50798839.09 | AL17: 55706069.84 | AM17: 118998319.3 | AN17: 2575658.978 | AO17: 6778681.949 | AP17: 1343472190 | AQ17: 122315830 | AR17: 17071671.51 | AS17: 2900149730 | AT17: 78883081.25 | AU17: 217697632.4 | AV17: 487470714.8 | AW17: 48158032.91 | AX17: 440459578.5 | AY17: 862200150.8 | AZ17: 263087843.6 | BA17: 5459514.995 | BB17: 9844594.024 | BC17: 21655723.28 | BD17: 2110930981 | BE17: 4013691.082 | BF17: 621274379.2 | BG17: 6694244.468 | BH17: 369525950 | BI17: 542334814.5 | BJ17: 19825905.03 | BK17: 15665708.47 | BL17: 41567818.97 | BM17: 287611654
B18: Parcela B com ajuste do 2CRTP (VPB') | C18: 568939679.6 | D18: 383922926.8 | E18: 1318921930 | G18: 56239332.07
A19: FATOR X | B19: Componente Pd do Fator X | C19: 0.01122934671 | D19: 0.02015821678 | E19: 0.0166341975 | F19: 0.01139599789 | G19: 0.01394949294 | H19: 0.01304190979 | I19: 0.01756360071 | J19: 0.01152522756 | K19: 0.0129397206 | L19: 0.01498320995 | M19: 0.01272371603 | N19: 0.01825844135 | O19: 0.01305232934 | P19: 0.01258038746 | Q19: 0.01149276947 | R19: 0.02145461114 | S19: 0.02023334678 | T19: 0.01211712531 | U19: 0.01304190979 | V19: 0.01211712531 | W19: 0.01179085232 | X19: 0.01192307986 | Y19: 0.01233836369 | Z19: 0.008444451161 | AA19: 0.01592389219 | AB19: 0.01448137275 | AC19: 0.01115644967 | AD19: 0.008917917707 | AE19: 0.01192307986 | AF19: 0.0122123386 | AG19: 0.01251239727 | AH19: 0.0117475345 | AI19: 0.01312048154 | AJ19: 0.01176646392 | AK19: 0.002086284012 | AL19: 0.0117475345 | AM19: 0.01179085232
B20: Componente Q do Fator X | C20: -0.0033 | D20: 0 | E20: -0.0049 | F20: -0.0033 | G20: 0 | H20: -0.0064 | I20: 0.0033 | J20: -0.0001826706229 | K20: 0.01 | L20: -0.005 | M20: 0.0095 | N20: 0.002560461898 | O20: 0 | P20: 0.0064 | Q20: 0 | R20: -0.0047 | S20: -0.01 | T20: 0.01 | U20: -0.0064 | V20: 0.01 | W20: -0.0033 | X20: -0.0033 | Y20: -0.001751083996 | Z20: -0.0049 | AA20: 0 | AB20: 0.0079 | AC20: -0.0003591540031 | AD20: 0 | AE20: -0.0033 | AF20: 0 | AG20: 0.0049 | AH20: 0 | AI20: -0.005 | AJ20: -0.0064 | AK20: -0.01 | AL20: 0 | AM20: -0.0033
B21: Componente T do Fator X | C21: 0 | D21: 0.02 | E21: 0.006533104043 | F21: -0.002327125712 | G21: 0 | H21: 0.007336582021 | I21: 0.005281062482 | J21: -0.01265550866 | K21: 0 | L21: 0.002074204444 | M21: 0.005097976875 | N21: -0.004869263781 | O21: 0.01454190534 | P21: 0 | Q21: 0.006801551336 | R21: 0.02 | S21: 0 | T21: 0.02430068854 | U21: 0.007336582021 | V21: 0.02430068854 | W21: 0.02571216214 | X21: 0.02695119354 | Y21: 0.01188018648 | Z21: 0.02 | AA21: 0.004367977359 | AB21: 0 | AC21: -0.01986999541 | AD21: 0.01250443299 | AE21: 0.02695119354 | AF21: -0.001793519413 | AG21: 0 | AH21: 0.01255191166 | AI21: 0.02 | AJ21: 0.00208785183 | AK21: 0 | AL21: 0.01255191166 | AM21: 0.02571216214
B24: Valores com ajustes e fator X
B25: Fator de Ajuste de mercado e ajuste de investimento | C25: =C17/IF(C18=0,C16,C18) -> 0.9887706533 | D25: =D17/IF(D18=0,D16,D18) -> 0.9798417832 | E25: 0.9833658025 | F25: 0.9919040021 | G25: 0.9860505071 | H25: 0.9933580902 | I25: 0.9758347346 | J25: =J17/IF(J18=0,J16,J18) -> 0.9886574431 | K25: =K17/IF(K18=0,K16,K18) -> 0.9870602794 | L25: 0.99001679 | M25: 0.987276284 | N25: 0.9791810968 | O25: 0.9869476707 | P25: 0.9874196125 | Q25: 0.9597703914 | R25: 0.9785453889 | S25: 0.9616887309 | T25: 0.9778828747 | U25: 0.9933580902 | V25: =V17/IF(V18=0,V16,V18) -> 0.9778828747 | W25: 0.9915091477 | X25: =X17/IF(X18=0,X16,X18) -> 0.9913769201 | Y25: 0.9894127203 | Z25: 0.9646633921 | AA25: 0.9840761078 | AB25: 0.9855186273 | AC25: 0.9892027043 | AD25: 0.9910820823 | AE25: 0.9913769201 | AF25: 0.9877876614 | AG25: 0.9874876027 | AH25: 0.9882524655 | AI25: 0.9538843418 | AJ25: 0.9946335361 | AK25: 0.997913716 | AL25: 0.9882524655 | AM25: 0.9915091477 | AN25: 0.99594977 | AO25: 0.9934896619 | AP25: 0.9871652955 | AQ25: 0.9858006187 | AR25: 0.9741541193 | AS25: 0.9887481105 | AT25: 0.9862326941 | AU25: 0.98790882 | AV25: 0.9587761528 | AW25: 0.9929878289 | AX25: 0.9820491489 | AY25: 0.9921202587 | AZ25: 0.98392628 | BA25: 0.9860339262 | BB25: 0.9859644372 | BC25: 0.9815804209 | BD25: 0.9877957258 | BE25: 0.942298965 | BF25: 0.9872670866 | BG25: 0.9921719254 | BH25: 0.9568546853 | BI25: 0.9490888901 | BJ25: 0.9796615951 | BK25: 0.9836890892 | BL25: 0.9843013532 | BM25: 0.9894290298
B26: CAIMI com ajuste | C26: =(C16-SUM(C4:C5,C7,C11))*C25 -> 30326358.09 | D26: =(D16-SUM(D4:D5,D7,D11))*D25 -> 12720435.97 | E26: 57123529.99 | F26: 51711560.24 | G26: 3498544.576 | H26: 2840123.533 | I26: 17286740.57 | J26: =(J16-SUM(J4:J5,J7,J11))*J25 -> 89174662.31 | K26: =(K16-SUM(K4:K5,K7,K11))*K25 -> 44629224.68 | L26: 56017159.64 | M26: 41891474.73 | N26: 37725211.23 | O26: 43942798.02 | P26: 36161938.92 | Q26: 140884543.2 | R26: 18068702.46 | S26: 12987007.78 | T26: 3440584.412 | U26: 2840123.533 | V26: =(V16-SUM(V4:V5,V7,V11))*V25 -> 3440584.412 | W26: 10544198.44 | X26: =(X16-SUM(X4:X5,X7,X11))*X25 -> 4386747.612 | Y26: 2507260.977 | Z26: 83380170.4 | AA26: 52408621.86 | AB26: 1130896.277 | AC26: 183861263.2 | AD26: 22363920.2 | AE26: 4386747.612 | AF26: 48148269.65 | AG26: 82759379.1 | AH26: 5337256.804 | AI26: 487431.7937 | AJ26: 3985361.627 | AK26: 3103089.577 | AL26: 5337256.804 | AM26: 10544198.44 | AN26: 151132.6576 | AO26: 469929.4186 | AP26: 62135460.3 | AQ26: 8291763.962 | AR26: 965267.8396 | AS26: 147492276.1 | AT26: 7114633.283 | AU26: 19414004.85 | AV26: 28050636.54 | AW26: 4118613.218 | AX26: 18969010.04 | AY26: 62782488.04 | AZ26: 13620190.6 | BA26: 522789.3832 | BB26: 711650.5354 | BC26: 1838482.497 | BD26: 95930754.69 | BE26: 254421.5637 | BF26: 31634533.73 | BG26: 763084.9152 | BH26: -26561168.92 | BI26: -37685580.56 | BJ26: 1299074.082 | BK26: -1482881.2 | BL26: 3527880.892 | BM26: =SUM(AM26,AL26,X26,T26,H26) -> 26548910.8
B27: CO ajuste | C27: =C7*C25 -> 271787568.9 | D27: =D7*D25 -> 319291466 | E27: 527807435 | F27: 407890700.7 | G27: 28308544.4 | H27: 18360669.4 | I27: 207739324.5 | J27: =J7*J25 -> 752224171.6 | K27: =K7*K25 -> 634070379.2 | L27: 582471581.6 | M27: 540624279.2 | N27: 276221011.6 | O27: 403898108.8 | P27: 371623652.7 | Q27: 1645274555 | R27: 278224267.6 | S27: 184210849.7 | T27: 17483459.7 | U27: 18360669.4 | V27: =V7*V25 -> 17483459.7 | W27: 70060199.94 | X27: =X7*X25 -> 23425927.04 | Y27: 17869513.82 | Z27: 865200842.5 | AA27: 575284321.8 | AB27: 9742099.421 | AC27: 1080369540 | AD27: 229888113.6 | AE27: 23425927.04 | AF27: 379830548.1 | AG27: 778959601.9 | AH27: 26832408.96 | AI27: 9198306.157 | AJ27: 21147589.96 | AK27: 33647355.99 | AL27: 26832408.96 | AM27: 70060199.94 | AN27: 2089802.014 | AO27: 4767880.738 | AP27: 692722488 | AQ27: 73544929.37 | AR27: 13440625.59 | AS27: 1341886327 | AT27: 44448383.68 | AU27: 126255068.8 | AV27: 261948138.9 | AW27: 25778652.02 | AX27: 271016297.3 | AY27: 381856339.8 | AZ27: 156846400.7 | BA27: 3983421.994 | BB27: 6181229.634 | BC27: 16056137.32 | BD27: 728248304 | BE27: 2908805.987 | BF27: 313819875.6 | BG27: 4276638.959 | BH27: 264261331.5 | BI27: 346076778.9 | BJ27: 15320811.24 | BK27: 12887791.25 | BL27: 30511101.38 | BM27: 156162665
B28: RI com ajuste | C28: =C11*C25 -> 12522279.2 | D28: =D11*D25 -> 15711615.9 | E28: 42122467.48 | F28: 27173055.85 | G28: 315947.3837 | H28: 69393.81366 | I28: 8327175.221 | J28: =J11*J25 -> 35762486.24 | K28: =K11*K25 -> 19632274.49 | L28: 80994635.76 | M28: 38396655.74 | N28: 5009049.204 | O28: 18339761.84 | P28: 11516854.02 | Q28: 52969815.46 | R28: 10001028.09 | S28: 8763176.725 | T28: 94926.5921 | U28: 69393.81366 | V28: =V11*V25 -> 94926.5921 | W28: 569439.0148 | X28: =X11*X25 -> 145054.2029 | Y28: 64127.13967 | Z28: 50667367.62 | AA28: 42417532.71 | AB28: 63097.24496 | AC28: 46912977.86 | AD28: 14033103.35 | AE28: 145054.2029 | AF28: 23453778.43 | AG28: 34237506.59 | AH28: 211875.0445 | AI28: 69950.06712 | AJ28: 231856.45 | AK28: 1717967.368 | AL28: 211875.0445 | AM28: 569439.0148 | AN28: 4508.647914 | AO28: 10976.71486 | AP28: 30483789.08 | AQ28: 3689663.141 | AR28: 67098.02384 | AS28: 196028055 | AT28: 135503.1862 | AU28: 2718717.721 | AV28: 7230094.741 | AW28: 157061.6714 | AX28: 11386588.06 | AY28: 30703555.19 | AZ28: 6747129.582 | BA28: 9709.91023 | BB28: 35220.48841 | BC28: 48223.83993 | BD28: 83401694.82 | BE28: 16388.77309 | BF28: 11138115.83 | BG28: 22822.94589 | BH28: 8729208.002 | BI28: 15926762.67 | BJ28: 100511.394 | BK28: 69671.67298 | BL28: 242802.5358 | BM28: 1090688.668
B29: QRR com ajuste | C29: =C5*C25 -> 91819754.2 | D29: =D5*D25 -> 13087599.82 | E29: 267475294 | F29: 133230179.5 | G29: 7395179.005 | H29: 3342345.47 | I29: 42088452.95 | J29: =J5*J25 -> 214182634.6 | K29: =K5*K25 -> 124618608.9 | L29: 176288524.6 | M29: 149357387.2 | N29: 41791036.78 | O29: 123492842.6 | P29: 100926442.1 | Q29: 565942402.4 | R29: 24096699.93 | S29: 25165900.49 | T29: 4178964.298 | U29: 3342345.47 | V29: =V5*V25 -> 4178964.298 | W29: 12011945.99 | X29: =X5*X25 -> 5695344.787 | Y29: 2273264.989 | Z29: 275371971.5 | AA29: 173400737.3 | AB29: 1891167.791 | AC29: 333848443.5 | AD29: 61937089 | AE29: 5695344.787 | AF29: 108890022.6 | AG29: 277837711.4 | AH29: 7833521.667 | AI29: 630105.028 | AJ29: 7400939.417 | AK29: 4759614.551 | AL29: 7833521.667 | AM29: 12011945.99 | AN29: 110788.987 | AO29: 495698.7173 | AP29: 208873686.7 | AQ29: 13954970.9 | AR29: 936650.8865 | AS29: 451131129.3 | AT29: 9387118.131 | AU29: 25927139.84 | AV29: 71429927.7 | AW29: 6300220.583 | AX29: 50117544.62 | AY29: 137033803.1 | AZ29: 32484382.25 | BA29: 347158.6735 | BB29: 731754.6382 | BC29: 1443123.159 | BD29: 450649677.2 | BE29: 228555.2674 | BF29: 91732333 | BG29: 651100.1269 | BH29: 47043952.92 | BI29: 89563819.82 | BJ29: 1488029.152 | BK29: 1528250.395 | BL29: 3083979.37 | BM29: 33062122.21
B30: RC com ajuste | C30: =C4*C25 -> 158680421.5 | D30: =D4*D25 -> 15933217.1 | E30: 449420415.6 | F30: 202773613.6 | G30: 15936606.54 | H30: 7924676.609 | I30: 32050897.19 | J30: =J4*J25 -> 380820443.5 | K30: =K4*K25 -> 166763925.9 | L30: 401140095.7 | M30: 242788059.2 | N30: 91421638.17 | O30: 212963455.8 | P30: 151719046.9 | Q30: 563763835.6 | R30: 10680002.96 | S30: 31141028.97 | T30: 8924493.857 | U30: 7924676.609 | V30: =V4*V25 -> 8924493.857 | W30: 25812535.87 | X30: =X4*X25 -> 12594553.54 | Y30: 3647707.326 | Z30: 412394742.5 | AA30: 316844380.7 | AB30: 3110130.076 | AC30: 650324930.9 | AD30: 102128879.8 | AE30: 12594553.54 | AF30: 230755714.8 | AG30: 375495545.6 | AH30: 15491007.36 | AI30: 1003276.196 | AJ30: 14161443.86 | AK30: 7570811.604 | AL30: 15491007.36 | AM30: 25812535.87 | AN30: 219426.6721 | AO30: 1034196.36 | AP30: 349256766.2 | AQ30: 22834502.63 | AR30: 1662029.166 | AS30: 763611943.2 | AT30: 17797442.97 | AU30: 43382701.21 | AV30: 118811916.9 | AW30: 11803485.42 | AX30: 88970138.46 | AY30: 249823964.7 | AZ30: 53389740.51 | BA30: 596435.0345 | BB30: 2184738.728 | BC30: 2269756.468 | BD30: 752700550.4 | BE30: 605519.4914 | BF30: 172949521.1 | BG30: 980597.5204 | BH30: 76052626.44 | BI30: 128453033.7 | BJ30: 1617479.163 | BK30: 2662876.35 | BL30: 4202054.801 | BM30: 70747267.24
B31: Ajuste dos investimentos com ajuste | C31: =IF(C18=0,,(C18-C16)*C25) -> -2585523.174 | D31: =IF(D18=0,,(D18-D16)*D25) -> -560609.606 | E31: -46966419.97 | F31: 0 | G31: 0 | H31: 0 | I31: 0 | J31: =IF(J18=0,,(J18-J16)*J25) -> 0 | K31: =IF(K18=0,,(K18-K16)*K25) -> 0 | L31: 0 | M31: 0 | N31: 0 | O31: 0 | P31: 0 | Q31: 0 | R31: 0 | S31: 0 | T31: 0 | U31: 0 | V31: =IF(V18=0,,(V18-V16)*V25) -> 0 | W31: 0 | X31: =IF(X18=0,,(X18-X16)*X25) -> 0 | Y31: 0 | Z31: 0 | AA31: 0 | AB31: 0 | AC31: 0 | AD31: 0 | AE31: 0 | AF31: 0 | AG31: 0 | AH31: 0 | AI31: 0 | AJ31: 0 | AK31: 0 | AL31: 0 | AM31: 0 | AN31: 0 | AO31: 0 | AP31: 0 | AQ31: 0 | AR31: 0 | AS31: 0 | AT31: 0 | AU31: 0 | AV31: 0 | AW31: 0 | AX31: 0 | AY31: 0 | AZ31: 0 | BA31: 0 | BB31: 0 | BC31: 0 | BD31: 0 | BE31: 0 | BF31: 0 | BG31: 0 | BH31: 0 | BI31: 0 | BJ31: 0 | BK31: 0 | BL31: 0 | BM31: 0
B32: Anos até 2017 | C32: =2017-YEAR(C3) -> 4 | D32: =2017-YEAR(D3) -> 4 | E32: 3 | F32: 2 | G32: 4 | H32: 0 | I32: 4 | J32: =2017-YEAR(J3) -> 1 | K32: =2017-YEAR(K3) -> 4 | L32: 2 | M32: 4 | N32: 1 | O32: 4 | P32: 4 | Q32: 4 | R32: 4 | S32: 4 | T32: 0 | U32: 1 | V32: =2017-YEAR(V3) -> 1 | W32: 1 | X32: =2017-YEAR(X3) -> 0 | Y32: 1 | Z32: 4 | AA32: 2 | AB32: 4 | AC32: 1 | AD32: 4 | AE32: 1 | AF32: 2 | AG32: 4 | AH32: 1 | AI32: 4 | AJ32: 2 | AK32: 4 | AL32: 0 | AM32: 0 | AN32: 1 | AO32: 1 | AP32: 2 | AQ32: 4 | AR32: 4 | AS32: 2 | AT32: 1 | AU32: 1 | AV32: 4 | AW32: 1 | AX32: 4 | AY32: 1 | AZ32: 4 | BA32: 1 | BB32: 4 | BC32: 1 | BD32: 4 | BE32: 4 | BF32: 4 | BG32: 4 | BH32: 5 | BI32: 5 | BJ32: 5 | BK32: 5 | BL32: 5 | BM32: 0
B33: CO em 2017 (descontados por fator X-T) | C33: =C27*(1-C21)^C32 -> 271787568.9 | D33: =D27*(1-D21)^D32 -> 294504282 | E33: =E27*(1-E21)^E32 -> 517530208 | F33: 409791335.5 | G33: 28308544.4 | H33: 18360669.4 | I33: 203385627.5 | J33: =J27*(1-J21)^J32 -> 761743951.1 | K33: =K27*(1-K21)^K32 -> 634070379.2 | L33: 580057757.3 | M33: 529683935.7 | N33: 277566004.5 | O33: 380911833.2 | P33: 371623652.7 | Q33: 1600967484 | R33: 256625205.7 | S33: 184210849.7 | T33: 17483459.7 | U33: 18225964.85 | V33: =V27*(1-V21)^V32 -> 17058599.59 | W33: 68258800.72 | X33: =X27*(1-X21)^X32 -> 23425927.04 | Y33: 17657220.66 | Z33: 798033709.1 | AA33: 570269640 | AB33: 9742099.421 | AC33: 1101836477 | AD33: 218603512.3 | AE33: 22794570.35 | AF33: 381194236.8 | AG33: 778959601.9 | AH33: 26495610.94 | AI33: 8484224.725 | AJ33: 21059376.07 | AK33: 33647355.99 | AL33: 26832408.96 | AM33: 70060199.94 | AN33: 2089802.014 | AO33: 4767880.738 | AP33: 692722488 | AQ33: 73544929.37 | AR33: 13440625.59 | AS33: 1341886327 | AT33: 44448383.68 | AU33: 126255068.8 | AV33: 261948138.9 | AW33: 25778652.02 | AX33: 271016297.3 | AY33: 381856339.8 | AZ33: 156846400.7 | BA33: 3983421.994 | BB33: 6181229.634 | BC33: 16056137.32 | BD33: 728248304 | BE33: 2908805.987 | BF33: 313819875.6 | BG33: 4276638.959 | BH33: 264261331.5 | BI33: 346076778.9 | BJ33: 15320811.24 | BK33: 12887791.25 | BL33: 30511101.38 | BM33: =SUM(AM33,AL33,X33,T33,H33) -> 156162665
B34: Total com OR | C34: =SUM(C26:C31,-C15) -> 542207401.4 | D34: =SUM(D26:D31,-D15) -> 367145212.3 | E34: 1265745206 | F34: 790961933.5 | G34: 54373461.16 | H34: 31453124.12 | I34: 301465771 | J34: =SUM(J26:J31,-J15) -> 1409975742 | K34: =SUM(K26:K31,-K15) -> 958116572.7 | L34: 1277521572 | M34: 989123641 | N34: 445974669.7 | O34: 789413845.6 | P34: 658248492.1 | Q34: 2928814513 | R34: 334069749.7 | S34: 258099141.4 | T34: 33366844.04 | U34: 31453124.12 | V34: =SUM(V26:V31,-V15) -> 33366844.04 | W34: 116253354 | X34: =SUM(X26:X31,-X15) -> 45014582.2 | Y34: 24557410.38 | Z34: 1652851126 | AA34: 1134545036 | AB34: 15085125.88 | AC34: 2222417438 | AD34: 420843706.7 | AE34: 45014582.2 | AF34: 754815441.3 | AG34: 1489883770 | AH34: 54326215.11 | AI34: 11065182.68 | AJ34: 44833414.61 | AK34: 49828254.96 | AL34: 54326215.11 | AM34: 116253354 | AN34: 2534415.36 | AO34: 6673437.357 | AP34: 1321162542 | AQ34: 118824784.4 | AR34: 16767353.64 | AS34: 2812095127 | AT34: 77572210.11 | AU34: 211241884.8 | AV34: 476214822.4 | AW34: 46229798.51 | AX34: 435723901.1 | AY34: 845908311.6 | AZ34: 259851893.4 | BA34: 5233539.455 | BB34: 9706104.797 | BC34: 20876174 | BD34: 2072799119 | BE34: 3927574.241 | BF34: 601717587 | BG34: 6591415.105 | BH34: 351311691.3 | BI34: 524010650.6 | BJ34: 18801876.7 | BK34: 15358919.76 | BL34: 41402179.73 | BM34: =SUM(AM34,AL34,X34,T34,H34) -> 280414119.4
B35: Total com OR e fator X | C35: =SUM(C26,C28:C31,-C15,C33) -> 542207401.4 | D35: =SUM(D26,D28:D31,-D15,D33) -> 342358028.3 | E35: =SUM(E26,E28:E31,-E15,E33) -> 1255467979 | F35: 792862568.4 | G35: 54373461.16 | H35: 31453124.12 | I35: 297112074 | J35: =SUM(J26,J28:J31,-J15,J33) -> 1419495521 | K35: =SUM(K26,K28:K31,-K15,K33) -> 958116572.7 | L35: 1275107748 | M35: 978183297.5 | N35: 447319662.7 | O35: 766427570 | P35: 658248492.1 | Q35: 2884507442 | R35: 312470687.9 | S35: 258099141.4 | T35: 33366844.04 | U35: 31318419.56 | V35: =SUM(V26,V28:V31,-V15,V33) -> 32941983.93 | W35: 114451954.7 | X35: =SUM(X26,X28:X31,-X15,X33) -> 45014582.2 | Y35: 24345117.22 | Z35: 1585683992 | AA35: 1129530354 | AB35: 15085125.88 | AC35: 2243884375 | AD35: 409559105.4 | AE35: 44383225.51 | AF35: 756179130 | AG35: 1489883770 | AH35: 53989417.09 | AI35: 10351101.25 | AJ35: 44745200.73 | AK35: 49828254.96 | AL35: 54326215.11 | AM35: 116253354 | AN35: 2534415.36 | AO35: 6673437.357 | AP35: 1321162542 | AQ35: 118824784.4 | AR35: 16767353.64 | AS35: 2812095127 | AT35: 77572210.11 | AU35: 211241884.8 | AV35: 476214822.4 | AW35: 46229798.51 | AX35: 435723901.1 | AY35: 845908311.6 | AZ35: 259851893.4 | BA35: 5233539.455 | BB35: 9706104.797 | BC35: 20876174 | BD35: 2072799119 | BE35: 3927574.241 | BF35: 601717587 | BG35: 6591415.105 | BH35: 351311691.3 | BI35: 524010650.6 | BJ35: 18801876.7 | BK35: 15358919.76 | BL35: 41402179.73 | BM35: =SUM(AM35,AL35,X35,T35,H35) -> 280414119.4 | BO35: FC
B36: Fator DR1 | C36: =(C35+C15-C28)/C35 -> 1.014424698 | D36: 0.980508408 | E36: 0.991329965 | F36: 1.005857409 | G36: 1.014076966 | H36: 1.032260417 | I36: 0.9922576157 | J36: =(J35+J15-J28)/J35 -> 1.018616593 | K36: =(K35+K15-K28)/K35 -> 1.012488633 | L36: 0.9516870548 | M36: 0.9852149993 | N36: 1.002647387 | O36: 0.9933240393 | P36: 1.003315752 | Q36: 0.9955107839 | R36: 0.9903988537 | S36: 0.9821992649 | T36: 1.019799842 | U36: 1.032399173 | V36: =(V35+V15-V28)/V35 -> 1.020055205 | W36: 1.019008206 | X36: =(X35+X15-X28)/X35 -> 1.024169741 | Y36: 1.071486069 | Z36: 0.9895922525 | AA36: 0.9852974519 | AB36: 1.052314292 | AC36: 1.01158114 | AD36: 0.9889498143 | AE36: 1.024513558 | AF36: 1.016939259 | AG36: 1.016892907 | AH36: 1.021633493 | AI36: 1.024532317 | AJ36: 1.041611619 | AK36: 0.9850008147 | AL36: 1.021499375 | AM36: 1.018713665 | AN36: 1.014494455 | AO36: 1.014125835 | AP36: 0.9938129178 | AQ36: 0.9983284842 | AR36: 1.014147721 | AS36: 0.961603912 | AT36: 1.015151921 | AU36: 1.017690762 | AV36: 1.008453743 | AW36: 1.038312361 | AX36: 0.9847359518 | AY36: 0.9829630283 | AZ36: 0.9864877669 | BA36: 1.041323015 | BB36: 1.010639566 | BC36: 1.035031584 | BD36: 0.9781600484 | BE36: 1.017753469 | BF36: 1.013991076 | BG36: 1.012137973 | BH36: 1.026998961 | BI36: 1.0045751 | BJ36: 1.049118338 | BK36: 1.015438392 | BL36: 0.9981362506 | BM36: 1.021777954 | BO36: 0.723191
B38: Percentual para fins de retirada da parcela B
B39: CO | C39: =C33/C35 -> 0.5012612668 | D39: =D33/D35 -> 0.860223093 | E39: 0.412220954 | F39: 0.5168503999 | G39: 0.5206316426 | H39: 0.5837470814 | I39: 0.6845417781 | J39: =J33/J35 -> 0.5366300489 | K39: =K33/K35 -> 0.6617883432 | L39: 0.4549088171 | M39: 0.5414976284 | N39: 0.6205092861 | O39: 0.4969965175 | P39: 0.5645643814 | Q39: 0.55502283 | R39: 0.8212776933 | S39: 0.7137212805 | T39: 0.5239770258 | U39: 0.581956724 | V39: =V33/V35 -> 0.5178376514 | W39: 0.5963969848 | X39: =X33/X35 -> 0.520407519 | Y39: 0.7252879705 | Z39: 0.5032741158 | AA39: 0.5048732314 | AB39: 0.6458082945 | AC39: 0.4910397744 | AD39: 0.5337532712 | AE39: 0.5135852585 | AF39: 0.5041057359 | AG39: 0.5228324636 | AH39: 0.49075564 | AI39: 0.8196446467 | AJ39: 0.4706510582 | AK39: 0.6752665937 | AL39: 0.4939127253 | AM39: 0.6026509993 | AN39: 0.8245696607 | AO39: 0.7144565062 | AP39: 0.5243279807 | AQ39: 0.618935938 | AR39: 0.8015949254 | AS39: 0.4771838313 | AT39: 0.5729936483 | AU39: 0.5976800904 | AV39: 0.5500629687 | AW39: 0.5576198221 | AX39: 0.6219908907 | AY39: 0.4514157558 | AZ39: 0.6035992219 | BA39: 0.7611334601 | BB39: 0.6368393669 | BC39: 0.7691130243 | BD39: 0.3513356878 | BE39: 0.7406113311 | BF39: 0.5215401417 | BG39: 0.6488195465 | BH39: 0.7522133138 | BI39: 0.6604384443 | BJ39: 0.8148554258 | BK39: 0.8391079221 | BL39: 0.7369443246
B40: RI | C40: =C28/C35 -> 0.02309499865 | D40: =D28/D35 -> 0.0458923542 | E40: 0.03355120815 | F40: 0.03427208817 | G40: 0.005810691042 | H40: 0.0022062614 | I40: 0.0280270509 | J40: =J28/J35 -> 0.02519379998 | K40: =K28/K35 -> 0.02049048629 | L40: 0.06351983657 | M40: 0.03925302737 | N40: 0.01119791867 | O40: 0.02392889108 | P40: 0.01749621026 | Q40: 0.01836355653 | R40: 0.03200629205 | S40: 0.03395275428 | T40: 0.002844937687 | U40: 0.002215750815 | V40: =V28/V35 -> 0.002881629482 | W40: 0.004975354209 | X40: =X28/X35 -> 0.003222382523 | Y40: 0.002634086297 | Z40: 0.03195300443 | AA40: 0.03755324728 | AB40: 0.004182745669 | AC40: 0.02090703887 | AD40: 0.03426392714 | AE40: 0.0032682213 | AF40: 0.03101616733 | AG40: 0.02297998494 | AH40: 0.003924381036 | AI40: 0.006757741562 | AJ40: 0.00518170544 | AK40: 0.03447777509 | AL40: 0.003900051644 | AM40: 0.004898258806 | AN40: 0.001778969614 | AO40: 0.001644836727 | AP40: 0.02307345849 | AQ40: 0.03105129254 | AR40: 0.004001706249 | AS40: 0.06970889894 | AT40: 0.001746800639 | AU40: 0.01287016409 | AV40: 0.01518242272 | AW40: 0.003397411981 | AX40: 0.02613257623 | AY40: 0.0362965522 | AZ40: 0.02596528928 | BA40: 0.001855323785 | BB40: 0.00362869443 | BC40: 0.002309994156 | BD40: 0.04023626509 | BE40: 0.004172746862 | BF40: 0.01851053728 | BG40: 0.003462525957 | BH40: 0.02484747368 | BI40: 0.03039396747 | BJ40: 0.005345817101 | BK40: 0.004536235234 | BL40: 0.005864486784
B41: CAA | C41: =SUM(C26,C29,C30)/C35 -> 0.5179319446 | D41: =SUM(D26,D29,D30)/D35 -> 0.1219228102 | E41: 0.6165185036 | F41: 0.4890070093 | G41: 0.4934453232 | H41: 0.4485133356 | I41: 0.3077158376 | J41: =SUM(J26,J29,J30)/J35 -> 0.4819865439 | K41: =SUM(K26,K29,K30)/K35 -> 0.3507002896 | L41: 0.4967782377 | M41: 0.443717371 | N41: 0.3821381004 | O41: 0.4963275218 | P41: 0.4387513703 | Q41: 0.4404879539 | R41: 0.1691211605 | S41: 0.2684779844 | T41: 0.4958228159 | U41: 0.4504424492 | V41: =SUM(V26,V29,V30)/V35 -> 0.5022175532 | W41: 0.4226112207 | X41: =SUM(X26,X29,X30)/X35 -> 0.5037622217 | Y41: 0.3461980986 | Z41: 0.4863181367 | AA41: 0.4804242204 | AB41: 0.4065059975 | AC41: 0.5205413659 | AD41: 0.4551965431 | AE41: 0.5109282996 | AF41: 0.5128335227 | AG41: 0.4940604434 | AH41: 0.5308778531 | AI41: 0.2048876701 | AJ41: 0.5709605608 | AK41: 0.309734221 | AL41: 0.5275866499 | AM41: 0.4160626654 | AN41: 0.1899247946 | AO41: 0.2996693291 | AP41: 0.4694849371 | AQ41: 0.3793925462 | AR41: 0.2125527957 | AS41: 0.4844200807 | AT41: 0.4421582722 | AU41: 0.4200106716 | AV41: 0.4583907743 | AW41: 0.4806925389 | AX41: 0.3627450611 | AY41: 0.5315472724 | AZ41: 0.382888545 | BA41: 0.2801895551 | BB41: 0.3738001987 | BC41: 0.2659185598 | BD41: 0.6268243607 | BE41: 0.2771421381 | BF41: 0.4924509341 | BG41: 0.3633184262 | BH41: 0.2747856471 | BI41: 0.3441366559 | BJ41: 0.2342629125 | BK41: 0.1763304703 | BL41: 0.261191926
B42: Ajuste de investimentos | C42: =C31/C35 -> -0.004768513244 | D42: =D31/D35 -> -0.001637495136 | E42: -0.03740949252 | F42: 0 | G42: 0 | H42: 0 | I42: 0 | J42: =J31/J35 -> 0 | K42: =K31/K35 -> 0 | L42: 0 | M42: 0 | N42: 0 | O42: 0 | P42: 0 | Q42: 0 | R42: 0 | S42: 0 | T42: 0 | U42: 0 | V42: =V31/V35 -> 0 | W42: 0 | X42: =X31/X35 -> 0 | Y42: 0 | Z42: 0 | AA42: 0 | AB42: 0 | AC42: 0 | AD42: 0 | AE42: 0 | AF42: 0 | AG42: 0 | AH42: 0 | AI42: 0 | AJ42: 0 | AK42: 0 | AL42: 0 | AM42: 0 | AN42: 0 | AO42: 0 | AP42: 0 | AQ42: 0 | AR42: 0 | AS42: 0 | AT42: 0 | AU42: 0 | AV42: 0 | AW42: 0 | AX42: 0 | AY42: 0 | AZ42: 0 | BA42: 0 | BB42: 0 | BC42: 0 | BD42: 0 | BE42: 0 | BF42: 0 | BG42: 0 | BH42: 0 | BI42: 0 | BJ42: 0 | BK42: 0 | BL42: 0
B43: OR | C43: =-C15/C35 -> -0.03751969686 | D43: =-D15/D35 -> -0.0264007622 | E43: -0.02488117316 | F43: -0.04012949737 | G43: -0.01988765691 | H43: -0.03446667836 | I43: -0.02028466659 | J43: =-J15/J35 -> -0.04381039284 | K43: =-K15/K35 -> -0.03297911909 | L43: -0.01520689134 | M43: -0.02446802671 | N43: -0.01384530524 | O43: -0.01725293034 | P43: -0.02081196201 | Q43: -0.01387434047 | R43: -0.02240514578 | S43: -0.01615201919 | T43: -0.02264477936 | U43: -0.03461492398 | V43: =-V15/V35 -> -0.02293683412 | W43: -0.02398355977 | X43: =-X15/X35 -> -0.02739212318 | Y43: -0.07412015542 | Z43: -0.02154525693 | AA43: -0.02285069913 | AB43: -0.05649703772 | AC43: -0.03248817919 | AD43: -0.02321374149 | AE43: -0.02778177941 | AF43: -0.047955426 | AG43: -0.03987289193 | AH43: -0.02555787414 | AI43: -0.03129005834 | AJ43: -0.04679332452 | AK43: -0.01947858976 | AL43: -0.02539942685 | AM43: -0.02361192348 | AN43: -0.01627342493 | AO43: -0.01577067204 | AP43: -0.01688637628 | AQ43: -0.02937977675 | AR43: -0.01814942733 | AS43: -0.03131281098 | AT43: -0.01689872115 | AU43: -0.03056092613 | AV43: -0.02363616571 | AW43: -0.04170977291 | AX43: -0.01086852805 | AY43: -0.01925958046 | AZ43: -0.0124530562 | BA43: -0.04317833899 | BB43: -0.01426826004 | BC43: -0.03734157831 | BD43: -0.01839631354 | BE43: -0.02192621606 | BF43: -0.03250161307 | BG43: -0.01560049868 | BH43: -0.05184643459 | BI43: -0.03496906763 | BJ43: -0.05446415538 | BK43: -0.01997462762 | BL43: -0.004000737341
B44: Fator de Ajuste | C44: =SUM(C39,C41,C42)/SUM(C39:C43) -> 1.014424698 | D44: =SUM(D39,D41,D42)/SUM(D39:D43) -> 0.980508408 | E44: 0.991329965 | F44: 1.005857409 | G44: 1.014076966 | H44: 1.032260417 | I44: 0.9922576157 | J44: =SUM(J39,J41,J42)/SUM(J39:J43) -> 1.018616593 | K44: =SUM(K39,K41,K42)/SUM(K39:K43) -> 1.012488633 | L44: 0.9516870548 | M44: 0.9852149993 | N44: 1.002647387 | O44: 0.9933240393 | P44: 1.003315752 | Q44: 0.9955107839 | R44: 0.9903988537 | S44: 0.9821992649 | T44: 1.019799842 | U44: 1.032399173 | V44: =SUM(V39,V41,V42)/SUM(V39:V43) -> 1.020055205 | W44: 1.019008206 | X44: =SUM(X39,X41,X42)/SUM(X39:X43) -> 1.024169741 | Y44: 1.071486069 | Z44: 0.9895922525 | AA44: 0.9852974519 | AB44: 1.052314292 | AC44: 1.01158114 | AD44: 0.9889498143 | AE44: 1.024513558 | AF44: 1.016939259 | AG44: 1.016892907 | AH44: 1.021633493 | AI44: 1.024532317 | AJ44: 1.041611619 | AK44: 0.9850008147 | AL44: 1.021499375 | AM44: 1.018713665 | AN44: 1.014494455 | AO44: 1.014125835 | AP44: 0.9938129178 | AQ44: 0.9983284842 | AR44: 1.014147721 | AS44: 0.961603912 | AT44: 1.015151921 | AU44: 1.017690762 | AV44: 1.008453743 | AW44: 1.038312361 | AX44: 0.9847359518 | AY44: 0.9829630283 | AZ44: 0.9864877669 | BA44: 1.041323015 | BB44: 1.010639566 | BC44: 1.035031584 | BD44: 0.9781600484 | BE44: 1.017753469 | BF44: 1.013991076 | BG44: 1.012137973 | BH44: 1.026998961 | BI44: 1.0045751 | BJ44: 1.049118338 | BK44: 1.015438392 | BL44: 0.9981362506
